{"text_format":"3","workbook":"xlsx","n_sheets":12,"sheets":["GEN","FEB","MAR","APR","MAG","GIU","LUG","AGO","SET","OTT","NOV","DIC"],"not_rendered":{"defined_names":40},"read":"whole","date_system":"1900"}

{"sheet":"GEN","index":0,"n_rows":20,"n_cols":9,"rows_kept":20,"merged":[[16,2,17,2],[16,3,17,3],[17,4,19,8]]}
[null,"GEN","DOM",{"$f":"UPPER(TEXT(D3,\"ggg\"))","v":"LUN"},"MAR","MER","GIO","VEN","SAB"]
[null,{"$f":"YEAR(TODAY())","v":2018}]
[null,null,{"$f":"GiorniESettimane+DATE(AnnoCalendario,1,1)-WEEKDAY(DATE(AnnoCalendario,1,1),(InizioSettimana=\"LUN\")+1)+1","v":"2017-12-31"},"2018-01-01","2018-01-02","2018-01-03","2018-01-04","2018-01-05","2018-01-06"]
[null,null,{"$f":"IF(DAY(GiornoCalendario)=1,CONCATENATE(\"Settimana \",WEEKNUM(GiornoCalendario),\"/Giorno \",GiornoCalendario-DATE(YEAR(GiornoCalendario),1,0)),CONCATENATE(\"Giorno \",GiornoCalendario-DATE(YEAR(GiornoCalendario),1,0)))","v":"Giorno 365"},{"$f":"IF(DAY(GiornoCalendario)=1,CONCATENATE(\"Settimana \",WEEKNUM(GiornoCalendario),\"/Giorno \",GiornoCalendario-DATE(YEAR(GiornoCalendario),1,0)),CONCATENATE(\"Giorno \",GiornoCalendario-DATE(YEAR(GiornoCalendario),1,0)))","v":"Settimana 1/Giorno 1"},{"$f":"IF(DAY(GiornoCalendario)=1,CONCATENATE(\"Settimana \",WEEKNUM(GiornoCalendario),\"/Giorno \",GiornoCalendario-DATE(YEAR(GiornoCalendario),1,0)),CONCATENATE(\"Giorno \",GiornoCalendario-DATE(YEAR(GiornoCalendario),1,0)))","v":"Giorno 2"},{"$f":"IF(DAY(GiornoCalendario)=1,CONCATENATE(\"Settimana \",WEEKNUM(GiornoCalendario),\"/Giorno \",GiornoCalendario-DATE(YEAR(GiornoCalendario),1,0)),CONCATENATE(\"Giorno \",GiornoCalendario-DATE(YEAR(GiornoCalendario),1,0)))","v":"Giorno 3"},{"$f":"IF(DAY(GiornoCalendario)=1,CONCATENATE(\"Settimana \",WEEKNUM(GiornoCalendario),\"/Giorno \",GiornoCalendario-DATE(YEAR(GiornoCalendario),1,0)),CONCATENATE(\"Giorno \",GiornoCalendario-DATE(YEAR(GiornoCalendario),1,0)))","v":"Giorno 4"},{"$f":"IF(DAY(GiornoCalendario)=1,CONCATENATE(\"Settimana \",WEEKNUM(GiornoCalendario),\"/Giorno \",GiornoCalendario-DATE(YEAR(GiornoCalendario),1,0)),CONCATENATE(\"Giorno \",GiornoCalendario-DATE(YEAR(GiornoCalendario),1,0)))","v":"Giorno 5"},{"$f":"IF(DAY(GiornoCalendario)=1,CONCATENATE(\"Settimana \",WEEKNUM(GiornoCalendario),\"/Giorno \",GiornoCalendario-DATE(YEAR(GiornoCalendario),1,0)),CONCATENATE(\"Giorno \",GiornoCalendario-DATE(YEAR(GiornoCalendario),1,0)))","v":"Giorno 6"}]
[]
[null,null,{"$f":"GiorniESettimane+DATE(AnnoCalendario,1,1)-WEEKDAY(DATE(AnnoCalendario,1,1),(InizioSettimana=\"LUN\")+1)+8","v":"2018-01-07"},"2018-01-08","2018-01-09","2018-01-10","2018-01-11","2018-01-12","2018-01-13"]
[null,null,{"$f":"IF(WEEKDAY(GiornoCalendario)=ValoreInizioSettimana,CONCATENATE(\"Settimana \",WEEKNUM(GiornoCalendario),\"/Giorno \",GiornoCalendario-DATE(YEAR(GiornoCalendario),1,0)),CONCATENATE(\"Giorno \",GiornoCalendario-DATE(YEAR(GiornoCalendario),1,0)))","v":"Settimana 2/Giorno 7"},{"$f":"IF(WEEKDAY(GiornoCalendario)=ValoreInizioSettimana,CONCATENATE(\"Settimana \",WEEKNUM(GiornoCalendario),\"/Giorno \",GiornoCalendario-DATE(YEAR(GiornoCalendario),1,0)),CONCATENATE(\"Giorno \",GiornoCalendario-DATE(YEAR(GiornoCalendario),1,0)))","v":"Giorno 8"},{"$f":"IF(WEEKDAY(GiornoCalendario)=ValoreInizioSettimana,CONCATENATE(\"Settimana \",WEEKNUM(GiornoCalendario),\"/Giorno \",GiornoCalendario-DATE(YEAR(GiornoCalendario),1,0)),CONCATENATE(\"Giorno \",GiornoCalendario-DATE(YEAR(GiornoCalendario),1,0)))","v":"Giorno 9"},{"$f":"IF(WEEKDAY(GiornoCalendario)=ValoreInizioSettimana,CONCATENATE(\"Settimana \",WEEKNUM(GiornoCalendario),\"/Giorno \",GiornoCalendario-DATE(YEAR(GiornoCalendario),1,0)),CONCATENATE(\"Giorno \",GiornoCalendario-DATE(YEAR(GiornoCalendario),1,0)))","v":"Giorno 10"},{"$f":"IF(WEEKDAY(GiornoCalendario)=ValoreInizioSettimana,CONCATENATE(\"Settimana \",WEEKNUM(GiornoCalendario),\"/Giorno \",GiornoCalendario-DATE(YEAR(GiornoCalendario),1,0)),CONCATENATE(\"Giorno \",GiornoCalendario-DATE(YEAR(GiornoCalendario),1,0)))","v":"Giorno 11"},{"$f":"IF(WEEKDAY(GiornoCalendario)=ValoreInizioSettimana,CONCATENATE(\"Settimana \",WEEKNUM(GiornoCalendario),\"/Giorno \",GiornoCalendario-DATE(YEAR(GiornoCalendario),1,0)),CONCATENATE(\"Giorno \",GiornoCalendario-DATE(YEAR(GiornoCalendario),1,0)))","v":"Giorno 12"},{"$f":"IF(WEEKDAY(GiornoCalendario)=ValoreInizioSettimana,CONCATENATE(\"Settimana \",WEEKNUM(GiornoCalendario),\"/Giorno \",GiornoCalendario-DATE(YEAR(GiornoCalendario),1,0)),CONCATENATE(\"Giorno \",GiornoCalendario-DATE(YEAR(GiornoCalendario),1,0)))","v":"Giorno 13"}]
[]
[null,null,{"$f":"GiorniESettimane+DATE(AnnoCalendario,1,1)-WEEKDAY(DATE(AnnoCalendario,1,1),(InizioSettimana=\"LUN\")+1)+15","v":"2018-01-14"},"2018-01-15","2018-01-16","2018-01-17","2018-01-18","2018-01-19","2018-01-20"]
[null,null,{"$f":"IF(WEEKDAY(GiornoCalendario)=ValoreInizioSettimana,CONCATENATE(\"Settimana \",WEEKNUM(GiornoCalendario),\"/Giorno \",GiornoCalendario-DATE(YEAR(GiornoCalendario),1,0)),CONCATENATE(\"Giorno \",GiornoCalendario-DATE(YEAR(GiornoCalendario),1,0)))","v":"Settimana 3/Giorno 14"},{"$f":"IF(WEEKDAY(GiornoCalendario)=ValoreInizioSettimana,CONCATENATE(\"Settimana \",WEEKNUM(GiornoCalendario),\"/Giorno \",GiornoCalendario-DATE(YEAR(GiornoCalendario),1,0)),CONCATENATE(\"Giorno \",GiornoCalendario-DATE(YEAR(GiornoCalendario),1,0)))","v":"Giorno 15"},{"$f":"IF(WEEKDAY(GiornoCalendario)=ValoreInizioSettimana,CONCATENATE(\"Settimana \",WEEKNUM(GiornoCalendario),\"/Giorno \",GiornoCalendario-DATE(YEAR(GiornoCalendario),1,0)),CONCATENATE(\"Giorno \",GiornoCalendario-DATE(YEAR(GiornoCalendario),1,0)))","v":"Giorno 16"},{"$f":"IF(WEEKDAY(GiornoCalendario)=ValoreInizioSettimana,CONCATENATE(\"Settimana \",WEEKNUM(GiornoCalendario),\"/Giorno \",GiornoCalendario-DATE(YEAR(GiornoCalendario),1,0)),CONCATENATE(\"Giorno \",GiornoCalendario-DATE(YEAR(GiornoCalendario),1,0)))","v":"Giorno 17"},{"$f":"IF(WEEKDAY(GiornoCalendario)=ValoreInizioSettimana,CONCATENATE(\"Settimana \",WEEKNUM(GiornoCalendario),\"/Giorno \",GiornoCalendario-DATE(YEAR(GiornoCalendario),1,0)),CONCATENATE(\"Giorno \",GiornoCalendario-DATE(YEAR(GiornoCalendario),1,0)))","v":"Giorno 18"},{"$f":"IF(WEEKDAY(GiornoCalendario)=ValoreInizioSettimana,CONCATENATE(\"Settimana \",WEEKNUM(GiornoCalendario),\"/Giorno \",GiornoCalendario-DATE(YEAR(GiornoCalendario),1,0)),CONCATENATE(\"Giorno \",GiornoCalendario-DATE(YEAR(GiornoCalendario),1,0)))","v":"Giorno 19"},{"$f":"IF(WEEKDAY(GiornoCalendario)=ValoreInizioSettimana,CONCATENATE(\"Settimana \",WEEKNUM(GiornoCalendario),\"/Giorno \",GiornoCalendario-DATE(YEAR(GiornoCalendario),1,0)),CONCATENATE(\"Giorno \",GiornoCalendario-DATE(YEAR(GiornoCalendario),1,0)))","v":"Giorno 20"}]
[]
[null,null,{"$f":"GiorniESettimane+DATE(AnnoCalendario,1,1)-WEEKDAY(DATE(AnnoCalendario,1,1),(InizioSettimana=\"LUN\")+1)+22","v":"2018-01-21"},"2018-01-22","2018-01-23","2018-01-24","2018-01-25","2018-01-26","2018-01-27"]
[null,null,{"$f":"IF(WEEKDAY(GiornoCalendario)=ValoreInizioSettimana,CONCATENATE(\"Settimana \",WEEKNUM(GiornoCalendario),\"/Giorno \",GiornoCalendario-DATE(YEAR(GiornoCalendario),1,0)),CONCATENATE(\"Giorno \",GiornoCalendario-DATE(YEAR(GiornoCalendario),1,0)))","v":"Settimana 4/Giorno 21"},{"$f":"IF(WEEKDAY(GiornoCalendario)=ValoreInizioSettimana,CONCATENATE(\"Settimana \",WEEKNUM(GiornoCalendario),\"/Giorno \",GiornoCalendario-DATE(YEAR(GiornoCalendario),1,0)),CONCATENATE(\"Giorno \",GiornoCalendario-DATE(YEAR(GiornoCalendario),1,0)))","v":"Giorno 22"},{"$f":"IF(WEEKDAY(GiornoCalendario)=ValoreInizioSettimana,CONCATENATE(\"Settimana \",WEEKNUM(GiornoCalendario),\"/Giorno \",GiornoCalendario-DATE(YEAR(GiornoCalendario),1,0)),CONCATENATE(\"Giorno \",GiornoCalendario-DATE(YEAR(GiornoCalendario),1,0)))","v":"Giorno 23"},{"$f":"IF(WEEKDAY(GiornoCalendario)=ValoreInizioSettimana,CONCATENATE(\"Settimana \",WEEKNUM(GiornoCalendario),\"/Giorno \",GiornoCalendario-DATE(YEAR(GiornoCalendario),1,0)),CONCATENATE(\"Giorno \",GiornoCalendario-DATE(YEAR(GiornoCalendario),1,0)))","v":"Giorno 24"},{"$f":"IF(WEEKDAY(GiornoCalendario)=ValoreInizioSettimana,CONCATENATE(\"Settimana \",WEEKNUM(GiornoCalendario),\"/Giorno \",GiornoCalendario-DATE(YEAR(GiornoCalendario),1,0)),CONCATENATE(\"Giorno \",GiornoCalendario-DATE(YEAR(GiornoCalendario),1,0)))","v":"Giorno 25"},{"$f":"IF(WEEKDAY(GiornoCalendario)=ValoreInizioSettimana,CONCATENATE(\"Settimana \",WEEKNUM(GiornoCalendario),\"/Giorno \",GiornoCalendario-DATE(YEAR(GiornoCalendario),1,0)),CONCATENATE(\"Giorno \",GiornoCalendario-DATE(YEAR(GiornoCalendario),1,0)))","v":"Giorno 26"},{"$f":"IF(WEEKDAY(GiornoCalendario)=ValoreInizioSettimana,CONCATENATE(\"Settimana \",WEEKNUM(GiornoCalendario),\"/Giorno \",GiornoCalendario-DATE(YEAR(GiornoCalendario),1,0)),CONCATENATE(\"Giorno \",GiornoCalendario-DATE(YEAR(GiornoCalendario),1,0)))","v":"Giorno 27"}]
[]
[null,null,{"$f":"GiorniESettimane+DATE(AnnoCalendario,1,1)-WEEKDAY(DATE(AnnoCalendario,1,1),(InizioSettimana=\"LUN\")+1)+29","v":"2018-01-28"},"2018-01-29","2018-01-30","2018-01-31","2018-02-01","2018-02-02","2018-02-03"]
[null,null,{"$f":"IF(WEEKDAY(GiornoCalendario)=ValoreInizioSettimana,CONCATENATE(\"Settimana \",WEEKNUM(GiornoCalendario),\"/Giorno \",GiornoCalendario-DATE(YEAR(GiornoCalendario),1,0)),CONCATENATE(\"Giorno \",GiornoCalendario-DATE(YEAR(GiornoCalendario),1,0)))","v":"Settimana 5/Giorno 28"},{"$f":"IF(WEEKDAY(GiornoCalendario)=ValoreInizioSettimana,CONCATENATE(\"Settimana \",WEEKNUM(GiornoCalendario),\"/Giorno \",GiornoCalendario-DATE(YEAR(GiornoCalendario),1,0)),CONCATENATE(\"Giorno \",GiornoCalendario-DATE(YEAR(GiornoCalendario),1,0)))","v":"Giorno 29"},{"$f":"IF(WEEKDAY(GiornoCalendario)=ValoreInizioSettimana,CONCATENATE(\"Settimana \",WEEKNUM(GiornoCalendario),\"/Giorno \",GiornoCalendario-DATE(YEAR(GiornoCalendario),1,0)),CONCATENATE(\"Giorno \",GiornoCalendario-DATE(YEAR(GiornoCalendario),1,0)))","v":"Giorno 30"},{"$f":"IF(WEEKDAY(GiornoCalendario)=ValoreInizioSettimana,CONCATENATE(\"Settimana \",WEEKNUM(GiornoCalendario),\"/Giorno \",GiornoCalendario-DATE(YEAR(GiornoCalendario),1,0)),CONCATENATE(\"Giorno \",GiornoCalendario-DATE(YEAR(GiornoCalendario),1,0)))","v":"Giorno 31"},{"$f":"IF(WEEKDAY(GiornoCalendario)=ValoreInizioSettimana,CONCATENATE(\"Settimana \",WEEKNUM(GiornoCalendario),\"/Giorno \",GiornoCalendario-DATE(YEAR(GiornoCalendario),1,0)),CONCATENATE(\"Giorno \",GiornoCalendario-DATE(YEAR(GiornoCalendario),1,0)))","v":"Giorno 32"},{"$f":"IF(WEEKDAY(GiornoCalendario)=ValoreInizioSettimana,CONCATENATE(\"Settimana \",WEEKNUM(GiornoCalendario),\"/Giorno \",GiornoCalendario-DATE(YEAR(GiornoCalendario),1,0)),CONCATENATE(\"Giorno \",GiornoCalendario-DATE(YEAR(GiornoCalendario),1,0)))","v":"Giorno 33"},{"$f":"IF(WEEKDAY(GiornoCalendario)=ValoreInizioSettimana,CONCATENATE(\"Settimana \",WEEKNUM(GiornoCalendario),\"/Giorno \",GiornoCalendario-DATE(YEAR(GiornoCalendario),1,0)),CONCATENATE(\"Giorno \",GiornoCalendario-DATE(YEAR(GiornoCalendario),1,0)))","v":"Giorno 34"}]
[{"$nulls":4},"NOTE"]
[]
[null,null,{"$f":"GiorniESettimane+DATE(AnnoCalendario,1,1)-WEEKDAY(DATE(AnnoCalendario,1,1),(InizioSettimana=\"LUN\")+1)+36","v":"2018-02-04"},"2018-02-05"]
[null,null,{"$f":"IF(WEEKDAY(GiornoCalendario)=ValoreInizioSettimana,CONCATENATE(\"Settimana \",WEEKNUM(GiornoCalendario),\"/Giorno \",GiornoCalendario-DATE(YEAR(GiornoCalendario),1,0)),CONCATENATE(\"Giorno \",GiornoCalendario-DATE(YEAR(GiornoCalendario),1,0)))","v":"Settimana 6/Giorno 35"},{"$f":"IF(WEEKDAY(GiornoCalendario)=ValoreInizioSettimana,CONCATENATE(\"Settimana \",WEEKNUM(GiornoCalendario),\"/Giorno \",GiornoCalendario-DATE(YEAR(GiornoCalendario),1,0)),CONCATENATE(\"Giorno \",GiornoCalendario-DATE(YEAR(GiornoCalendario),1,0)))","v":"Giorno 36"}]

{"sheet":"FEB","index":1,"n_rows":20,"n_cols":9,"rows_kept":20,"merged":[[16,2,17,2],[17,4,19,8]]}
[null,"FEB",{"$f":"UPPER(TEXT(InizioSettimana,\"mmm\"))","v":"DOM"},{"$f":"UPPER(TEXT(D3,\"ggg\"))","v":"LUN"},"MAR","MER","GIO","VEN","SAB"]
[null,{"$f":"AnnoCalendario","v":2018}]
[null,null,{"$f":"GiorniESettimane+DATE(AnnoCalendario,2,1)-WEEKDAY(DATE(AnnoCalendario,2,1),(InizioSettimana=\"LUN\")+1)+1","v":"2018-01-28"},"2018-01-29","2018-01-30","2018-01-31","2018-02-01","2018-02-02","2018-02-03"]
[null,null,{"$f":"IF(DAY(GiornoCalendario)=1,CONCATENATE(\"Settimana \",WEEKNUM(GiornoCalendario),\"/Giorno \",GiornoCalendario-DATE(YEAR(GiornoCalendario),1,0)),CONCATENATE(\"Giorno \",GiornoCalendario-DATE(YEAR(GiornoCalendario),1,0)))","v":"Giorno 28"},{"$f":"IF(DAY(GiornoCalendario)=1,CONCATENATE(\"Settimana \",WEEKNUM(GiornoCalendario),\"/Giorno \",GiornoCalendario-DATE(YEAR(GiornoCalendario),1,0)),CONCATENATE(\"Giorno \",GiornoCalendario-DATE(YEAR(GiornoCalendario),1,0)))","v":"Giorno 29"},{"$f":"IF(DAY(GiornoCalendario)=1,CONCATENATE(\"Settimana \",WEEKNUM(GiornoCalendario),\"/Giorno \",GiornoCalendario-DATE(YEAR(GiornoCalendario),1,0)),CONCATENATE(\"Giorno \",GiornoCalendario-DATE(YEAR(GiornoCalendario),1,0)))","v":"Giorno 30"},{"$f":"IF(DAY(GiornoCalendario)=1,CONCATENATE(\"Settimana \",WEEKNUM(GiornoCalendario),\"/Giorno \",GiornoCalendario-DATE(YEAR(GiornoCalendario),1,0)),CONCATENATE(\"Giorno \",GiornoCalendario-DATE(YEAR(GiornoCalendario),1,0)))","v":"Giorno 31"},{"$f":"IF(DAY(GiornoCalendario)=1,CONCATENATE(\"Settimana \",WEEKNUM(GiornoCalendario),\"/Giorno \",GiornoCalendario-DATE(YEAR(GiornoCalendario),1,0)),CONCATENATE(\"Giorno \",GiornoCalendario-DATE(YEAR(GiornoCalendario),1,0)))","v":"Settimana 5/Giorno 32"},{"$f":"IF(DAY(GiornoCalendario)=1,CONCATENATE(\"Settimana \",WEEKNUM(GiornoCalendario),\"/Giorno \",GiornoCalendario-DATE(YEAR(GiornoCalendario),1,0)),CONCATENATE(\"Giorno \",GiornoCalendario-DATE(YEAR(GiornoCalendario),1,0)))","v":"Giorno 33"},{"$f":"IF(DAY(GiornoCalendario)=1,CONCATENATE(\"Settimana \",WEEKNUM(GiornoCalendario),\"/Giorno \",GiornoCalendario-DATE(YEAR(GiornoCalendario),1,0)),CONCATENATE(\"Giorno \",GiornoCalendario-DATE(YEAR(GiornoCalendario),1,0)))","v":"Giorno 34"}]
[]
[null,null,{"$f":"GiorniESettimane+DATE(AnnoCalendario,2,1)-WEEKDAY(DATE(AnnoCalendario,2,1),(InizioSettimana=\"LUN\")+1)+8","v":"2018-02-04"},"2018-02-05","2018-02-06","2018-02-07","2018-02-08","2018-02-09","2018-02-10"]
[null,null,{"$f":"IF(WEEKDAY(GiornoCalendario)=ValoreInizioSettimana,CONCATENATE(\"Settimana \",WEEKNUM(GiornoCalendario),\"/Giorno \",GiornoCalendario-DATE(YEAR(GiornoCalendario),1,0)),CONCATENATE(\"Giorno \",GiornoCalendario-DATE(YEAR(GiornoCalendario),1,0)))","v":"Settimana 6/Giorno 35"},{"$f":"IF(WEEKDAY(GiornoCalendario)=ValoreInizioSettimana,CONCATENATE(\"Settimana \",WEEKNUM(GiornoCalendario),\"/Giorno \",GiornoCalendario-DATE(YEAR(GiornoCalendario),1,0)),CONCATENATE(\"Giorno \",GiornoCalendario-DATE(YEAR(GiornoCalendario),1,0)))","v":"Giorno 36"},{"$f":"IF(WEEKDAY(GiornoCalendario)=ValoreInizioSettimana,CONCATENATE(\"Settimana \",WEEKNUM(GiornoCalendario),\"/Giorno \",GiornoCalendario-DATE(YEAR(GiornoCalendario),1,0)),CONCATENATE(\"Giorno \",GiornoCalendario-DATE(YEAR(GiornoCalendario),1,0)))","v":"Giorno 37"},{"$f":"IF(WEEKDAY(GiornoCalendario)=ValoreInizioSettimana,CONCATENATE(\"Settimana \",WEEKNUM(GiornoCalendario),\"/Giorno \",GiornoCalendario-DATE(YEAR(GiornoCalendario),1,0)),CONCATENATE(\"Giorno \",GiornoCalendario-DATE(YEAR(GiornoCalendario),1,0)))","v":"Giorno 38"},{"$f":"IF(WEEKDAY(GiornoCalendario)=ValoreInizioSettimana,CONCATENATE(\"Settimana \",WEEKNUM(GiornoCalendario),\"/Giorno \",GiornoCalendario-DATE(YEAR(GiornoCalendario),1,0)),CONCATENATE(\"Giorno \",GiornoCalendario-DATE(YEAR(GiornoCalendario),1,0)))","v":"Giorno 39"},{"$f":"IF(WEEKDAY(GiornoCalendario)=ValoreInizioSettimana,CONCATENATE(\"Settimana \",WEEKNUM(GiornoCalendario),\"/Giorno \",GiornoCalendario-DATE(YEAR(GiornoCalendario),1,0)),CONCATENATE(\"Giorno \",GiornoCalendario-DATE(YEAR(GiornoCalendario),1,0)))","v":"Giorno 40"},{"$f":"IF(WEEKDAY(GiornoCalendario)=ValoreInizioSettimana,CONCATENATE(\"Settimana \",WEEKNUM(GiornoCalendario),\"/Giorno \",GiornoCalendario-DATE(YEAR(GiornoCalendario),1,0)),CONCATENATE(\"Giorno \",GiornoCalendario-DATE(YEAR(GiornoCalendario),1,0)))","v":"Giorno 41"}]
[]
[null,null,{"$f":"GiorniESettimane+DATE(AnnoCalendario,2,1)-WEEKDAY(DATE(AnnoCalendario,2,1),(InizioSettimana=\"LUN\")+1)+15","v":"2018-02-11"},"2018-02-12","2018-02-13","2018-02-14","2018-02-15","2018-02-16","2018-02-17"]
[null,null,{"$f":"IF(WEEKDAY(GiornoCalendario)=ValoreInizioSettimana,CONCATENATE(\"Settimana \",WEEKNUM(GiornoCalendario),\"/Giorno \",GiornoCalendario-DATE(YEAR(GiornoCalendario),1,0)),CONCATENATE(\"Giorno \",GiornoCalendario-DATE(YEAR(GiornoCalendario),1,0)))","v":"Settimana 7/Giorno 42"},{"$f":"IF(WEEKDAY(GiornoCalendario)=ValoreInizioSettimana,CONCATENATE(\"Settimana \",WEEKNUM(GiornoCalendario),\"/Giorno \",GiornoCalendario-DATE(YEAR(GiornoCalendario),1,0)),CONCATENATE(\"Giorno \",GiornoCalendario-DATE(YEAR(GiornoCalendario),1,0)))","v":"Giorno 43"},{"$f":"IF(WEEKDAY(GiornoCalendario)=ValoreInizioSettimana,CONCATENATE(\"Settimana \",WEEKNUM(GiornoCalendario),\"/Giorno \",GiornoCalendario-DATE(YEAR(GiornoCalendario),1,0)),CONCATENATE(\"Giorno \",GiornoCalendario-DATE(YEAR(GiornoCalendario),1,0)))","v":"Giorno 44"},{"$f":"IF(WEEKDAY(GiornoCalendario)=ValoreInizioSettimana,CONCATENATE(\"Settimana \",WEEKNUM(GiornoCalendario),\"/Giorno \",GiornoCalendario-DATE(YEAR(GiornoCalendario),1,0)),CONCATENATE(\"Giorno \",GiornoCalendario-DATE(YEAR(GiornoCalendario),1,0)))","v":"Giorno 45"},{"$f":"IF(WEEKDAY(GiornoCalendario)=ValoreInizioSettimana,CONCATENATE(\"Settimana \",WEEKNUM(GiornoCalendario),\"/Giorno \",GiornoCalendario-DATE(YEAR(GiornoCalendario),1,0)),CONCATENATE(\"Giorno \",GiornoCalendario-DATE(YEAR(GiornoCalendario),1,0)))","v":"Giorno 46"},{"$f":"IF(WEEKDAY(GiornoCalendario)=ValoreInizioSettimana,CONCATENATE(\"Settimana \",WEEKNUM(GiornoCalendario),\"/Giorno \",GiornoCalendario-DATE(YEAR(GiornoCalendario),1,0)),CONCATENATE(\"Giorno \",GiornoCalendario-DATE(YEAR(GiornoCalendario),1,0)))","v":"Giorno 47"},{"$f":"IF(WEEKDAY(GiornoCalendario)=ValoreInizioSettimana,CONCATENATE(\"Settimana \",WEEKNUM(GiornoCalendario),\"/Giorno \",GiornoCalendario-DATE(YEAR(GiornoCalendario),1,0)),CONCATENATE(\"Giorno \",GiornoCalendario-DATE(YEAR(GiornoCalendario),1,0)))","v":"Giorno 48"}]
[]
[null,null,{"$f":"GiorniESettimane+DATE(AnnoCalendario,2,1)-WEEKDAY(DATE(AnnoCalendario,2,1),(InizioSettimana=\"LUN\")+1)+22","v":"2018-02-18"},"2018-02-19","2018-02-20","2018-02-21","2018-02-22","2018-02-23","2018-02-24"]
[null,null,{"$f":"IF(WEEKDAY(GiornoCalendario)=ValoreInizioSettimana,CONCATENATE(\"Settimana \",WEEKNUM(GiornoCalendario),\"/Giorno \",GiornoCalendario-DATE(YEAR(GiornoCalendario),1,0)),CONCATENATE(\"Giorno \",GiornoCalendario-DATE(YEAR(GiornoCalendario),1,0)))","v":"Settimana 8/Giorno 49"},{"$f":"IF(WEEKDAY(GiornoCalendario)=ValoreInizioSettimana,CONCATENATE(\"Settimana \",WEEKNUM(GiornoCalendario),\"/Giorno \",GiornoCalendario-DATE(YEAR(GiornoCalendario),1,0)),CONCATENATE(\"Giorno \",GiornoCalendario-DATE(YEAR(GiornoCalendario),1,0)))","v":"Giorno 50"},{"$f":"IF(WEEKDAY(GiornoCalendario)=ValoreInizioSettimana,CONCATENATE(\"Settimana \",WEEKNUM(GiornoCalendario),\"/Giorno \",GiornoCalendario-DATE(YEAR(GiornoCalendario),1,0)),CONCATENATE(\"Giorno \",GiornoCalendario-DATE(YEAR(GiornoCalendario),1,0)))","v":"Giorno 51"},{"$f":"IF(WEEKDAY(GiornoCalendario)=ValoreInizioSettimana,CONCATENATE(\"Settimana \",WEEKNUM(GiornoCalendario),\"/Giorno \",GiornoCalendario-DATE(YEAR(GiornoCalendario),1,0)),CONCATENATE(\"Giorno \",GiornoCalendario-DATE(YEAR(GiornoCalendario),1,0)))","v":"Giorno 52"},{"$f":"IF(WEEKDAY(GiornoCalendario)=ValoreInizioSettimana,CONCATENATE(\"Settimana \",WEEKNUM(GiornoCalendario),\"/Giorno \",GiornoCalendario-DATE(YEAR(GiornoCalendario),1,0)),CONCATENATE(\"Giorno \",GiornoCalendario-DATE(YEAR(GiornoCalendario),1,0)))","v":"Giorno 53"},{"$f":"IF(WEEKDAY(GiornoCalendario)=ValoreInizioSettimana,CONCATENATE(\"Settimana \",WEEKNUM(GiornoCalendario),\"/Giorno \",GiornoCalendario-DATE(YEAR(GiornoCalendario),1,0)),CONCATENATE(\"Giorno \",GiornoCalendario-DATE(YEAR(GiornoCalendario),1,0)))","v":"Giorno 54"},{"$f":"IF(WEEKDAY(GiornoCalendario)=ValoreInizioSettimana,CONCATENATE(\"Settimana \",WEEKNUM(GiornoCalendario),\"/Giorno \",GiornoCalendario-DATE(YEAR(GiornoCalendario),1,0)),CONCATENATE(\"Giorno \",GiornoCalendario-DATE(YEAR(GiornoCalendario),1,0)))","v":"Giorno 55"}]
[]
[null,null,{"$f":"GiorniESettimane+DATE(AnnoCalendario,2,1)-WEEKDAY(DATE(AnnoCalendario,2,1),(InizioSettimana=\"LUN\")+1)+29","v":"2018-02-25"},"2018-02-26","2018-02-27","2018-02-28","2018-03-01","2018-03-02","2018-03-03"]
[null,null,{"$f":"IF(WEEKDAY(GiornoCalendario)=ValoreInizioSettimana,CONCATENATE(\"Settimana \",WEEKNUM(GiornoCalendario),\"/Giorno \",GiornoCalendario-DATE(YEAR(GiornoCalendario),1,0)),CONCATENATE(\"Giorno \",GiornoCalendario-DATE(YEAR(GiornoCalendario),1,0)))","v":"Settimana 9/Giorno 56"},{"$f":"IF(WEEKDAY(GiornoCalendario)=ValoreInizioSettimana,CONCATENATE(\"Settimana \",WEEKNUM(GiornoCalendario),\"/Giorno \",GiornoCalendario-DATE(YEAR(GiornoCalendario),1,0)),CONCATENATE(\"Giorno \",GiornoCalendario-DATE(YEAR(GiornoCalendario),1,0)))","v":"Giorno 57"},{"$f":"IF(WEEKDAY(GiornoCalendario)=ValoreInizioSettimana,CONCATENATE(\"Settimana \",WEEKNUM(GiornoCalendario),\"/Giorno \",GiornoCalendario-DATE(YEAR(GiornoCalendario),1,0)),CONCATENATE(\"Giorno \",GiornoCalendario-DATE(YEAR(GiornoCalendario),1,0)))","v":"Giorno 58"},{"$f":"IF(WEEKDAY(GiornoCalendario)=ValoreInizioSettimana,CONCATENATE(\"Settimana \",WEEKNUM(GiornoCalendario),\"/Giorno \",GiornoCalendario-DATE(YEAR(GiornoCalendario),1,0)),CONCATENATE(\"Giorno \",GiornoCalendario-DATE(YEAR(GiornoCalendario),1,0)))","v":"Giorno 59"},{"$f":"IF(WEEKDAY(GiornoCalendario)=ValoreInizioSettimana,CONCATENATE(\"Settimana \",WEEKNUM(GiornoCalendario),\"/Giorno \",GiornoCalendario-DATE(YEAR(GiornoCalendario),1,0)),CONCATENATE(\"Giorno \",GiornoCalendario-DATE(YEAR(GiornoCalendario),1,0)))","v":"Giorno 60"},{"$f":"IF(WEEKDAY(GiornoCalendario)=ValoreInizioSettimana,CONCATENATE(\"Settimana \",WEEKNUM(GiornoCalendario),\"/Giorno \",GiornoCalendario-DATE(YEAR(GiornoCalendario),1,0)),CONCATENATE(\"Giorno \",GiornoCalendario-DATE(YEAR(GiornoCalendario),1,0)))","v":"Giorno 61"},{"$f":"IF(WEEKDAY(GiornoCalendario)=ValoreInizioSettimana,CONCATENATE(\"Settimana \",WEEKNUM(GiornoCalendario),\"/Giorno \",GiornoCalendario-DATE(YEAR(GiornoCalendario),1,0)),CONCATENATE(\"Giorno \",GiornoCalendario-DATE(YEAR(GiornoCalendario),1,0)))","v":"Giorno 62"}]
[{"$nulls":4},"NOTE"]
[]
[null,null,{"$f":"GiorniESettimane+DATE(AnnoCalendario,2,1)-WEEKDAY(DATE(AnnoCalendario,2,1),(InizioSettimana=\"LUN\")+1)+36","v":"2018-03-04"},"2018-03-05"]
[null,null,{"$f":"IF(WEEKDAY(GiornoCalendario)=ValoreInizioSettimana,CONCATENATE(\"Settimana \",WEEKNUM(GiornoCalendario),\"/Giorno \",GiornoCalendario-DATE(YEAR(GiornoCalendario),1,0)),CONCATENATE(\"Giorno \",GiornoCalendario-DATE(YEAR(GiornoCalendario),1,0)))","v":"Settimana 10/Giorno 63"},{"$f":"IF(WEEKDAY(GiornoCalendario)=ValoreInizioSettimana,CONCATENATE(\"Settimana \",WEEKNUM(GiornoCalendario),\"/Giorno \",GiornoCalendario-DATE(YEAR(GiornoCalendario),1,0)),CONCATENATE(\"Giorno \",GiornoCalendario-DATE(YEAR(GiornoCalendario),1,0)))","v":"Giorno 64"}]

{"sheet":"MAR","index":2,"n_rows":20,"n_cols":9,"rows_kept":20,"merged":[[16,2,17,2],[17,4,19,8]]}
[null,"MAR",{"$f":"UPPER(TEXT(InizioSettimana,\"mmm\"))","v":"DOM"},{"$f":"UPPER(TEXT(D3,\"ggg\"))","v":"LUN"},"MAR","MER","GIO","VEN","SAB"]
[null,{"$f":"AnnoCalendario","v":2018}]
[null,null,{"$f":"GiorniESettimane+DATE(AnnoCalendario,3,1)-WEEKDAY(DATE(AnnoCalendario,3,1),(InizioSettimana=\"LUN\")+1)+1","v":"2018-02-25"},"2018-02-26","2018-02-27","2018-02-28","2018-03-01","2018-03-02","2018-03-03"]
[null,null,{"$f":"IF(DAY(GiornoCalendario)=1,CONCATENATE(\"Settimana \",WEEKNUM(GiornoCalendario),\"/Giorno \",GiornoCalendario-DATE(YEAR(GiornoCalendario),1,0)),CONCATENATE(\"Giorno \",GiornoCalendario-DATE(YEAR(GiornoCalendario),1,0)))","v":"Giorno 56"},{"$f":"IF(DAY(GiornoCalendario)=1,CONCATENATE(\"Settimana \",WEEKNUM(GiornoCalendario),\"/Giorno \",GiornoCalendario-DATE(YEAR(GiornoCalendario),1,0)),CONCATENATE(\"Giorno \",GiornoCalendario-DATE(YEAR(GiornoCalendario),1,0)))","v":"Giorno 57"},{"$f":"IF(DAY(GiornoCalendario)=1,CONCATENATE(\"Settimana \",WEEKNUM(GiornoCalendario),\"/Giorno \",GiornoCalendario-DATE(YEAR(GiornoCalendario),1,0)),CONCATENATE(\"Giorno \",GiornoCalendario-DATE(YEAR(GiornoCalendario),1,0)))","v":"Giorno 58"},{"$f":"IF(DAY(GiornoCalendario)=1,CONCATENATE(\"Settimana \",WEEKNUM(GiornoCalendario),\"/Giorno \",GiornoCalendario-DATE(YEAR(GiornoCalendario),1,0)),CONCATENATE(\"Giorno \",GiornoCalendario-DATE(YEAR(GiornoCalendario),1,0)))","v":"Giorno 59"},{"$f":"IF(DAY(GiornoCalendario)=1,CONCATENATE(\"Settimana \",WEEKNUM(GiornoCalendario),\"/Giorno \",GiornoCalendario-DATE(YEAR(GiornoCalendario),1,0)),CONCATENATE(\"Giorno \",GiornoCalendario-DATE(YEAR(GiornoCalendario),1,0)))","v":"Settimana 9/Giorno 60"},{"$f":"IF(DAY(GiornoCalendario)=1,CONCATENATE(\"Settimana \",WEEKNUM(GiornoCalendario),\"/Giorno \",GiornoCalendario-DATE(YEAR(GiornoCalendario),1,0)),CONCATENATE(\"Giorno \",GiornoCalendario-DATE(YEAR(GiornoCalendario),1,0)))","v":"Giorno 61"},{"$f":"IF(DAY(GiornoCalendario)=1,CONCATENATE(\"Settimana \",WEEKNUM(GiornoCalendario),\"/Giorno \",GiornoCalendario-DATE(YEAR(GiornoCalendario),1,0)),CONCATENATE(\"Giorno \",GiornoCalendario-DATE(YEAR(GiornoCalendario),1,0)))","v":"Giorno 62"}]
[]
[null,null,{"$f":"GiorniESettimane+DATE(AnnoCalendario,3,1)-WEEKDAY(DATE(AnnoCalendario,3,1),(InizioSettimana=\"LUN\")+1)+8","v":"2018-03-04"},"2018-03-05","2018-03-06","2018-03-07","2018-03-08","2018-03-09","2018-03-10"]
[null,null,{"$f":"IF(WEEKDAY(GiornoCalendario)=ValoreInizioSettimana,CONCATENATE(\"Settimana \",WEEKNUM(GiornoCalendario),\"/Giorno \",GiornoCalendario-DATE(YEAR(GiornoCalendario),1,0)),CONCATENATE(\"Giorno \",GiornoCalendario-DATE(YEAR(GiornoCalendario),1,0)))","v":"Settimana 10/Giorno 63"},{"$f":"IF(WEEKDAY(GiornoCalendario)=ValoreInizioSettimana,CONCATENATE(\"Settimana \",WEEKNUM(GiornoCalendario),\"/Giorno \",GiornoCalendario-DATE(YEAR(GiornoCalendario),1,0)),CONCATENATE(\"Giorno \",GiornoCalendario-DATE(YEAR(GiornoCalendario),1,0)))","v":"Giorno 64"},{"$f":"IF(WEEKDAY(GiornoCalendario)=ValoreInizioSettimana,CONCATENATE(\"Settimana \",WEEKNUM(GiornoCalendario),\"/Giorno \",GiornoCalendario-DATE(YEAR(GiornoCalendario),1,0)),CONCATENATE(\"Giorno \",GiornoCalendario-DATE(YEAR(GiornoCalendario),1,0)))","v":"Giorno 65"},{"$f":"IF(WEEKDAY(GiornoCalendario)=ValoreInizioSettimana,CONCATENATE(\"Settimana \",WEEKNUM(GiornoCalendario),\"/Giorno \",GiornoCalendario-DATE(YEAR(GiornoCalendario),1,0)),CONCATENATE(\"Giorno \",GiornoCalendario-DATE(YEAR(GiornoCalendario),1,0)))","v":"Giorno 66"},{"$f":"IF(WEEKDAY(GiornoCalendario)=ValoreInizioSettimana,CONCATENATE(\"Settimana \",WEEKNUM(GiornoCalendario),\"/Giorno \",GiornoCalendario-DATE(YEAR(GiornoCalendario),1,0)),CONCATENATE(\"Giorno \",GiornoCalendario-DATE(YEAR(GiornoCalendario),1,0)))","v":"Giorno 67"},{"$f":"IF(WEEKDAY(GiornoCalendario)=ValoreInizioSettimana,CONCATENATE(\"Settimana \",WEEKNUM(GiornoCalendario),\"/Giorno \",GiornoCalendario-DATE(YEAR(GiornoCalendario),1,0)),CONCATENATE(\"Giorno \",GiornoCalendario-DATE(YEAR(GiornoCalendario),1,0)))","v":"Giorno 68"},{"$f":"IF(WEEKDAY(GiornoCalendario)=ValoreInizioSettimana,CONCATENATE(\"Settimana \",WEEKNUM(GiornoCalendario),\"/Giorno \",GiornoCalendario-DATE(YEAR(GiornoCalendario),1,0)),CONCATENATE(\"Giorno \",GiornoCalendario-DATE(YEAR(GiornoCalendario),1,0)))","v":"Giorno 69"}]
[]
[null,null,{"$f":"GiorniESettimane+DATE(AnnoCalendario,3,1)-WEEKDAY(DATE(AnnoCalendario,3,1),(InizioSettimana=\"LUN\")+1)+15","v":"2018-03-11"},"2018-03-12","2018-03-13","2018-03-14","2018-03-15","2018-03-16","2018-03-17"]
[null,null,{"$f":"IF(WEEKDAY(GiornoCalendario)=ValoreInizioSettimana,CONCATENATE(\"Settimana \",WEEKNUM(GiornoCalendario),\"/Giorno \",GiornoCalendario-DATE(YEAR(GiornoCalendario),1,0)),CONCATENATE(\"Giorno \",GiornoCalendario-DATE(YEAR(GiornoCalendario),1,0)))","v":"Settimana 11/Giorno 70"},{"$f":"IF(WEEKDAY(GiornoCalendario)=ValoreInizioSettimana,CONCATENATE(\"Settimana \",WEEKNUM(GiornoCalendario),\"/Giorno \",GiornoCalendario-DATE(YEAR(GiornoCalendario),1,0)),CONCATENATE(\"Giorno \",GiornoCalendario-DATE(YEAR(GiornoCalendario),1,0)))","v":"Giorno 71"},{"$f":"IF(WEEKDAY(GiornoCalendario)=ValoreInizioSettimana,CONCATENATE(\"Settimana \",WEEKNUM(GiornoCalendario),\"/Giorno \",GiornoCalendario-DATE(YEAR(GiornoCalendario),1,0)),CONCATENATE(\"Giorno \",GiornoCalendario-DATE(YEAR(GiornoCalendario),1,0)))","v":"Giorno 72"},{"$f":"IF(WEEKDAY(GiornoCalendario)=ValoreInizioSettimana,CONCATENATE(\"Settimana \",WEEKNUM(GiornoCalendario),\"/Giorno \",GiornoCalendario-DATE(YEAR(GiornoCalendario),1,0)),CONCATENATE(\"Giorno \",GiornoCalendario-DATE(YEAR(GiornoCalendario),1,0)))","v":"Giorno 73"},{"$f":"IF(WEEKDAY(GiornoCalendario)=ValoreInizioSettimana,CONCATENATE(\"Settimana \",WEEKNUM(GiornoCalendario),\"/Giorno \",GiornoCalendario-DATE(YEAR(GiornoCalendario),1,0)),CONCATENATE(\"Giorno \",GiornoCalendario-DATE(YEAR(GiornoCalendario),1,0)))","v":"Giorno 74"},{"$f":"IF(WEEKDAY(GiornoCalendario)=ValoreInizioSettimana,CONCATENATE(\"Settimana \",WEEKNUM(GiornoCalendario),\"/Giorno \",GiornoCalendario-DATE(YEAR(GiornoCalendario),1,0)),CONCATENATE(\"Giorno \",GiornoCalendario-DATE(YEAR(GiornoCalendario),1,0)))","v":"Giorno 75"},{"$f":"IF(WEEKDAY(GiornoCalendario)=ValoreInizioSettimana,CONCATENATE(\"Settimana \",WEEKNUM(GiornoCalendario),\"/Giorno \",GiornoCalendario-DATE(YEAR(GiornoCalendario),1,0)),CONCATENATE(\"Giorno \",GiornoCalendario-DATE(YEAR(GiornoCalendario),1,0)))","v":"Giorno 76"}]
[]
[null,null,{"$f":"GiorniESettimane+DATE(AnnoCalendario,3,1)-WEEKDAY(DATE(AnnoCalendario,3,1),(InizioSettimana=\"LUN\")+1)+22","v":"2018-03-18"},"2018-03-19","2018-03-20","2018-03-21","2018-03-22","2018-03-23","2018-03-24"]
[null,null,{"$f":"IF(WEEKDAY(GiornoCalendario)=ValoreInizioSettimana,CONCATENATE(\"Settimana \",WEEKNUM(GiornoCalendario),\"/Giorno \",GiornoCalendario-DATE(YEAR(GiornoCalendario),1,0)),CONCATENATE(\"Giorno \",GiornoCalendario-DATE(YEAR(GiornoCalendario),1,0)))","v":"Settimana 12/Giorno 77"},{"$f":"IF(WEEKDAY(GiornoCalendario)=ValoreInizioSettimana,CONCATENATE(\"Settimana \",WEEKNUM(GiornoCalendario),\"/Giorno \",GiornoCalendario-DATE(YEAR(GiornoCalendario),1,0)),CONCATENATE(\"Giorno \",GiornoCalendario-DATE(YEAR(GiornoCalendario),1,0)))","v":"Giorno 78"},{"$f":"IF(WEEKDAY(GiornoCalendario)=ValoreInizioSettimana,CONCATENATE(\"Settimana \",WEEKNUM(GiornoCalendario),\"/Giorno \",GiornoCalendario-DATE(YEAR(GiornoCalendario),1,0)),CONCATENATE(\"Giorno \",GiornoCalendario-DATE(YEAR(GiornoCalendario),1,0)))","v":"Giorno 79"},{"$f":"IF(WEEKDAY(GiornoCalendario)=ValoreInizioSettimana,CONCATENATE(\"Settimana \",WEEKNUM(GiornoCalendario),\"/Giorno \",GiornoCalendario-DATE(YEAR(GiornoCalendario),1,0)),CONCATENATE(\"Giorno \",GiornoCalendario-DATE(YEAR(GiornoCalendario),1,0)))","v":"Giorno 80"},{"$f":"IF(WEEKDAY(GiornoCalendario)=ValoreInizioSettimana,CONCATENATE(\"Settimana \",WEEKNUM(GiornoCalendario),\"/Giorno \",GiornoCalendario-DATE(YEAR(GiornoCalendario),1,0)),CONCATENATE(\"Giorno \",GiornoCalendario-DATE(YEAR(GiornoCalendario),1,0)))","v":"Giorno 81"},{"$f":"IF(WEEKDAY(GiornoCalendario)=ValoreInizioSettimana,CONCATENATE(\"Settimana \",WEEKNUM(GiornoCalendario),\"/Giorno \",GiornoCalendario-DATE(YEAR(GiornoCalendario),1,0)),CONCATENATE(\"Giorno \",GiornoCalendario-DATE(YEAR(GiornoCalendario),1,0)))","v":"Giorno 82"},{"$f":"IF(WEEKDAY(GiornoCalendario)=ValoreInizioSettimana,CONCATENATE(\"Settimana \",WEEKNUM(GiornoCalendario),\"/Giorno \",GiornoCalendario-DATE(YEAR(GiornoCalendario),1,0)),CONCATENATE(\"Giorno \",GiornoCalendario-DATE(YEAR(GiornoCalendario),1,0)))","v":"Giorno 83"}]
[]
[null,null,{"$f":"GiorniESettimane+DATE(AnnoCalendario,3,1)-WEEKDAY(DATE(AnnoCalendario,3,1),(InizioSettimana=\"LUN\")+1)+29","v":"2018-03-25"},"2018-03-26","2018-03-27","2018-03-28","2018-03-29","2018-03-30","2018-03-31"]
[null,null,{"$f":"IF(WEEKDAY(GiornoCalendario)=ValoreInizioSettimana,CONCATENATE(\"Settimana \",WEEKNUM(GiornoCalendario),\"/Giorno \",GiornoCalendario-DATE(YEAR(GiornoCalendario),1,0)),CONCATENATE(\"Giorno \",GiornoCalendario-DATE(YEAR(GiornoCalendario),1,0)))","v":"Settimana 13/Giorno 84"},{"$f":"IF(WEEKDAY(GiornoCalendario)=ValoreInizioSettimana,CONCATENATE(\"Settimana \",WEEKNUM(GiornoCalendario),\"/Giorno \",GiornoCalendario-DATE(YEAR(GiornoCalendario),1,0)),CONCATENATE(\"Giorno \",GiornoCalendario-DATE(YEAR(GiornoCalendario),1,0)))","v":"Giorno 85"},{"$f":"IF(WEEKDAY(GiornoCalendario)=ValoreInizioSettimana,CONCATENATE(\"Settimana \",WEEKNUM(GiornoCalendario),\"/Giorno \",GiornoCalendario-DATE(YEAR(GiornoCalendario),1,0)),CONCATENATE(\"Giorno \",GiornoCalendario-DATE(YEAR(GiornoCalendario),1,0)))","v":"Giorno 86"},{"$f":"IF(WEEKDAY(GiornoCalendario)=ValoreInizioSettimana,CONCATENATE(\"Settimana \",WEEKNUM(GiornoCalendario),\"/Giorno \",GiornoCalendario-DATE(YEAR(GiornoCalendario),1,0)),CONCATENATE(\"Giorno \",GiornoCalendario-DATE(YEAR(GiornoCalendario),1,0)))","v":"Giorno 87"},{"$f":"IF(WEEKDAY(GiornoCalendario)=ValoreInizioSettimana,CONCATENATE(\"Settimana \",WEEKNUM(GiornoCalendario),\"/Giorno \",GiornoCalendario-DATE(YEAR(GiornoCalendario),1,0)),CONCATENATE(\"Giorno \",GiornoCalendario-DATE(YEAR(GiornoCalendario),1,0)))","v":"Giorno 88"},{"$f":"IF(WEEKDAY(GiornoCalendario)=ValoreInizioSettimana,CONCATENATE(\"Settimana \",WEEKNUM(GiornoCalendario),\"/Giorno \",GiornoCalendario-DATE(YEAR(GiornoCalendario),1,0)),CONCATENATE(\"Giorno \",GiornoCalendario-DATE(YEAR(GiornoCalendario),1,0)))","v":"Giorno 89"},{"$f":"IF(WEEKDAY(GiornoCalendario)=ValoreInizioSettimana,CONCATENATE(\"Settimana \",WEEKNUM(GiornoCalendario),\"/Giorno \",GiornoCalendario-DATE(YEAR(GiornoCalendario),1,0)),CONCATENATE(\"Giorno \",GiornoCalendario-DATE(YEAR(GiornoCalendario),1,0)))","v":"Giorno 90"}]
[{"$nulls":4},"NOTE"]
[]
[null,null,{"$f":"GiorniESettimane+DATE(AnnoCalendario,3,1)-WEEKDAY(DATE(AnnoCalendario,3,1),(InizioSettimana=\"LUN\")+1)+36","v":"2018-04-01"},"2018-04-02"]
[null,null,{"$f":"IF(WEEKDAY(GiornoCalendario)=ValoreInizioSettimana,CONCATENATE(\"Settimana \",WEEKNUM(GiornoCalendario),\"/Giorno \",GiornoCalendario-DATE(YEAR(GiornoCalendario),1,0)),CONCATENATE(\"Giorno \",GiornoCalendario-DATE(YEAR(GiornoCalendario),1,0)))","v":"Settimana 14/Giorno 91"},{"$f":"IF(WEEKDAY(GiornoCalendario)=ValoreInizioSettimana,CONCATENATE(\"Settimana \",WEEKNUM(GiornoCalendario),\"/Giorno \",GiornoCalendario-DATE(YEAR(GiornoCalendario),1,0)),CONCATENATE(\"Giorno \",GiornoCalendario-DATE(YEAR(GiornoCalendario),1,0)))","v":"Giorno 92"}]

{"sheet":"APR","index":3,"n_rows":20,"n_cols":9,"rows_kept":20,"merged":[[16,2,17,2],[17,4,19,8]]}
[null,"APR",{"$f":"UPPER(TEXT(InizioSettimana,\"mmm\"))","v":"DOM"},{"$f":"UPPER(TEXT(D3,\"ggg\"))","v":"LUN"},"MAR","MER","GIO","VEN","SAB"]
[null,{"$f":"AnnoCalendario","v":2018}]
[null,null,{"$f":"GiorniESettimane+DATE(AnnoCalendario,4,1)-WEEKDAY(DATE(AnnoCalendario,4,1),(InizioSettimana=\"LUN\")+1)+1","v":"2018-04-01"},"2018-04-02","2018-04-03","2018-04-04","2018-04-05","2018-04-06","2018-04-07"]
[null,null,{"$f":"IF(DAY(GiornoCalendario)=1,CONCATENATE(\"Settimana \",WEEKNUM(GiornoCalendario),\"/Giorno \",GiornoCalendario-DATE(YEAR(GiornoCalendario),1,0)),CONCATENATE(\"Giorno \",GiornoCalendario-DATE(YEAR(GiornoCalendario),1,0)))","v":"Settimana 14/Giorno 91"},{"$f":"IF(DAY(GiornoCalendario)=1,CONCATENATE(\"Settimana \",WEEKNUM(GiornoCalendario),\"/Giorno \",GiornoCalendario-DATE(YEAR(GiornoCalendario),1,0)),CONCATENATE(\"Giorno \",GiornoCalendario-DATE(YEAR(GiornoCalendario),1,0)))","v":"Giorno 92"},{"$f":"IF(DAY(GiornoCalendario)=1,CONCATENATE(\"Settimana \",WEEKNUM(GiornoCalendario),\"/Giorno \",GiornoCalendario-DATE(YEAR(GiornoCalendario),1,0)),CONCATENATE(\"Giorno \",GiornoCalendario-DATE(YEAR(GiornoCalendario),1,0)))","v":"Giorno 93"},{"$f":"IF(DAY(GiornoCalendario)=1,CONCATENATE(\"Settimana \",WEEKNUM(GiornoCalendario),\"/Giorno \",GiornoCalendario-DATE(YEAR(GiornoCalendario),1,0)),CONCATENATE(\"Giorno \",GiornoCalendario-DATE(YEAR(GiornoCalendario),1,0)))","v":"Giorno 94"},{"$f":"IF(DAY(GiornoCalendario)=1,CONCATENATE(\"Settimana \",WEEKNUM(GiornoCalendario),\"/Giorno \",GiornoCalendario-DATE(YEAR(GiornoCalendario),1,0)),CONCATENATE(\"Giorno \",GiornoCalendario-DATE(YEAR(GiornoCalendario),1,0)))","v":"Giorno 95"},{"$f":"IF(DAY(GiornoCalendario)=1,CONCATENATE(\"Settimana \",WEEKNUM(GiornoCalendario),\"/Giorno \",GiornoCalendario-DATE(YEAR(GiornoCalendario),1,0)),CONCATENATE(\"Giorno \",GiornoCalendario-DATE(YEAR(GiornoCalendario),1,0)))","v":"Giorno 96"},{"$f":"IF(DAY(GiornoCalendario)=1,CONCATENATE(\"Settimana \",WEEKNUM(GiornoCalendario),\"/Giorno \",GiornoCalendario-DATE(YEAR(GiornoCalendario),1,0)),CONCATENATE(\"Giorno \",GiornoCalendario-DATE(YEAR(GiornoCalendario),1,0)))","v":"Giorno 97"}]
[]
[null,null,{"$f":"GiorniESettimane+DATE(AnnoCalendario,4,1)-WEEKDAY(DATE(AnnoCalendario,4,1),(InizioSettimana=\"LUN\")+1)+8","v":"2018-04-08"},"2018-04-09","2018-04-10","2018-04-11","2018-04-12","2018-04-13","2018-04-14"]
[null,null,{"$f":"IF(WEEKDAY(GiornoCalendario)=ValoreInizioSettimana,CONCATENATE(\"Settimana \",WEEKNUM(GiornoCalendario),\"/Giorno \",GiornoCalendario-DATE(YEAR(GiornoCalendario),1,0)),CONCATENATE(\"Giorno \",GiornoCalendario-DATE(YEAR(GiornoCalendario),1,0)))","v":"Settimana 15/Giorno 98"},{"$f":"IF(WEEKDAY(GiornoCalendario)=ValoreInizioSettimana,CONCATENATE(\"Settimana \",WEEKNUM(GiornoCalendario),\"/Giorno \",GiornoCalendario-DATE(YEAR(GiornoCalendario),1,0)),CONCATENATE(\"Giorno \",GiornoCalendario-DATE(YEAR(GiornoCalendario),1,0)))","v":"Giorno 99"},{"$f":"IF(WEEKDAY(GiornoCalendario)=ValoreInizioSettimana,CONCATENATE(\"Settimana \",WEEKNUM(GiornoCalendario),\"/Giorno \",GiornoCalendario-DATE(YEAR(GiornoCalendario),1,0)),CONCATENATE(\"Giorno \",GiornoCalendario-DATE(YEAR(GiornoCalendario),1,0)))","v":"Giorno 100"},{"$f":"IF(WEEKDAY(GiornoCalendario)=ValoreInizioSettimana,CONCATENATE(\"Settimana \",WEEKNUM(GiornoCalendario),\"/Giorno \",GiornoCalendario-DATE(YEAR(GiornoCalendario),1,0)),CONCATENATE(\"Giorno \",GiornoCalendario-DATE(YEAR(GiornoCalendario),1,0)))","v":"Giorno 101"},{"$f":"IF(WEEKDAY(GiornoCalendario)=ValoreInizioSettimana,CONCATENATE(\"Settimana \",WEEKNUM(GiornoCalendario),\"/Giorno \",GiornoCalendario-DATE(YEAR(GiornoCalendario),1,0)),CONCATENATE(\"Giorno \",GiornoCalendario-DATE(YEAR(GiornoCalendario),1,0)))","v":"Giorno 102"},{"$f":"IF(WEEKDAY(GiornoCalendario)=ValoreInizioSettimana,CONCATENATE(\"Settimana \",WEEKNUM(GiornoCalendario),\"/Giorno \",GiornoCalendario-DATE(YEAR(GiornoCalendario),1,0)),CONCATENATE(\"Giorno \",GiornoCalendario-DATE(YEAR(GiornoCalendario),1,0)))","v":"Giorno 103"},{"$f":"IF(WEEKDAY(GiornoCalendario)=ValoreInizioSettimana,CONCATENATE(\"Settimana \",WEEKNUM(GiornoCalendario),\"/Giorno \",GiornoCalendario-DATE(YEAR(GiornoCalendario),1,0)),CONCATENATE(\"Giorno \",GiornoCalendario-DATE(YEAR(GiornoCalendario),1,0)))","v":"Giorno 104"}]
[]
[null,null,{"$f":"GiorniESettimane+DATE(AnnoCalendario,4,1)-WEEKDAY(DATE(AnnoCalendario,4,1),(InizioSettimana=\"LUN\")+1)+15","v":"2018-04-15"},"2018-04-16","2018-04-17","2018-04-18","2018-04-19","2018-04-20","2018-04-21"]
[null,null,{"$f":"IF(WEEKDAY(GiornoCalendario)=ValoreInizioSettimana,CONCATENATE(\"Settimana \",WEEKNUM(GiornoCalendario),\"/Giorno \",GiornoCalendario-DATE(YEAR(GiornoCalendario),1,0)),CONCATENATE(\"Giorno \",GiornoCalendario-DATE(YEAR(GiornoCalendario),1,0)))","v":"Settimana 16/Giorno 105"},{"$f":"IF(WEEKDAY(GiornoCalendario)=ValoreInizioSettimana,CONCATENATE(\"Settimana \",WEEKNUM(GiornoCalendario),\"/Giorno \",GiornoCalendario-DATE(YEAR(GiornoCalendario),1,0)),CONCATENATE(\"Giorno \",GiornoCalendario-DATE(YEAR(GiornoCalendario),1,0)))","v":"Giorno 106"},{"$f":"IF(WEEKDAY(GiornoCalendario)=ValoreInizioSettimana,CONCATENATE(\"Settimana \",WEEKNUM(GiornoCalendario),\"/Giorno \",GiornoCalendario-DATE(YEAR(GiornoCalendario),1,0)),CONCATENATE(\"Giorno \",GiornoCalendario-DATE(YEAR(GiornoCalendario),1,0)))","v":"Giorno 107"},{"$f":"IF(WEEKDAY(GiornoCalendario)=ValoreInizioSettimana,CONCATENATE(\"Settimana \",WEEKNUM(GiornoCalendario),\"/Giorno \",GiornoCalendario-DATE(YEAR(GiornoCalendario),1,0)),CONCATENATE(\"Giorno \",GiornoCalendario-DATE(YEAR(GiornoCalendario),1,0)))","v":"Giorno 108"},{"$f":"IF(WEEKDAY(GiornoCalendario)=ValoreInizioSettimana,CONCATENATE(\"Settimana \",WEEKNUM(GiornoCalendario),\"/Giorno \",GiornoCalendario-DATE(YEAR(GiornoCalendario),1,0)),CONCATENATE(\"Giorno \",GiornoCalendario-DATE(YEAR(GiornoCalendario),1,0)))","v":"Giorno 109"},{"$f":"IF(WEEKDAY(GiornoCalendario)=ValoreInizioSettimana,CONCATENATE(\"Settimana \",WEEKNUM(GiornoCalendario),\"/Giorno \",GiornoCalendario-DATE(YEAR(GiornoCalendario),1,0)),CONCATENATE(\"Giorno \",GiornoCalendario-DATE(YEAR(GiornoCalendario),1,0)))","v":"Giorno 110"},{"$f":"IF(WEEKDAY(GiornoCalendario)=ValoreInizioSettimana,CONCATENATE(\"Settimana \",WEEKNUM(GiornoCalendario),\"/Giorno \",GiornoCalendario-DATE(YEAR(GiornoCalendario),1,0)),CONCATENATE(\"Giorno \",GiornoCalendario-DATE(YEAR(GiornoCalendario),1,0)))","v":"Giorno 111"}]
[]
[null,null,{"$f":"GiorniESettimane+DATE(AnnoCalendario,4,1)-WEEKDAY(DATE(AnnoCalendario,4,1),(InizioSettimana=\"LUN\")+1)+22","v":"2018-04-22"},"2018-04-23","2018-04-24","2018-04-25","2018-04-26","2018-04-27","2018-04-28"]
[null,null,{"$f":"IF(WEEKDAY(GiornoCalendario)=ValoreInizioSettimana,CONCATENATE(\"Settimana \",WEEKNUM(GiornoCalendario),\"/Giorno \",GiornoCalendario-DATE(YEAR(GiornoCalendario),1,0)),CONCATENATE(\"Giorno \",GiornoCalendario-DATE(YEAR(GiornoCalendario),1,0)))","v":"Settimana 17/Giorno 112"},{"$f":"IF(WEEKDAY(GiornoCalendario)=ValoreInizioSettimana,CONCATENATE(\"Settimana \",WEEKNUM(GiornoCalendario),\"/Giorno \",GiornoCalendario-DATE(YEAR(GiornoCalendario),1,0)),CONCATENATE(\"Giorno \",GiornoCalendario-DATE(YEAR(GiornoCalendario),1,0)))","v":"Giorno 113"},{"$f":"IF(WEEKDAY(GiornoCalendario)=ValoreInizioSettimana,CONCATENATE(\"Settimana \",WEEKNUM(GiornoCalendario),\"/Giorno \",GiornoCalendario-DATE(YEAR(GiornoCalendario),1,0)),CONCATENATE(\"Giorno \",GiornoCalendario-DATE(YEAR(GiornoCalendario),1,0)))","v":"Giorno 114"},{"$f":"IF(WEEKDAY(GiornoCalendario)=ValoreInizioSettimana,CONCATENATE(\"Settimana \",WEEKNUM(GiornoCalendario),\"/Giorno \",GiornoCalendario-DATE(YEAR(GiornoCalendario),1,0)),CONCATENATE(\"Giorno \",GiornoCalendario-DATE(YEAR(GiornoCalendario),1,0)))","v":"Giorno 115"},{"$f":"IF(WEEKDAY(GiornoCalendario)=ValoreInizioSettimana,CONCATENATE(\"Settimana \",WEEKNUM(GiornoCalendario),\"/Giorno \",GiornoCalendario-DATE(YEAR(GiornoCalendario),1,0)),CONCATENATE(\"Giorno \",GiornoCalendario-DATE(YEAR(GiornoCalendario),1,0)))","v":"Giorno 116"},{"$f":"IF(WEEKDAY(GiornoCalendario)=ValoreInizioSettimana,CONCATENATE(\"Settimana \",WEEKNUM(GiornoCalendario),\"/Giorno \",GiornoCalendario-DATE(YEAR(GiornoCalendario),1,0)),CONCATENATE(\"Giorno \",GiornoCalendario-DATE(YEAR(GiornoCalendario),1,0)))","v":"Giorno 117"},{"$f":"IF(WEEKDAY(GiornoCalendario)=ValoreInizioSettimana,CONCATENATE(\"Settimana \",WEEKNUM(GiornoCalendario),\"/Giorno \",GiornoCalendario-DATE(YEAR(GiornoCalendario),1,0)),CONCATENATE(\"Giorno \",GiornoCalendario-DATE(YEAR(GiornoCalendario),1,0)))","v":"Giorno 118"}]
[]
[null,null,{"$f":"GiorniESettimane+DATE(AnnoCalendario,4,1)-WEEKDAY(DATE(AnnoCalendario,4,1),(InizioSettimana=\"LUN\")+1)+29","v":"2018-04-29"},"2018-04-30","2018-05-01","2018-05-02","2018-05-03","2018-05-04","2018-05-05"]
[null,null,{"$f":"IF(WEEKDAY(GiornoCalendario)=ValoreInizioSettimana,CONCATENATE(\"Settimana \",WEEKNUM(GiornoCalendario),\"/Giorno \",GiornoCalendario-DATE(YEAR(GiornoCalendario),1,0)),CONCATENATE(\"Giorno \",GiornoCalendario-DATE(YEAR(GiornoCalendario),1,0)))","v":"Settimana 18/Giorno 119"},{"$f":"IF(WEEKDAY(GiornoCalendario)=ValoreInizioSettimana,CONCATENATE(\"Settimana \",WEEKNUM(GiornoCalendario),\"/Giorno \",GiornoCalendario-DATE(YEAR(GiornoCalendario),1,0)),CONCATENATE(\"Giorno \",GiornoCalendario-DATE(YEAR(GiornoCalendario),1,0)))","v":"Giorno 120"},{"$f":"IF(WEEKDAY(GiornoCalendario)=ValoreInizioSettimana,CONCATENATE(\"Settimana \",WEEKNUM(GiornoCalendario),\"/Giorno \",GiornoCalendario-DATE(YEAR(GiornoCalendario),1,0)),CONCATENATE(\"Giorno \",GiornoCalendario-DATE(YEAR(GiornoCalendario),1,0)))","v":"Giorno 121"},{"$f":"IF(WEEKDAY(GiornoCalendario)=ValoreInizioSettimana,CONCATENATE(\"Settimana \",WEEKNUM(GiornoCalendario),\"/Giorno \",GiornoCalendario-DATE(YEAR(GiornoCalendario),1,0)),CONCATENATE(\"Giorno \",GiornoCalendario-DATE(YEAR(GiornoCalendario),1,0)))","v":"Giorno 122"},{"$f":"IF(WEEKDAY(GiornoCalendario)=ValoreInizioSettimana,CONCATENATE(\"Settimana \",WEEKNUM(GiornoCalendario),\"/Giorno \",GiornoCalendario-DATE(YEAR(GiornoCalendario),1,0)),CONCATENATE(\"Giorno \",GiornoCalendario-DATE(YEAR(GiornoCalendario),1,0)))","v":"Giorno 123"},{"$f":"IF(WEEKDAY(GiornoCalendario)=ValoreInizioSettimana,CONCATENATE(\"Settimana \",WEEKNUM(GiornoCalendario),\"/Giorno \",GiornoCalendario-DATE(YEAR(GiornoCalendario),1,0)),CONCATENATE(\"Giorno \",GiornoCalendario-DATE(YEAR(GiornoCalendario),1,0)))","v":"Giorno 124"},{"$f":"IF(WEEKDAY(GiornoCalendario)=ValoreInizioSettimana,CONCATENATE(\"Settimana \",WEEKNUM(GiornoCalendario),\"/Giorno \",GiornoCalendario-DATE(YEAR(GiornoCalendario),1,0)),CONCATENATE(\"Giorno \",GiornoCalendario-DATE(YEAR(GiornoCalendario),1,0)))","v":"Giorno 125"}]
[{"$nulls":4},"NOTE"]
[]
[null,null,{"$f":"GiorniESettimane+DATE(AnnoCalendario,4,1)-WEEKDAY(DATE(AnnoCalendario,4,1),(InizioSettimana=\"LUN\")+1)+36","v":"2018-05-06"},"2018-05-07"]
[null,null,{"$f":"IF(WEEKDAY(GiornoCalendario)=ValoreInizioSettimana,CONCATENATE(\"Settimana \",WEEKNUM(GiornoCalendario),\"/Giorno \",GiornoCalendario-DATE(YEAR(GiornoCalendario),1,0)),CONCATENATE(\"Giorno \",GiornoCalendario-DATE(YEAR(GiornoCalendario),1,0)))","v":"Settimana 19/Giorno 126"},{"$f":"IF(WEEKDAY(GiornoCalendario)=ValoreInizioSettimana,CONCATENATE(\"Settimana \",WEEKNUM(GiornoCalendario),\"/Giorno \",GiornoCalendario-DATE(YEAR(GiornoCalendario),1,0)),CONCATENATE(\"Giorno \",GiornoCalendario-DATE(YEAR(GiornoCalendario),1,0)))","v":"Giorno 127"}]

{"sheet":"MAG","index":4,"n_rows":20,"n_cols":9,"rows_kept":20,"merged":[[16,2,17,2],[17,4,19,8]]}
[null,"MAG",{"$f":"UPPER(TEXT(InizioSettimana,\"mmm\"))","v":"DOM"},{"$f":"UPPER(TEXT(D3,\"ggg\"))","v":"LUN"},"MAR","MER","GIO","VEN","SAB"]
[null,{"$f":"AnnoCalendario","v":2018}]
[null,null,{"$f":"GiorniESettimane+DATE(AnnoCalendario,5,1)-WEEKDAY(DATE(AnnoCalendario,5,1),(InizioSettimana=\"LUN\")+1)+1","v":"2018-04-29"},"2018-04-30","2018-05-01","2018-05-02","2018-05-03","2018-05-04","2018-05-05"]
[null,null,{"$f":"IF(DAY(GiornoCalendario)=1,CONCATENATE(\"Settimana \",WEEKNUM(GiornoCalendario),\"/Giorno \",GiornoCalendario-DATE(YEAR(GiornoCalendario),1,0)),CONCATENATE(\"Giorno \",GiornoCalendario-DATE(YEAR(GiornoCalendario),1,0)))","v":"Giorno 119"},{"$f":"IF(DAY(GiornoCalendario)=1,CONCATENATE(\"Settimana \",WEEKNUM(GiornoCalendario),\"/Giorno \",GiornoCalendario-DATE(YEAR(GiornoCalendario),1,0)),CONCATENATE(\"Giorno \",GiornoCalendario-DATE(YEAR(GiornoCalendario),1,0)))","v":"Giorno 120"},{"$f":"IF(DAY(GiornoCalendario)=1,CONCATENATE(\"Settimana \",WEEKNUM(GiornoCalendario),\"/Giorno \",GiornoCalendario-DATE(YEAR(GiornoCalendario),1,0)),CONCATENATE(\"Giorno \",GiornoCalendario-DATE(YEAR(GiornoCalendario),1,0)))","v":"Settimana 18/Giorno 121"},{"$f":"IF(DAY(GiornoCalendario)=1,CONCATENATE(\"Settimana \",WEEKNUM(GiornoCalendario),\"/Giorno \",GiornoCalendario-DATE(YEAR(GiornoCalendario),1,0)),CONCATENATE(\"Giorno \",GiornoCalendario-DATE(YEAR(GiornoCalendario),1,0)))","v":"Giorno 122"},{"$f":"IF(DAY(GiornoCalendario)=1,CONCATENATE(\"Settimana \",WEEKNUM(GiornoCalendario),\"/Giorno \",GiornoCalendario-DATE(YEAR(GiornoCalendario),1,0)),CONCATENATE(\"Giorno \",GiornoCalendario-DATE(YEAR(GiornoCalendario),1,0)))","v":"Giorno 123"},{"$f":"IF(DAY(GiornoCalendario)=1,CONCATENATE(\"Settimana \",WEEKNUM(GiornoCalendario),\"/Giorno \",GiornoCalendario-DATE(YEAR(GiornoCalendario),1,0)),CONCATENATE(\"Giorno \",GiornoCalendario-DATE(YEAR(GiornoCalendario),1,0)))","v":"Giorno 124"},{"$f":"IF(DAY(GiornoCalendario)=1,CONCATENATE(\"Settimana \",WEEKNUM(GiornoCalendario),\"/Giorno \",GiornoCalendario-DATE(YEAR(GiornoCalendario),1,0)),CONCATENATE(\"Giorno \",GiornoCalendario-DATE(YEAR(GiornoCalendario),1,0)))","v":"Giorno 125"}]
[]
[null,null,{"$f":"GiorniESettimane+DATE(AnnoCalendario,5,1)-WEEKDAY(DATE(AnnoCalendario,5,1),(InizioSettimana=\"LUN\")+1)+8","v":"2018-05-06"},"2018-05-07","2018-05-08","2018-05-09","2018-05-10","2018-05-11","2018-05-12"]
[null,null,{"$f":"IF(WEEKDAY(GiornoCalendario)=ValoreInizioSettimana,CONCATENATE(\"Settimana \",WEEKNUM(GiornoCalendario),\"/Giorno \",GiornoCalendario-DATE(YEAR(GiornoCalendario),1,0)),CONCATENATE(\"Giorno \",GiornoCalendario-DATE(YEAR(GiornoCalendario),1,0)))","v":"Settimana 19/Giorno 126"},{"$f":"IF(WEEKDAY(GiornoCalendario)=ValoreInizioSettimana,CONCATENATE(\"Settimana \",WEEKNUM(GiornoCalendario),\"/Giorno \",GiornoCalendario-DATE(YEAR(GiornoCalendario),1,0)),CONCATENATE(\"Giorno \",GiornoCalendario-DATE(YEAR(GiornoCalendario),1,0)))","v":"Giorno 127"},{"$f":"IF(WEEKDAY(GiornoCalendario)=ValoreInizioSettimana,CONCATENATE(\"Settimana \",WEEKNUM(GiornoCalendario),\"/Giorno \",GiornoCalendario-DATE(YEAR(GiornoCalendario),1,0)),CONCATENATE(\"Giorno \",GiornoCalendario-DATE(YEAR(GiornoCalendario),1,0)))","v":"Giorno 128"},{"$f":"IF(WEEKDAY(GiornoCalendario)=ValoreInizioSettimana,CONCATENATE(\"Settimana \",WEEKNUM(GiornoCalendario),\"/Giorno \",GiornoCalendario-DATE(YEAR(GiornoCalendario),1,0)),CONCATENATE(\"Giorno \",GiornoCalendario-DATE(YEAR(GiornoCalendario),1,0)))","v":"Giorno 129"},{"$f":"IF(WEEKDAY(GiornoCalendario)=ValoreInizioSettimana,CONCATENATE(\"Settimana \",WEEKNUM(GiornoCalendario),\"/Giorno \",GiornoCalendario-DATE(YEAR(GiornoCalendario),1,0)),CONCATENATE(\"Giorno \",GiornoCalendario-DATE(YEAR(GiornoCalendario),1,0)))","v":"Giorno 130"},{"$f":"IF(WEEKDAY(GiornoCalendario)=ValoreInizioSettimana,CONCATENATE(\"Settimana \",WEEKNUM(GiornoCalendario),\"/Giorno \",GiornoCalendario-DATE(YEAR(GiornoCalendario),1,0)),CONCATENATE(\"Giorno \",GiornoCalendario-DATE(YEAR(GiornoCalendario),1,0)))","v":"Giorno 131"},{"$f":"IF(WEEKDAY(GiornoCalendario)=ValoreInizioSettimana,CONCATENATE(\"Settimana \",WEEKNUM(GiornoCalendario),\"/Giorno \",GiornoCalendario-DATE(YEAR(GiornoCalendario),1,0)),CONCATENATE(\"Giorno \",GiornoCalendario-DATE(YEAR(GiornoCalendario),1,0)))","v":"Giorno 132"}]
[]
[null,null,{"$f":"GiorniESettimane+DATE(AnnoCalendario,5,1)-WEEKDAY(DATE(AnnoCalendario,5,1),(InizioSettimana=\"LUN\")+1)+15","v":"2018-05-13"},"2018-05-14","2018-05-15","2018-05-16","2018-05-17","2018-05-18","2018-05-19"]
[null,null,{"$f":"IF(WEEKDAY(GiornoCalendario)=ValoreInizioSettimana,CONCATENATE(\"Settimana \",WEEKNUM(GiornoCalendario),\"/Giorno \",GiornoCalendario-DATE(YEAR(GiornoCalendario),1,0)),CONCATENATE(\"Giorno \",GiornoCalendario-DATE(YEAR(GiornoCalendario),1,0)))","v":"Settimana 20/Giorno 133"},{"$f":"IF(WEEKDAY(GiornoCalendario)=ValoreInizioSettimana,CONCATENATE(\"Settimana \",WEEKNUM(GiornoCalendario),\"/Giorno \",GiornoCalendario-DATE(YEAR(GiornoCalendario),1,0)),CONCATENATE(\"Giorno \",GiornoCalendario-DATE(YEAR(GiornoCalendario),1,0)))","v":"Giorno 134"},{"$f":"IF(WEEKDAY(GiornoCalendario)=ValoreInizioSettimana,CONCATENATE(\"Settimana \",WEEKNUM(GiornoCalendario),\"/Giorno \",GiornoCalendario-DATE(YEAR(GiornoCalendario),1,0)),CONCATENATE(\"Giorno \",GiornoCalendario-DATE(YEAR(GiornoCalendario),1,0)))","v":"Giorno 135"},{"$f":"IF(WEEKDAY(GiornoCalendario)=ValoreInizioSettimana,CONCATENATE(\"Settimana \",WEEKNUM(GiornoCalendario),\"/Giorno \",GiornoCalendario-DATE(YEAR(GiornoCalendario),1,0)),CONCATENATE(\"Giorno \",GiornoCalendario-DATE(YEAR(GiornoCalendario),1,0)))","v":"Giorno 136"},{"$f":"IF(WEEKDAY(GiornoCalendario)=ValoreInizioSettimana,CONCATENATE(\"Settimana \",WEEKNUM(GiornoCalendario),\"/Giorno \",GiornoCalendario-DATE(YEAR(GiornoCalendario),1,0)),CONCATENATE(\"Giorno \",GiornoCalendario-DATE(YEAR(GiornoCalendario),1,0)))","v":"Giorno 137"},{"$f":"IF(WEEKDAY(GiornoCalendario)=ValoreInizioSettimana,CONCATENATE(\"Settimana \",WEEKNUM(GiornoCalendario),\"/Giorno \",GiornoCalendario-DATE(YEAR(GiornoCalendario),1,0)),CONCATENATE(\"Giorno \",GiornoCalendario-DATE(YEAR(GiornoCalendario),1,0)))","v":"Giorno 138"},{"$f":"IF(WEEKDAY(GiornoCalendario)=ValoreInizioSettimana,CONCATENATE(\"Settimana \",WEEKNUM(GiornoCalendario),\"/Giorno \",GiornoCalendario-DATE(YEAR(GiornoCalendario),1,0)),CONCATENATE(\"Giorno \",GiornoCalendario-DATE(YEAR(GiornoCalendario),1,0)))","v":"Giorno 139"}]
[]
[null,null,{"$f":"GiorniESettimane+DATE(AnnoCalendario,5,1)-WEEKDAY(DATE(AnnoCalendario,5,1),(InizioSettimana=\"LUN\")+1)+22","v":"2018-05-20"},"2018-05-21","2018-05-22","2018-05-23","2018-05-24","2018-05-25","2018-05-26"]
[null,null,{"$f":"IF(WEEKDAY(GiornoCalendario)=ValoreInizioSettimana,CONCATENATE(\"Settimana \",WEEKNUM(GiornoCalendario),\"/Giorno \",GiornoCalendario-DATE(YEAR(GiornoCalendario),1,0)),CONCATENATE(\"Giorno \",GiornoCalendario-DATE(YEAR(GiornoCalendario),1,0)))","v":"Settimana 21/Giorno 140"},{"$f":"IF(WEEKDAY(GiornoCalendario)=ValoreInizioSettimana,CONCATENATE(\"Settimana \",WEEKNUM(GiornoCalendario),\"/Giorno \",GiornoCalendario-DATE(YEAR(GiornoCalendario),1,0)),CONCATENATE(\"Giorno \",GiornoCalendario-DATE(YEAR(GiornoCalendario),1,0)))","v":"Giorno 141"},{"$f":"IF(WEEKDAY(GiornoCalendario)=ValoreInizioSettimana,CONCATENATE(\"Settimana \",WEEKNUM(GiornoCalendario),\"/Giorno \",GiornoCalendario-DATE(YEAR(GiornoCalendario),1,0)),CONCATENATE(\"Giorno \",GiornoCalendario-DATE(YEAR(GiornoCalendario),1,0)))","v":"Giorno 142"},{"$f":"IF(WEEKDAY(GiornoCalendario)=ValoreInizioSettimana,CONCATENATE(\"Settimana \",WEEKNUM(GiornoCalendario),\"/Giorno \",GiornoCalendario-DATE(YEAR(GiornoCalendario),1,0)),CONCATENATE(\"Giorno \",GiornoCalendario-DATE(YEAR(GiornoCalendario),1,0)))","v":"Giorno 143"},{"$f":"IF(WEEKDAY(GiornoCalendario)=ValoreInizioSettimana,CONCATENATE(\"Settimana \",WEEKNUM(GiornoCalendario),\"/Giorno \",GiornoCalendario-DATE(YEAR(GiornoCalendario),1,0)),CONCATENATE(\"Giorno \",GiornoCalendario-DATE(YEAR(GiornoCalendario),1,0)))","v":"Giorno 144"},{"$f":"IF(WEEKDAY(GiornoCalendario)=ValoreInizioSettimana,CONCATENATE(\"Settimana \",WEEKNUM(GiornoCalendario),\"/Giorno \",GiornoCalendario-DATE(YEAR(GiornoCalendario),1,0)),CONCATENATE(\"Giorno \",GiornoCalendario-DATE(YEAR(GiornoCalendario),1,0)))","v":"Giorno 145"},{"$f":"IF(WEEKDAY(GiornoCalendario)=ValoreInizioSettimana,CONCATENATE(\"Settimana \",WEEKNUM(GiornoCalendario),\"/Giorno \",GiornoCalendario-DATE(YEAR(GiornoCalendario),1,0)),CONCATENATE(\"Giorno \",GiornoCalendario-DATE(YEAR(GiornoCalendario),1,0)))","v":"Giorno 146"}]
[]
[null,null,{"$f":"GiorniESettimane+DATE(AnnoCalendario,5,1)-WEEKDAY(DATE(AnnoCalendario,5,1),(InizioSettimana=\"LUN\")+1)+29","v":"2018-05-27"},"2018-05-28","2018-05-29","2018-05-30","2018-05-31","2018-06-01","2018-06-02"]
[null,null,{"$f":"IF(WEEKDAY(GiornoCalendario)=ValoreInizioSettimana,CONCATENATE(\"Settimana \",WEEKNUM(GiornoCalendario),\"/Giorno \",GiornoCalendario-DATE(YEAR(GiornoCalendario),1,0)),CONCATENATE(\"Giorno \",GiornoCalendario-DATE(YEAR(GiornoCalendario),1,0)))","v":"Settimana 22/Giorno 147"},{"$f":"IF(WEEKDAY(GiornoCalendario)=ValoreInizioSettimana,CONCATENATE(\"Settimana \",WEEKNUM(GiornoCalendario),\"/Giorno \",GiornoCalendario-DATE(YEAR(GiornoCalendario),1,0)),CONCATENATE(\"Giorno \",GiornoCalendario-DATE(YEAR(GiornoCalendario),1,0)))","v":"Giorno 148"},{"$f":"IF(WEEKDAY(GiornoCalendario)=ValoreInizioSettimana,CONCATENATE(\"Settimana \",WEEKNUM(GiornoCalendario),\"/Giorno \",GiornoCalendario-DATE(YEAR(GiornoCalendario),1,0)),CONCATENATE(\"Giorno \",GiornoCalendario-DATE(YEAR(GiornoCalendario),1,0)))","v":"Giorno 149"},{"$f":"IF(WEEKDAY(GiornoCalendario)=ValoreInizioSettimana,CONCATENATE(\"Settimana \",WEEKNUM(GiornoCalendario),\"/Giorno \",GiornoCalendario-DATE(YEAR(GiornoCalendario),1,0)),CONCATENATE(\"Giorno \",GiornoCalendario-DATE(YEAR(GiornoCalendario),1,0)))","v":"Giorno 150"},{"$f":"IF(WEEKDAY(GiornoCalendario)=ValoreInizioSettimana,CONCATENATE(\"Settimana \",WEEKNUM(GiornoCalendario),\"/Giorno \",GiornoCalendario-DATE(YEAR(GiornoCalendario),1,0)),CONCATENATE(\"Giorno \",GiornoCalendario-DATE(YEAR(GiornoCalendario),1,0)))","v":"Giorno 151"},{"$f":"IF(WEEKDAY(GiornoCalendario)=ValoreInizioSettimana,CONCATENATE(\"Settimana \",WEEKNUM(GiornoCalendario),\"/Giorno \",GiornoCalendario-DATE(YEAR(GiornoCalendario),1,0)),CONCATENATE(\"Giorno \",GiornoCalendario-DATE(YEAR(GiornoCalendario),1,0)))","v":"Giorno 152"},{"$f":"IF(WEEKDAY(GiornoCalendario)=ValoreInizioSettimana,CONCATENATE(\"Settimana \",WEEKNUM(GiornoCalendario),\"/Giorno \",GiornoCalendario-DATE(YEAR(GiornoCalendario),1,0)),CONCATENATE(\"Giorno \",GiornoCalendario-DATE(YEAR(GiornoCalendario),1,0)))","v":"Giorno 153"}]
[{"$nulls":4},"NOTE"]
[]
[null,null,{"$f":"GiorniESettimane+DATE(AnnoCalendario,5,1)-WEEKDAY(DATE(AnnoCalendario,5,1),(InizioSettimana=\"LUN\")+1)+36","v":"2018-06-03"},"2018-06-04"]
[null,null,{"$f":"IF(WEEKDAY(GiornoCalendario)=ValoreInizioSettimana,CONCATENATE(\"Settimana \",WEEKNUM(GiornoCalendario),\"/Giorno \",GiornoCalendario-DATE(YEAR(GiornoCalendario),1,0)),CONCATENATE(\"Giorno \",GiornoCalendario-DATE(YEAR(GiornoCalendario),1,0)))","v":"Settimana 23/Giorno 154"},{"$f":"IF(WEEKDAY(GiornoCalendario)=ValoreInizioSettimana,CONCATENATE(\"Settimana \",WEEKNUM(GiornoCalendario),\"/Giorno \",GiornoCalendario-DATE(YEAR(GiornoCalendario),1,0)),CONCATENATE(\"Giorno \",GiornoCalendario-DATE(YEAR(GiornoCalendario),1,0)))","v":"Giorno 155"}]

{"sheet":"GIU","index":5,"n_rows":20,"n_cols":9,"rows_kept":20,"merged":[[16,2,17,2],[17,4,19,8]]}
[null,"GIU",{"$f":"UPPER(TEXT(InizioSettimana,\"mmm\"))","v":"DOM"},{"$f":"UPPER(TEXT(D3,\"ggg\"))","v":"LUN"},"MAR","MER","GIO","VEN","SAB"]
[null,{"$f":"AnnoCalendario","v":2018}]
[null,null,{"$f":"GiorniESettimane+DATE(AnnoCalendario,6,1)-WEEKDAY(DATE(AnnoCalendario,6,1),(InizioSettimana=\"LUN\")+1)+1","v":"2018-05-27"},"2018-05-28","2018-05-29","2018-05-30","2018-05-31","2018-06-01","2018-06-02"]
[null,null,{"$f":"IF(DAY(GiornoCalendario)=1,CONCATENATE(\"Settimana \",WEEKNUM(GiornoCalendario),\"/Giorno \",GiornoCalendario-DATE(YEAR(GiornoCalendario),1,0)),CONCATENATE(\"Giorno \",GiornoCalendario-DATE(YEAR(GiornoCalendario),1,0)))","v":"Giorno 147"},{"$f":"IF(DAY(GiornoCalendario)=1,CONCATENATE(\"Settimana \",WEEKNUM(GiornoCalendario),\"/Giorno \",GiornoCalendario-DATE(YEAR(GiornoCalendario),1,0)),CONCATENATE(\"Giorno \",GiornoCalendario-DATE(YEAR(GiornoCalendario),1,0)))","v":"Giorno 148"},{"$f":"IF(DAY(GiornoCalendario)=1,CONCATENATE(\"Settimana \",WEEKNUM(GiornoCalendario),\"/Giorno \",GiornoCalendario-DATE(YEAR(GiornoCalendario),1,0)),CONCATENATE(\"Giorno \",GiornoCalendario-DATE(YEAR(GiornoCalendario),1,0)))","v":"Giorno 149"},{"$f":"IF(DAY(GiornoCalendario)=1,CONCATENATE(\"Settimana \",WEEKNUM(GiornoCalendario),\"/Giorno \",GiornoCalendario-DATE(YEAR(GiornoCalendario),1,0)),CONCATENATE(\"Giorno \",GiornoCalendario-DATE(YEAR(GiornoCalendario),1,0)))","v":"Giorno 150"},{"$f":"IF(DAY(GiornoCalendario)=1,CONCATENATE(\"Settimana \",WEEKNUM(GiornoCalendario),\"/Giorno \",GiornoCalendario-DATE(YEAR(GiornoCalendario),1,0)),CONCATENATE(\"Giorno \",GiornoCalendario-DATE(YEAR(GiornoCalendario),1,0)))","v":"Giorno 151"},{"$f":"IF(DAY(GiornoCalendario)=1,CONCATENATE(\"Settimana \",WEEKNUM(GiornoCalendario),\"/Giorno \",GiornoCalendario-DATE(YEAR(GiornoCalendario),1,0)),CONCATENATE(\"Giorno \",GiornoCalendario-DATE(YEAR(GiornoCalendario),1,0)))","v":"Settimana 22/Giorno 152"},{"$f":"IF(DAY(GiornoCalendario)=1,CONCATENATE(\"Settimana \",WEEKNUM(GiornoCalendario),\"/Giorno \",GiornoCalendario-DATE(YEAR(GiornoCalendario),1,0)),CONCATENATE(\"Giorno \",GiornoCalendario-DATE(YEAR(GiornoCalendario),1,0)))","v":"Giorno 153"}]
[]
[null,null,{"$f":"GiorniESettimane+DATE(AnnoCalendario,6,1)-WEEKDAY(DATE(AnnoCalendario,6,1),(InizioSettimana=\"LUN\")+1)+8","v":"2018-06-03"},"2018-06-04","2018-06-05","2018-06-06","2018-06-07","2018-06-08","2018-06-09"]
[null,null,{"$f":"IF(WEEKDAY(GiornoCalendario)=ValoreInizioSettimana,CONCATENATE(\"Settimana \",WEEKNUM(GiornoCalendario),\"/Giorno \",GiornoCalendario-DATE(YEAR(GiornoCalendario),1,0)),CONCATENATE(\"Giorno \",GiornoCalendario-DATE(YEAR(GiornoCalendario),1,0)))","v":"Settimana 23/Giorno 154"},{"$f":"IF(WEEKDAY(GiornoCalendario)=ValoreInizioSettimana,CONCATENATE(\"Settimana \",WEEKNUM(GiornoCalendario),\"/Giorno \",GiornoCalendario-DATE(YEAR(GiornoCalendario),1,0)),CONCATENATE(\"Giorno \",GiornoCalendario-DATE(YEAR(GiornoCalendario),1,0)))","v":"Giorno 155"},{"$f":"IF(WEEKDAY(GiornoCalendario)=ValoreInizioSettimana,CONCATENATE(\"Settimana \",WEEKNUM(GiornoCalendario),\"/Giorno \",GiornoCalendario-DATE(YEAR(GiornoCalendario),1,0)),CONCATENATE(\"Giorno \",GiornoCalendario-DATE(YEAR(GiornoCalendario),1,0)))","v":"Giorno 156"},{"$f":"IF(WEEKDAY(GiornoCalendario)=ValoreInizioSettimana,CONCATENATE(\"Settimana \",WEEKNUM(GiornoCalendario),\"/Giorno \",GiornoCalendario-DATE(YEAR(GiornoCalendario),1,0)),CONCATENATE(\"Giorno \",GiornoCalendario-DATE(YEAR(GiornoCalendario),1,0)))","v":"Giorno 157"},{"$f":"IF(WEEKDAY(GiornoCalendario)=ValoreInizioSettimana,CONCATENATE(\"Settimana \",WEEKNUM(GiornoCalendario),\"/Giorno \",GiornoCalendario-DATE(YEAR(GiornoCalendario),1,0)),CONCATENATE(\"Giorno \",GiornoCalendario-DATE(YEAR(GiornoCalendario),1,0)))","v":"Giorno 158"},{"$f":"IF(WEEKDAY(GiornoCalendario)=ValoreInizioSettimana,CONCATENATE(\"Settimana \",WEEKNUM(GiornoCalendario),\"/Giorno \",GiornoCalendario-DATE(YEAR(GiornoCalendario),1,0)),CONCATENATE(\"Giorno \",GiornoCalendario-DATE(YEAR(GiornoCalendario),1,0)))","v":"Giorno 159"},{"$f":"IF(WEEKDAY(GiornoCalendario)=ValoreInizioSettimana,CONCATENATE(\"Settimana \",WEEKNUM(GiornoCalendario),\"/Giorno \",GiornoCalendario-DATE(YEAR(GiornoCalendario),1,0)),CONCATENATE(\"Giorno \",GiornoCalendario-DATE(YEAR(GiornoCalendario),1,0)))","v":"Giorno 160"}]
[]
[null,null,{"$f":"GiorniESettimane+DATE(AnnoCalendario,6,1)-WEEKDAY(DATE(AnnoCalendario,6,1),(InizioSettimana=\"LUN\")+1)+15","v":"2018-06-10"},"2018-06-11","2018-06-12","2018-06-13","2018-06-14","2018-06-15","2018-06-16"]
[null,null,{"$f":"IF(WEEKDAY(GiornoCalendario)=ValoreInizioSettimana,CONCATENATE(\"Settimana \",WEEKNUM(GiornoCalendario),\"/Giorno \",GiornoCalendario-DATE(YEAR(GiornoCalendario),1,0)),CONCATENATE(\"Giorno \",GiornoCalendario-DATE(YEAR(GiornoCalendario),1,0)))","v":"Settimana 24/Giorno 161"},{"$f":"IF(WEEKDAY(GiornoCalendario)=ValoreInizioSettimana,CONCATENATE(\"Settimana \",WEEKNUM(GiornoCalendario),\"/Giorno \",GiornoCalendario-DATE(YEAR(GiornoCalendario),1,0)),CONCATENATE(\"Giorno \",GiornoCalendario-DATE(YEAR(GiornoCalendario),1,0)))","v":"Giorno 162"},{"$f":"IF(WEEKDAY(GiornoCalendario)=ValoreInizioSettimana,CONCATENATE(\"Settimana \",WEEKNUM(GiornoCalendario),\"/Giorno \",GiornoCalendario-DATE(YEAR(GiornoCalendario),1,0)),CONCATENATE(\"Giorno \",GiornoCalendario-DATE(YEAR(GiornoCalendario),1,0)))","v":"Giorno 163"},{"$f":"IF(WEEKDAY(GiornoCalendario)=ValoreInizioSettimana,CONCATENATE(\"Settimana \",WEEKNUM(GiornoCalendario),\"/Giorno \",GiornoCalendario-DATE(YEAR(GiornoCalendario),1,0)),CONCATENATE(\"Giorno \",GiornoCalendario-DATE(YEAR(GiornoCalendario),1,0)))","v":"Giorno 164"},{"$f":"IF(WEEKDAY(GiornoCalendario)=ValoreInizioSettimana,CONCATENATE(\"Settimana \",WEEKNUM(GiornoCalendario),\"/Giorno \",GiornoCalendario-DATE(YEAR(GiornoCalendario),1,0)),CONCATENATE(\"Giorno \",GiornoCalendario-DATE(YEAR(GiornoCalendario),1,0)))","v":"Giorno 165"},{"$f":"IF(WEEKDAY(GiornoCalendario)=ValoreInizioSettimana,CONCATENATE(\"Settimana \",WEEKNUM(GiornoCalendario),\"/Giorno \",GiornoCalendario-DATE(YEAR(GiornoCalendario),1,0)),CONCATENATE(\"Giorno \",GiornoCalendario-DATE(YEAR(GiornoCalendario),1,0)))","v":"Giorno 166"},{"$f":"IF(WEEKDAY(GiornoCalendario)=ValoreInizioSettimana,CONCATENATE(\"Settimana \",WEEKNUM(GiornoCalendario),\"/Giorno \",GiornoCalendario-DATE(YEAR(GiornoCalendario),1,0)),CONCATENATE(\"Giorno \",GiornoCalendario-DATE(YEAR(GiornoCalendario),1,0)))","v":"Giorno 167"}]
[]
[null,null,{"$f":"GiorniESettimane+DATE(AnnoCalendario,6,1)-WEEKDAY(DATE(AnnoCalendario,6,1),(InizioSettimana=\"LUN\")+1)+22","v":"2018-06-17"},"2018-06-18","2018-06-19","2018-06-20","2018-06-21","2018-06-22","2018-06-23"]
[null,null,{"$f":"IF(WEEKDAY(GiornoCalendario)=ValoreInizioSettimana,CONCATENATE(\"Settimana \",WEEKNUM(GiornoCalendario),\"/Giorno \",GiornoCalendario-DATE(YEAR(GiornoCalendario),1,0)),CONCATENATE(\"Giorno \",GiornoCalendario-DATE(YEAR(GiornoCalendario),1,0)))","v":"Settimana 25/Giorno 168"},{"$f":"IF(WEEKDAY(GiornoCalendario)=ValoreInizioSettimana,CONCATENATE(\"Settimana \",WEEKNUM(GiornoCalendario),\"/Giorno \",GiornoCalendario-DATE(YEAR(GiornoCalendario),1,0)),CONCATENATE(\"Giorno \",GiornoCalendario-DATE(YEAR(GiornoCalendario),1,0)))","v":"Giorno 169"},{"$f":"IF(WEEKDAY(GiornoCalendario)=ValoreInizioSettimana,CONCATENATE(\"Settimana \",WEEKNUM(GiornoCalendario),\"/Giorno \",GiornoCalendario-DATE(YEAR(GiornoCalendario),1,0)),CONCATENATE(\"Giorno \",GiornoCalendario-DATE(YEAR(GiornoCalendario),1,0)))","v":"Giorno 170"},{"$f":"IF(WEEKDAY(GiornoCalendario)=ValoreInizioSettimana,CONCATENATE(\"Settimana \",WEEKNUM(GiornoCalendario),\"/Giorno \",GiornoCalendario-DATE(YEAR(GiornoCalendario),1,0)),CONCATENATE(\"Giorno \",GiornoCalendario-DATE(YEAR(GiornoCalendario),1,0)))","v":"Giorno 171"},{"$f":"IF(WEEKDAY(GiornoCalendario)=ValoreInizioSettimana,CONCATENATE(\"Settimana \",WEEKNUM(GiornoCalendario),\"/Giorno \",GiornoCalendario-DATE(YEAR(GiornoCalendario),1,0)),CONCATENATE(\"Giorno \",GiornoCalendario-DATE(YEAR(GiornoCalendario),1,0)))","v":"Giorno 172"},{"$f":"IF(WEEKDAY(GiornoCalendario)=ValoreInizioSettimana,CONCATENATE(\"Settimana \",WEEKNUM(GiornoCalendario),\"/Giorno \",GiornoCalendario-DATE(YEAR(GiornoCalendario),1,0)),CONCATENATE(\"Giorno \",GiornoCalendario-DATE(YEAR(GiornoCalendario),1,0)))","v":"Giorno 173"},{"$f":"IF(WEEKDAY(GiornoCalendario)=ValoreInizioSettimana,CONCATENATE(\"Settimana \",WEEKNUM(GiornoCalendario),\"/Giorno \",GiornoCalendario-DATE(YEAR(GiornoCalendario),1,0)),CONCATENATE(\"Giorno \",GiornoCalendario-DATE(YEAR(GiornoCalendario),1,0)))","v":"Giorno 174"}]
[]
[null,null,{"$f":"GiorniESettimane+DATE(AnnoCalendario,6,1)-WEEKDAY(DATE(AnnoCalendario,6,1),(InizioSettimana=\"LUN\")+1)+29","v":"2018-06-24"},"2018-06-25","2018-06-26","2018-06-27","2018-06-28","2018-06-29","2018-06-30"]
[null,null,{"$f":"IF(WEEKDAY(GiornoCalendario)=ValoreInizioSettimana,CONCATENATE(\"Settimana \",WEEKNUM(GiornoCalendario),\"/Giorno \",GiornoCalendario-DATE(YEAR(GiornoCalendario),1,0)),CONCATENATE(\"Giorno \",GiornoCalendario-DATE(YEAR(GiornoCalendario),1,0)))","v":"Settimana 26/Giorno 175"},{"$f":"IF(WEEKDAY(GiornoCalendario)=ValoreInizioSettimana,CONCATENATE(\"Settimana \",WEEKNUM(GiornoCalendario),\"/Giorno \",GiornoCalendario-DATE(YEAR(GiornoCalendario),1,0)),CONCATENATE(\"Giorno \",GiornoCalendario-DATE(YEAR(GiornoCalendario),1,0)))","v":"Giorno 176"},{"$f":"IF(WEEKDAY(GiornoCalendario)=ValoreInizioSettimana,CONCATENATE(\"Settimana \",WEEKNUM(GiornoCalendario),\"/Giorno \",GiornoCalendario-DATE(YEAR(GiornoCalendario),1,0)),CONCATENATE(\"Giorno \",GiornoCalendario-DATE(YEAR(GiornoCalendario),1,0)))","v":"Giorno 177"},{"$f":"IF(WEEKDAY(GiornoCalendario)=ValoreInizioSettimana,CONCATENATE(\"Settimana \",WEEKNUM(GiornoCalendario),\"/Giorno \",GiornoCalendario-DATE(YEAR(GiornoCalendario),1,0)),CONCATENATE(\"Giorno \",GiornoCalendario-DATE(YEAR(GiornoCalendario),1,0)))","v":"Giorno 178"},{"$f":"IF(WEEKDAY(GiornoCalendario)=ValoreInizioSettimana,CONCATENATE(\"Settimana \",WEEKNUM(GiornoCalendario),\"/Giorno \",GiornoCalendario-DATE(YEAR(GiornoCalendario),1,0)),CONCATENATE(\"Giorno \",GiornoCalendario-DATE(YEAR(GiornoCalendario),1,0)))","v":"Giorno 179"},{"$f":"IF(WEEKDAY(GiornoCalendario)=ValoreInizioSettimana,CONCATENATE(\"Settimana \",WEEKNUM(GiornoCalendario),\"/Giorno \",GiornoCalendario-DATE(YEAR(GiornoCalendario),1,0)),CONCATENATE(\"Giorno \",GiornoCalendario-DATE(YEAR(GiornoCalendario),1,0)))","v":"Giorno 180"},{"$f":"IF(WEEKDAY(GiornoCalendario)=ValoreInizioSettimana,CONCATENATE(\"Settimana \",WEEKNUM(GiornoCalendario),\"/Giorno \",GiornoCalendario-DATE(YEAR(GiornoCalendario),1,0)),CONCATENATE(\"Giorno \",GiornoCalendario-DATE(YEAR(GiornoCalendario),1,0)))","v":"Giorno 181"}]
[{"$nulls":4},"NOTE"]
[]
[null,null,{"$f":"GiorniESettimane+DATE(AnnoCalendario,6,1)-WEEKDAY(DATE(AnnoCalendario,6,1),(InizioSettimana=\"LUN\")+1)+36","v":"2018-07-01"},"2018-07-02"]
[null,null,{"$f":"IF(WEEKDAY(GiornoCalendario)=ValoreInizioSettimana,CONCATENATE(\"Settimana \",WEEKNUM(GiornoCalendario),\"/Giorno \",GiornoCalendario-DATE(YEAR(GiornoCalendario),1,0)),CONCATENATE(\"Giorno \",GiornoCalendario-DATE(YEAR(GiornoCalendario),1,0)))","v":"Settimana 27/Giorno 182"},{"$f":"IF(WEEKDAY(GiornoCalendario)=ValoreInizioSettimana,CONCATENATE(\"Settimana \",WEEKNUM(GiornoCalendario),\"/Giorno \",GiornoCalendario-DATE(YEAR(GiornoCalendario),1,0)),CONCATENATE(\"Giorno \",GiornoCalendario-DATE(YEAR(GiornoCalendario),1,0)))","v":"Giorno 183"}]

{"sheet":"LUG","index":6,"n_rows":20,"n_cols":9,"rows_kept":20,"merged":[[16,2,17,2],[17,4,19,8]]}
[null,"LUG",{"$f":"UPPER(TEXT(InizioSettimana,\"mmm\"))","v":"DOM"},{"$f":"UPPER(TEXT(D3,\"ggg\"))","v":"LUN"},"MAR","MER","GIO","VEN","SAB"]
[null,{"$f":"AnnoCalendario","v":2018}]
[null,null,{"$f":"GiorniESettimane+DATE(AnnoCalendario,7,1)-WEEKDAY(DATE(AnnoCalendario,7,1),(InizioSettimana=\"LUN\")+1)+1","v":"2018-07-01"},"2018-07-02","2018-07-03","2018-07-04","2018-07-05","2018-07-06","2018-07-07"]
[null,null,{"$f":"IF(DAY(GiornoCalendario)=1,CONCATENATE(\"Settimana \",WEEKNUM(GiornoCalendario),\"/Giorno \",GiornoCalendario-DATE(YEAR(GiornoCalendario),1,0)),CONCATENATE(\"Giorno \",GiornoCalendario-DATE(YEAR(GiornoCalendario),1,0)))","v":"Settimana 27/Giorno 182"},{"$f":"IF(DAY(GiornoCalendario)=1,CONCATENATE(\"Settimana \",WEEKNUM(GiornoCalendario),\"/Giorno \",GiornoCalendario-DATE(YEAR(GiornoCalendario),1,0)),CONCATENATE(\"Giorno \",GiornoCalendario-DATE(YEAR(GiornoCalendario),1,0)))","v":"Giorno 183"},{"$f":"IF(DAY(GiornoCalendario)=1,CONCATENATE(\"Settimana \",WEEKNUM(GiornoCalendario),\"/Giorno \",GiornoCalendario-DATE(YEAR(GiornoCalendario),1,0)),CONCATENATE(\"Giorno \",GiornoCalendario-DATE(YEAR(GiornoCalendario),1,0)))","v":"Giorno 184"},{"$f":"IF(DAY(GiornoCalendario)=1,CONCATENATE(\"Settimana \",WEEKNUM(GiornoCalendario),\"/Giorno \",GiornoCalendario-DATE(YEAR(GiornoCalendario),1,0)),CONCATENATE(\"Giorno \",GiornoCalendario-DATE(YEAR(GiornoCalendario),1,0)))","v":"Giorno 185"},{"$f":"IF(DAY(GiornoCalendario)=1,CONCATENATE(\"Settimana \",WEEKNUM(GiornoCalendario),\"/Giorno \",GiornoCalendario-DATE(YEAR(GiornoCalendario),1,0)),CONCATENATE(\"Giorno \",GiornoCalendario-DATE(YEAR(GiornoCalendario),1,0)))","v":"Giorno 186"},{"$f":"IF(DAY(GiornoCalendario)=1,CONCATENATE(\"Settimana \",WEEKNUM(GiornoCalendario),\"/Giorno \",GiornoCalendario-DATE(YEAR(GiornoCalendario),1,0)),CONCATENATE(\"Giorno \",GiornoCalendario-DATE(YEAR(GiornoCalendario),1,0)))","v":"Giorno 187"},{"$f":"IF(DAY(GiornoCalendario)=1,CONCATENATE(\"Settimana \",WEEKNUM(GiornoCalendario),\"/Giorno \",GiornoCalendario-DATE(YEAR(GiornoCalendario),1,0)),CONCATENATE(\"Giorno \",GiornoCalendario-DATE(YEAR(GiornoCalendario),1,0)))","v":"Giorno 188"}]
[]
[null,null,{"$f":"GiorniESettimane+DATE(AnnoCalendario,7,1)-WEEKDAY(DATE(AnnoCalendario,7,1),(InizioSettimana=\"LUN\")+1)+8","v":"2018-07-08"},"2018-07-09","2018-07-10","2018-07-11","2018-07-12","2018-07-13","2018-07-14"]
[null,null,{"$f":"IF(WEEKDAY(GiornoCalendario)=ValoreInizioSettimana,CONCATENATE(\"Settimana \",WEEKNUM(GiornoCalendario),\"/Giorno \",GiornoCalendario-DATE(YEAR(GiornoCalendario),1,0)),CONCATENATE(\"Giorno \",GiornoCalendario-DATE(YEAR(GiornoCalendario),1,0)))","v":"Settimana 28/Giorno 189"},{"$f":"IF(WEEKDAY(GiornoCalendario)=ValoreInizioSettimana,CONCATENATE(\"Settimana \",WEEKNUM(GiornoCalendario),\"/Giorno \",GiornoCalendario-DATE(YEAR(GiornoCalendario),1,0)),CONCATENATE(\"Giorno \",GiornoCalendario-DATE(YEAR(GiornoCalendario),1,0)))","v":"Giorno 190"},{"$f":"IF(WEEKDAY(GiornoCalendario)=ValoreInizioSettimana,CONCATENATE(\"Settimana \",WEEKNUM(GiornoCalendario),\"/Giorno \",GiornoCalendario-DATE(YEAR(GiornoCalendario),1,0)),CONCATENATE(\"Giorno \",GiornoCalendario-DATE(YEAR(GiornoCalendario),1,0)))","v":"Giorno 191"},{"$f":"IF(WEEKDAY(GiornoCalendario)=ValoreInizioSettimana,CONCATENATE(\"Settimana \",WEEKNUM(GiornoCalendario),\"/Giorno \",GiornoCalendario-DATE(YEAR(GiornoCalendario),1,0)),CONCATENATE(\"Giorno \",GiornoCalendario-DATE(YEAR(GiornoCalendario),1,0)))","v":"Giorno 192"},{"$f":"IF(WEEKDAY(GiornoCalendario)=ValoreInizioSettimana,CONCATENATE(\"Settimana \",WEEKNUM(GiornoCalendario),\"/Giorno \",GiornoCalendario-DATE(YEAR(GiornoCalendario),1,0)),CONCATENATE(\"Giorno \",GiornoCalendario-DATE(YEAR(GiornoCalendario),1,0)))","v":"Giorno 193"},{"$f":"IF(WEEKDAY(GiornoCalendario)=ValoreInizioSettimana,CONCATENATE(\"Settimana \",WEEKNUM(GiornoCalendario),\"/Giorno \",GiornoCalendario-DATE(YEAR(GiornoCalendario),1,0)),CONCATENATE(\"Giorno \",GiornoCalendario-DATE(YEAR(GiornoCalendario),1,0)))","v":"Giorno 194"},{"$f":"IF(WEEKDAY(GiornoCalendario)=ValoreInizioSettimana,CONCATENATE(\"Settimana \",WEEKNUM(GiornoCalendario),\"/Giorno \",GiornoCalendario-DATE(YEAR(GiornoCalendario),1,0)),CONCATENATE(\"Giorno \",GiornoCalendario-DATE(YEAR(GiornoCalendario),1,0)))","v":"Giorno 195"}]
[]
[null,null,{"$f":"GiorniESettimane+DATE(AnnoCalendario,7,1)-WEEKDAY(DATE(AnnoCalendario,7,1),(InizioSettimana=\"LUN\")+1)+15","v":"2018-07-15"},"2018-07-16","2018-07-17","2018-07-18","2018-07-19","2018-07-20","2018-07-21"]
[null,null,{"$f":"IF(WEEKDAY(GiornoCalendario)=ValoreInizioSettimana,CONCATENATE(\"Settimana \",WEEKNUM(GiornoCalendario),\"/Giorno \",GiornoCalendario-DATE(YEAR(GiornoCalendario),1,0)),CONCATENATE(\"Giorno \",GiornoCalendario-DATE(YEAR(GiornoCalendario),1,0)))","v":"Settimana 29/Giorno 196"},{"$f":"IF(WEEKDAY(GiornoCalendario)=ValoreInizioSettimana,CONCATENATE(\"Settimana \",WEEKNUM(GiornoCalendario),\"/Giorno \",GiornoCalendario-DATE(YEAR(GiornoCalendario),1,0)),CONCATENATE(\"Giorno \",GiornoCalendario-DATE(YEAR(GiornoCalendario),1,0)))","v":"Giorno 197"},{"$f":"IF(WEEKDAY(GiornoCalendario)=ValoreInizioSettimana,CONCATENATE(\"Settimana \",WEEKNUM(GiornoCalendario),\"/Giorno \",GiornoCalendario-DATE(YEAR(GiornoCalendario),1,0)),CONCATENATE(\"Giorno \",GiornoCalendario-DATE(YEAR(GiornoCalendario),1,0)))","v":"Giorno 198"},{"$f":"IF(WEEKDAY(GiornoCalendario)=ValoreInizioSettimana,CONCATENATE(\"Settimana \",WEEKNUM(GiornoCalendario),\"/Giorno \",GiornoCalendario-DATE(YEAR(GiornoCalendario),1,0)),CONCATENATE(\"Giorno \",GiornoCalendario-DATE(YEAR(GiornoCalendario),1,0)))","v":"Giorno 199"},{"$f":"IF(WEEKDAY(GiornoCalendario)=ValoreInizioSettimana,CONCATENATE(\"Settimana \",WEEKNUM(GiornoCalendario),\"/Giorno \",GiornoCalendario-DATE(YEAR(GiornoCalendario),1,0)),CONCATENATE(\"Giorno \",GiornoCalendario-DATE(YEAR(GiornoCalendario),1,0)))","v":"Giorno 200"},{"$f":"IF(WEEKDAY(GiornoCalendario)=ValoreInizioSettimana,CONCATENATE(\"Settimana \",WEEKNUM(GiornoCalendario),\"/Giorno \",GiornoCalendario-DATE(YEAR(GiornoCalendario),1,0)),CONCATENATE(\"Giorno \",GiornoCalendario-DATE(YEAR(GiornoCalendario),1,0)))","v":"Giorno 201"},{"$f":"IF(WEEKDAY(GiornoCalendario)=ValoreInizioSettimana,CONCATENATE(\"Settimana \",WEEKNUM(GiornoCalendario),\"/Giorno \",GiornoCalendario-DATE(YEAR(GiornoCalendario),1,0)),CONCATENATE(\"Giorno \",GiornoCalendario-DATE(YEAR(GiornoCalendario),1,0)))","v":"Giorno 202"}]
[]
[null,null,{"$f":"GiorniESettimane+DATE(AnnoCalendario,7,1)-WEEKDAY(DATE(AnnoCalendario,7,1),(InizioSettimana=\"LUN\")+1)+22","v":"2018-07-22"},"2018-07-23","2018-07-24","2018-07-25","2018-07-26","2018-07-27","2018-07-28"]
[null,null,{"$f":"IF(WEEKDAY(GiornoCalendario)=ValoreInizioSettimana,CONCATENATE(\"Settimana \",WEEKNUM(GiornoCalendario),\"/Giorno \",GiornoCalendario-DATE(YEAR(GiornoCalendario),1,0)),CONCATENATE(\"Giorno \",GiornoCalendario-DATE(YEAR(GiornoCalendario),1,0)))","v":"Settimana 30/Giorno 203"},{"$f":"IF(WEEKDAY(GiornoCalendario)=ValoreInizioSettimana,CONCATENATE(\"Settimana \",WEEKNUM(GiornoCalendario),\"/Giorno \",GiornoCalendario-DATE(YEAR(GiornoCalendario),1,0)),CONCATENATE(\"Giorno \",GiornoCalendario-DATE(YEAR(GiornoCalendario),1,0)))","v":"Giorno 204"},{"$f":"IF(WEEKDAY(GiornoCalendario)=ValoreInizioSettimana,CONCATENATE(\"Settimana \",WEEKNUM(GiornoCalendario),\"/Giorno \",GiornoCalendario-DATE(YEAR(GiornoCalendario),1,0)),CONCATENATE(\"Giorno \",GiornoCalendario-DATE(YEAR(GiornoCalendario),1,0)))","v":"Giorno 205"},{"$f":"IF(WEEKDAY(GiornoCalendario)=ValoreInizioSettimana,CONCATENATE(\"Settimana \",WEEKNUM(GiornoCalendario),\"/Giorno \",GiornoCalendario-DATE(YEAR(GiornoCalendario),1,0)),CONCATENATE(\"Giorno \",GiornoCalendario-DATE(YEAR(GiornoCalendario),1,0)))","v":"Giorno 206"},{"$f":"IF(WEEKDAY(GiornoCalendario)=ValoreInizioSettimana,CONCATENATE(\"Settimana \",WEEKNUM(GiornoCalendario),\"/Giorno \",GiornoCalendario-DATE(YEAR(GiornoCalendario),1,0)),CONCATENATE(\"Giorno \",GiornoCalendario-DATE(YEAR(GiornoCalendario),1,0)))","v":"Giorno 207"},{"$f":"IF(WEEKDAY(GiornoCalendario)=ValoreInizioSettimana,CONCATENATE(\"Settimana \",WEEKNUM(GiornoCalendario),\"/Giorno \",GiornoCalendario-DATE(YEAR(GiornoCalendario),1,0)),CONCATENATE(\"Giorno \",GiornoCalendario-DATE(YEAR(GiornoCalendario),1,0)))","v":"Giorno 208"},{"$f":"IF(WEEKDAY(GiornoCalendario)=ValoreInizioSettimana,CONCATENATE(\"Settimana \",WEEKNUM(GiornoCalendario),\"/Giorno \",GiornoCalendario-DATE(YEAR(GiornoCalendario),1,0)),CONCATENATE(\"Giorno \",GiornoCalendario-DATE(YEAR(GiornoCalendario),1,0)))","v":"Giorno 209"}]
[]
[null,null,{"$f":"GiorniESettimane+DATE(AnnoCalendario,7,1)-WEEKDAY(DATE(AnnoCalendario,7,1),(InizioSettimana=\"LUN\")+1)+29","v":"2018-07-29"},"2018-07-30","2018-07-31","2018-08-01","2018-08-02","2018-08-03","2018-08-04"]
[null,null,{"$f":"IF(WEEKDAY(GiornoCalendario)=ValoreInizioSettimana,CONCATENATE(\"Settimana \",WEEKNUM(GiornoCalendario),\"/Giorno \",GiornoCalendario-DATE(YEAR(GiornoCalendario),1,0)),CONCATENATE(\"Giorno \",GiornoCalendario-DATE(YEAR(GiornoCalendario),1,0)))","v":"Settimana 31/Giorno 210"},{"$f":"IF(WEEKDAY(GiornoCalendario)=ValoreInizioSettimana,CONCATENATE(\"Settimana \",WEEKNUM(GiornoCalendario),\"/Giorno \",GiornoCalendario-DATE(YEAR(GiornoCalendario),1,0)),CONCATENATE(\"Giorno \",GiornoCalendario-DATE(YEAR(GiornoCalendario),1,0)))","v":"Giorno 211"},{"$f":"IF(WEEKDAY(GiornoCalendario)=ValoreInizioSettimana,CONCATENATE(\"Settimana \",WEEKNUM(GiornoCalendario),\"/Giorno \",GiornoCalendario-DATE(YEAR(GiornoCalendario),1,0)),CONCATENATE(\"Giorno \",GiornoCalendario-DATE(YEAR(GiornoCalendario),1,0)))","v":"Giorno 212"},{"$f":"IF(WEEKDAY(GiornoCalendario)=ValoreInizioSettimana,CONCATENATE(\"Settimana \",WEEKNUM(GiornoCalendario),\"/Giorno \",GiornoCalendario-DATE(YEAR(GiornoCalendario),1,0)),CONCATENATE(\"Giorno \",GiornoCalendario-DATE(YEAR(GiornoCalendario),1,0)))","v":"Giorno 213"},{"$f":"IF(WEEKDAY(GiornoCalendario)=ValoreInizioSettimana,CONCATENATE(\"Settimana \",WEEKNUM(GiornoCalendario),\"/Giorno \",GiornoCalendario-DATE(YEAR(GiornoCalendario),1,0)),CONCATENATE(\"Giorno \",GiornoCalendario-DATE(YEAR(GiornoCalendario),1,0)))","v":"Giorno 214"},{"$f":"IF(WEEKDAY(GiornoCalendario)=ValoreInizioSettimana,CONCATENATE(\"Settimana \",WEEKNUM(GiornoCalendario),\"/Giorno \",GiornoCalendario-DATE(YEAR(GiornoCalendario),1,0)),CONCATENATE(\"Giorno \",GiornoCalendario-DATE(YEAR(GiornoCalendario),1,0)))","v":"Giorno 215"},{"$f":"IF(WEEKDAY(GiornoCalendario)=ValoreInizioSettimana,CONCATENATE(\"Settimana \",WEEKNUM(GiornoCalendario),\"/Giorno \",GiornoCalendario-DATE(YEAR(GiornoCalendario),1,0)),CONCATENATE(\"Giorno \",GiornoCalendario-DATE(YEAR(GiornoCalendario),1,0)))","v":"Giorno 216"}]
[{"$nulls":4},"NOTE"]
[]
[null,null,{"$f":"GiorniESettimane+DATE(AnnoCalendario,7,1)-WEEKDAY(DATE(AnnoCalendario,7,1),(InizioSettimana=\"LUN\")+1)+36","v":"2018-08-05"},"2018-08-06"]
[null,null,{"$f":"IF(WEEKDAY(GiornoCalendario)=ValoreInizioSettimana,CONCATENATE(\"Settimana \",WEEKNUM(GiornoCalendario),\"/Giorno \",GiornoCalendario-DATE(YEAR(GiornoCalendario),1,0)),CONCATENATE(\"Giorno \",GiornoCalendario-DATE(YEAR(GiornoCalendario),1,0)))","v":"Settimana 32/Giorno 217"},{"$f":"IF(WEEKDAY(GiornoCalendario)=ValoreInizioSettimana,CONCATENATE(\"Settimana \",WEEKNUM(GiornoCalendario),\"/Giorno \",GiornoCalendario-DATE(YEAR(GiornoCalendario),1,0)),CONCATENATE(\"Giorno \",GiornoCalendario-DATE(YEAR(GiornoCalendario),1,0)))","v":"Giorno 218"}]

{"sheet":"AGO","index":7,"n_rows":20,"n_cols":9,"rows_kept":20,"merged":[[16,2,17,2],[17,4,19,8]]}
[null,"AGO",{"$f":"UPPER(TEXT(InizioSettimana,\"mmm\"))","v":"DOM"},{"$f":"UPPER(TEXT(D3,\"ggg\"))","v":"LUN"},"MAR","MER","GIO","VEN","SAB"]
[null,{"$f":"AnnoCalendario","v":2018}]
[null,null,{"$f":"GiorniESettimane+DATE(AnnoCalendario,8,1)-WEEKDAY(DATE(AnnoCalendario,8,1),(InizioSettimana=\"LUN\")+1)+1","v":"2018-07-29"},"2018-07-30","2018-07-31","2018-08-01","2018-08-02","2018-08-03","2018-08-04"]
[null,null,{"$f":"IF(DAY(GiornoCalendario)=1,CONCATENATE(\"Settimana \",WEEKNUM(GiornoCalendario),\"/Giorno \",GiornoCalendario-DATE(YEAR(GiornoCalendario),1,0)),CONCATENATE(\"Giorno \",GiornoCalendario-DATE(YEAR(GiornoCalendario),1,0)))","v":"Giorno 210"},{"$f":"IF(DAY(GiornoCalendario)=1,CONCATENATE(\"Settimana \",WEEKNUM(GiornoCalendario),\"/Giorno \",GiornoCalendario-DATE(YEAR(GiornoCalendario),1,0)),CONCATENATE(\"Giorno \",GiornoCalendario-DATE(YEAR(GiornoCalendario),1,0)))","v":"Giorno 211"},{"$f":"IF(DAY(GiornoCalendario)=1,CONCATENATE(\"Settimana \",WEEKNUM(GiornoCalendario),\"/Giorno \",GiornoCalendario-DATE(YEAR(GiornoCalendario),1,0)),CONCATENATE(\"Giorno \",GiornoCalendario-DATE(YEAR(GiornoCalendario),1,0)))","v":"Giorno 212"},{"$f":"IF(DAY(GiornoCalendario)=1,CONCATENATE(\"Settimana \",WEEKNUM(GiornoCalendario),\"/Giorno \",GiornoCalendario-DATE(YEAR(GiornoCalendario),1,0)),CONCATENATE(\"Giorno \",GiornoCalendario-DATE(YEAR(GiornoCalendario),1,0)))","v":"Settimana 31/Giorno 213"},{"$f":"IF(DAY(GiornoCalendario)=1,CONCATENATE(\"Settimana \",WEEKNUM(GiornoCalendario),\"/Giorno \",GiornoCalendario-DATE(YEAR(GiornoCalendario),1,0)),CONCATENATE(\"Giorno \",GiornoCalendario-DATE(YEAR(GiornoCalendario),1,0)))","v":"Giorno 214"},{"$f":"IF(DAY(GiornoCalendario)=1,CONCATENATE(\"Settimana \",WEEKNUM(GiornoCalendario),\"/Giorno \",GiornoCalendario-DATE(YEAR(GiornoCalendario),1,0)),CONCATENATE(\"Giorno \",GiornoCalendario-DATE(YEAR(GiornoCalendario),1,0)))","v":"Giorno 215"},{"$f":"IF(DAY(GiornoCalendario)=1,CONCATENATE(\"Settimana \",WEEKNUM(GiornoCalendario),\"/Giorno \",GiornoCalendario-DATE(YEAR(GiornoCalendario),1,0)),CONCATENATE(\"Giorno \",GiornoCalendario-DATE(YEAR(GiornoCalendario),1,0)))","v":"Giorno 216"}]
[]
[null,null,{"$f":"GiorniESettimane+DATE(AnnoCalendario,8,1)-WEEKDAY(DATE(AnnoCalendario,8,1),(InizioSettimana=\"LUN\")+1)+8","v":"2018-08-05"},"2018-08-06","2018-08-07","2018-08-08","2018-08-09","2018-08-10","2018-08-11"]
[null,null,{"$f":"IF(WEEKDAY(GiornoCalendario)=ValoreInizioSettimana,CONCATENATE(\"Settimana \",WEEKNUM(GiornoCalendario),\"/Giorno \",GiornoCalendario-DATE(YEAR(GiornoCalendario),1,0)),CONCATENATE(\"Giorno \",GiornoCalendario-DATE(YEAR(GiornoCalendario),1,0)))","v":"Settimana 32/Giorno 217"},{"$f":"IF(WEEKDAY(GiornoCalendario)=ValoreInizioSettimana,CONCATENATE(\"Settimana \",WEEKNUM(GiornoCalendario),\"/Giorno \",GiornoCalendario-DATE(YEAR(GiornoCalendario),1,0)),CONCATENATE(\"Giorno \",GiornoCalendario-DATE(YEAR(GiornoCalendario),1,0)))","v":"Giorno 218"},{"$f":"IF(WEEKDAY(GiornoCalendario)=ValoreInizioSettimana,CONCATENATE(\"Settimana \",WEEKNUM(GiornoCalendario),\"/Giorno \",GiornoCalendario-DATE(YEAR(GiornoCalendario),1,0)),CONCATENATE(\"Giorno \",GiornoCalendario-DATE(YEAR(GiornoCalendario),1,0)))","v":"Giorno 219"},{"$f":"IF(WEEKDAY(GiornoCalendario)=ValoreInizioSettimana,CONCATENATE(\"Settimana \",WEEKNUM(GiornoCalendario),\"/Giorno \",GiornoCalendario-DATE(YEAR(GiornoCalendario),1,0)),CONCATENATE(\"Giorno \",GiornoCalendario-DATE(YEAR(GiornoCalendario),1,0)))","v":"Giorno 220"},{"$f":"IF(WEEKDAY(GiornoCalendario)=ValoreInizioSettimana,CONCATENATE(\"Settimana \",WEEKNUM(GiornoCalendario),\"/Giorno \",GiornoCalendario-DATE(YEAR(GiornoCalendario),1,0)),CONCATENATE(\"Giorno \",GiornoCalendario-DATE(YEAR(GiornoCalendario),1,0)))","v":"Giorno 221"},{"$f":"IF(WEEKDAY(GiornoCalendario)=ValoreInizioSettimana,CONCATENATE(\"Settimana \",WEEKNUM(GiornoCalendario),\"/Giorno \",GiornoCalendario-DATE(YEAR(GiornoCalendario),1,0)),CONCATENATE(\"Giorno \",GiornoCalendario-DATE(YEAR(GiornoCalendario),1,0)))","v":"Giorno 222"},{"$f":"IF(WEEKDAY(GiornoCalendario)=ValoreInizioSettimana,CONCATENATE(\"Settimana \",WEEKNUM(GiornoCalendario),\"/Giorno \",GiornoCalendario-DATE(YEAR(GiornoCalendario),1,0)),CONCATENATE(\"Giorno \",GiornoCalendario-DATE(YEAR(GiornoCalendario),1,0)))","v":"Giorno 223"}]
[]
[null,null,{"$f":"GiorniESettimane+DATE(AnnoCalendario,8,1)-WEEKDAY(DATE(AnnoCalendario,8,1),(InizioSettimana=\"LUN\")+1)+15","v":"2018-08-12"},"2018-08-13","2018-08-14","2018-08-15","2018-08-16","2018-08-17","2018-08-18"]
[null,null,{"$f":"IF(WEEKDAY(GiornoCalendario)=ValoreInizioSettimana,CONCATENATE(\"Settimana \",WEEKNUM(GiornoCalendario),\"/Giorno \",GiornoCalendario-DATE(YEAR(GiornoCalendario),1,0)),CONCATENATE(\"Giorno \",GiornoCalendario-DATE(YEAR(GiornoCalendario),1,0)))","v":"Settimana 33/Giorno 224"},{"$f":"IF(WEEKDAY(GiornoCalendario)=ValoreInizioSettimana,CONCATENATE(\"Settimana \",WEEKNUM(GiornoCalendario),\"/Giorno \",GiornoCalendario-DATE(YEAR(GiornoCalendario),1,0)),CONCATENATE(\"Giorno \",GiornoCalendario-DATE(YEAR(GiornoCalendario),1,0)))","v":"Giorno 225"},{"$f":"IF(WEEKDAY(GiornoCalendario)=ValoreInizioSettimana,CONCATENATE(\"Settimana \",WEEKNUM(GiornoCalendario),\"/Giorno \",GiornoCalendario-DATE(YEAR(GiornoCalendario),1,0)),CONCATENATE(\"Giorno \",GiornoCalendario-DATE(YEAR(GiornoCalendario),1,0)))","v":"Giorno 226"},{"$f":"IF(WEEKDAY(GiornoCalendario)=ValoreInizioSettimana,CONCATENATE(\"Settimana \",WEEKNUM(GiornoCalendario),\"/Giorno \",GiornoCalendario-DATE(YEAR(GiornoCalendario),1,0)),CONCATENATE(\"Giorno \",GiornoCalendario-DATE(YEAR(GiornoCalendario),1,0)))","v":"Giorno 227"},{"$f":"IF(WEEKDAY(GiornoCalendario)=ValoreInizioSettimana,CONCATENATE(\"Settimana \",WEEKNUM(GiornoCalendario),\"/Giorno \",GiornoCalendario-DATE(YEAR(GiornoCalendario),1,0)),CONCATENATE(\"Giorno \",GiornoCalendario-DATE(YEAR(GiornoCalendario),1,0)))","v":"Giorno 228"},{"$f":"IF(WEEKDAY(GiornoCalendario)=ValoreInizioSettimana,CONCATENATE(\"Settimana \",WEEKNUM(GiornoCalendario),\"/Giorno \",GiornoCalendario-DATE(YEAR(GiornoCalendario),1,0)),CONCATENATE(\"Giorno \",GiornoCalendario-DATE(YEAR(GiornoCalendario),1,0)))","v":"Giorno 229"},{"$f":"IF(WEEKDAY(GiornoCalendario)=ValoreInizioSettimana,CONCATENATE(\"Settimana \",WEEKNUM(GiornoCalendario),\"/Giorno \",GiornoCalendario-DATE(YEAR(GiornoCalendario),1,0)),CONCATENATE(\"Giorno \",GiornoCalendario-DATE(YEAR(GiornoCalendario),1,0)))","v":"Giorno 230"}]
[]
[null,null,{"$f":"GiorniESettimane+DATE(AnnoCalendario,8,1)-WEEKDAY(DATE(AnnoCalendario,8,1),(InizioSettimana=\"LUN\")+1)+22","v":"2018-08-19"},"2018-08-20","2018-08-21","2018-08-22","2018-08-23","2018-08-24","2018-08-25"]
[null,null,{"$f":"IF(WEEKDAY(GiornoCalendario)=ValoreInizioSettimana,CONCATENATE(\"Settimana \",WEEKNUM(GiornoCalendario),\"/Giorno \",GiornoCalendario-DATE(YEAR(GiornoCalendario),1,0)),CONCATENATE(\"Giorno \",GiornoCalendario-DATE(YEAR(GiornoCalendario),1,0)))","v":"Settimana 34/Giorno 231"},{"$f":"IF(WEEKDAY(GiornoCalendario)=ValoreInizioSettimana,CONCATENATE(\"Settimana \",WEEKNUM(GiornoCalendario),\"/Giorno \",GiornoCalendario-DATE(YEAR(GiornoCalendario),1,0)),CONCATENATE(\"Giorno \",GiornoCalendario-DATE(YEAR(GiornoCalendario),1,0)))","v":"Giorno 232"},{"$f":"IF(WEEKDAY(GiornoCalendario)=ValoreInizioSettimana,CONCATENATE(\"Settimana \",WEEKNUM(GiornoCalendario),\"/Giorno \",GiornoCalendario-DATE(YEAR(GiornoCalendario),1,0)),CONCATENATE(\"Giorno \",GiornoCalendario-DATE(YEAR(GiornoCalendario),1,0)))","v":"Giorno 233"},{"$f":"IF(WEEKDAY(GiornoCalendario)=ValoreInizioSettimana,CONCATENATE(\"Settimana \",WEEKNUM(GiornoCalendario),\"/Giorno \",GiornoCalendario-DATE(YEAR(GiornoCalendario),1,0)),CONCATENATE(\"Giorno \",GiornoCalendario-DATE(YEAR(GiornoCalendario),1,0)))","v":"Giorno 234"},{"$f":"IF(WEEKDAY(GiornoCalendario)=ValoreInizioSettimana,CONCATENATE(\"Settimana \",WEEKNUM(GiornoCalendario),\"/Giorno \",GiornoCalendario-DATE(YEAR(GiornoCalendario),1,0)),CONCATENATE(\"Giorno \",GiornoCalendario-DATE(YEAR(GiornoCalendario),1,0)))","v":"Giorno 235"},{"$f":"IF(WEEKDAY(GiornoCalendario)=ValoreInizioSettimana,CONCATENATE(\"Settimana \",WEEKNUM(GiornoCalendario),\"/Giorno \",GiornoCalendario-DATE(YEAR(GiornoCalendario),1,0)),CONCATENATE(\"Giorno \",GiornoCalendario-DATE(YEAR(GiornoCalendario),1,0)))","v":"Giorno 236"},{"$f":"IF(WEEKDAY(GiornoCalendario)=ValoreInizioSettimana,CONCATENATE(\"Settimana \",WEEKNUM(GiornoCalendario),\"/Giorno \",GiornoCalendario-DATE(YEAR(GiornoCalendario),1,0)),CONCATENATE(\"Giorno \",GiornoCalendario-DATE(YEAR(GiornoCalendario),1,0)))","v":"Giorno 237"}]
[]
[null,null,{"$f":"GiorniESettimane+DATE(AnnoCalendario,8,1)-WEEKDAY(DATE(AnnoCalendario,8,1),(InizioSettimana=\"LUN\")+1)+29","v":"2018-08-26"},"2018-08-27","2018-08-28","2018-08-29","2018-08-30","2018-08-31","2018-09-01"]
[null,null,{"$f":"IF(WEEKDAY(GiornoCalendario)=ValoreInizioSettimana,CONCATENATE(\"Settimana \",WEEKNUM(GiornoCalendario),\"/Giorno \",GiornoCalendario-DATE(YEAR(GiornoCalendario),1,0)),CONCATENATE(\"Giorno \",GiornoCalendario-DATE(YEAR(GiornoCalendario),1,0)))","v":"Settimana 35/Giorno 238"},{"$f":"IF(WEEKDAY(GiornoCalendario)=ValoreInizioSettimana,CONCATENATE(\"Settimana \",WEEKNUM(GiornoCalendario),\"/Giorno \",GiornoCalendario-DATE(YEAR(GiornoCalendario),1,0)),CONCATENATE(\"Giorno \",GiornoCalendario-DATE(YEAR(GiornoCalendario),1,0)))","v":"Giorno 239"},{"$f":"IF(WEEKDAY(GiornoCalendario)=ValoreInizioSettimana,CONCATENATE(\"Settimana \",WEEKNUM(GiornoCalendario),\"/Giorno \",GiornoCalendario-DATE(YEAR(GiornoCalendario),1,0)),CONCATENATE(\"Giorno \",GiornoCalendario-DATE(YEAR(GiornoCalendario),1,0)))","v":"Giorno 240"},{"$f":"IF(WEEKDAY(GiornoCalendario)=ValoreInizioSettimana,CONCATENATE(\"Settimana \",WEEKNUM(GiornoCalendario),\"/Giorno \",GiornoCalendario-DATE(YEAR(GiornoCalendario),1,0)),CONCATENATE(\"Giorno \",GiornoCalendario-DATE(YEAR(GiornoCalendario),1,0)))","v":"Giorno 241"},{"$f":"IF(WEEKDAY(GiornoCalendario)=ValoreInizioSettimana,CONCATENATE(\"Settimana \",WEEKNUM(GiornoCalendario),\"/Giorno \",GiornoCalendario-DATE(YEAR(GiornoCalendario),1,0)),CONCATENATE(\"Giorno \",GiornoCalendario-DATE(YEAR(GiornoCalendario),1,0)))","v":"Giorno 242"},{"$f":"IF(WEEKDAY(GiornoCalendario)=ValoreInizioSettimana,CONCATENATE(\"Settimana \",WEEKNUM(GiornoCalendario),\"/Giorno \",GiornoCalendario-DATE(YEAR(GiornoCalendario),1,0)),CONCATENATE(\"Giorno \",GiornoCalendario-DATE(YEAR(GiornoCalendario),1,0)))","v":"Giorno 243"},{"$f":"IF(WEEKDAY(GiornoCalendario)=ValoreInizioSettimana,CONCATENATE(\"Settimana \",WEEKNUM(GiornoCalendario),\"/Giorno \",GiornoCalendario-DATE(YEAR(GiornoCalendario),1,0)),CONCATENATE(\"Giorno \",GiornoCalendario-DATE(YEAR(GiornoCalendario),1,0)))","v":"Giorno 244"}]
[{"$nulls":4},"NOTE"]
[]
[null,null,{"$f":"GiorniESettimane+DATE(AnnoCalendario,8,1)-WEEKDAY(DATE(AnnoCalendario,8,1),(InizioSettimana=\"LUN\")+1)+36","v":"2018-09-02"},"2018-09-03"]
[null,null,{"$f":"IF(WEEKDAY(GiornoCalendario)=ValoreInizioSettimana,CONCATENATE(\"Settimana \",WEEKNUM(GiornoCalendario),\"/Giorno \",GiornoCalendario-DATE(YEAR(GiornoCalendario),1,0)),CONCATENATE(\"Giorno \",GiornoCalendario-DATE(YEAR(GiornoCalendario),1,0)))","v":"Settimana 36/Giorno 245"},{"$f":"IF(WEEKDAY(GiornoCalendario)=ValoreInizioSettimana,CONCATENATE(\"Settimana \",WEEKNUM(GiornoCalendario),\"/Giorno \",GiornoCalendario-DATE(YEAR(GiornoCalendario),1,0)),CONCATENATE(\"Giorno \",GiornoCalendario-DATE(YEAR(GiornoCalendario),1,0)))","v":"Giorno 246"}]

{"sheet":"SET","index":8,"n_rows":20,"n_cols":9,"rows_kept":20,"merged":[[16,2,17,2],[17,4,19,8]]}
[null,"SET",{"$f":"UPPER(TEXT(InizioSettimana,\"mmm\"))","v":"DOM"},{"$f":"UPPER(TEXT(D3,\"ggg\"))","v":"LUN"},"MAR","MER","GIO","VEN","SAB"]
[null,{"$f":"AnnoCalendario","v":2018}]
[null,null,{"$f":"GiorniESettimane+DATE(AnnoCalendario,9,1)-WEEKDAY(DATE(AnnoCalendario,9,1),(InizioSettimana=\"LUN\")+1)+1","v":"2018-08-26"},"2018-08-27","2018-08-28","2018-08-29","2018-08-30","2018-08-31","2018-09-01"]
[null,null,{"$f":"IF(DAY(GiornoCalendario)=1,CONCATENATE(\"Settimana \",WEEKNUM(GiornoCalendario),\"/Giorno \",GiornoCalendario-DATE(YEAR(GiornoCalendario),1,0)),CONCATENATE(\"Giorno \",GiornoCalendario-DATE(YEAR(GiornoCalendario),1,0)))","v":"Giorno 238"},{"$f":"IF(DAY(GiornoCalendario)=1,CONCATENATE(\"Settimana \",WEEKNUM(GiornoCalendario),\"/Giorno \",GiornoCalendario-DATE(YEAR(GiornoCalendario),1,0)),CONCATENATE(\"Giorno \",GiornoCalendario-DATE(YEAR(GiornoCalendario),1,0)))","v":"Giorno 239"},{"$f":"IF(DAY(GiornoCalendario)=1,CONCATENATE(\"Settimana \",WEEKNUM(GiornoCalendario),\"/Giorno \",GiornoCalendario-DATE(YEAR(GiornoCalendario),1,0)),CONCATENATE(\"Giorno \",GiornoCalendario-DATE(YEAR(GiornoCalendario),1,0)))","v":"Giorno 240"},{"$f":"IF(DAY(GiornoCalendario)=1,CONCATENATE(\"Settimana \",WEEKNUM(GiornoCalendario),\"/Giorno \",GiornoCalendario-DATE(YEAR(GiornoCalendario),1,0)),CONCATENATE(\"Giorno \",GiornoCalendario-DATE(YEAR(GiornoCalendario),1,0)))","v":"Giorno 241"},{"$f":"IF(DAY(GiornoCalendario)=1,CONCATENATE(\"Settimana \",WEEKNUM(GiornoCalendario),\"/Giorno \",GiornoCalendario-DATE(YEAR(GiornoCalendario),1,0)),CONCATENATE(\"Giorno \",GiornoCalendario-DATE(YEAR(GiornoCalendario),1,0)))","v":"Giorno 242"},{"$f":"IF(DAY(GiornoCalendario)=1,CONCATENATE(\"Settimana \",WEEKNUM(GiornoCalendario),\"/Giorno \",GiornoCalendario-DATE(YEAR(GiornoCalendario),1,0)),CONCATENATE(\"Giorno \",GiornoCalendario-DATE(YEAR(GiornoCalendario),1,0)))","v":"Giorno 243"},{"$f":"IF(DAY(GiornoCalendario)=1,CONCATENATE(\"Settimana \",WEEKNUM(GiornoCalendario),\"/Giorno \",GiornoCalendario-DATE(YEAR(GiornoCalendario),1,0)),CONCATENATE(\"Giorno \",GiornoCalendario-DATE(YEAR(GiornoCalendario),1,0)))","v":"Settimana 35/Giorno 244"}]
[]
[null,null,{"$f":"GiorniESettimane+DATE(AnnoCalendario,9,1)-WEEKDAY(DATE(AnnoCalendario,9,1),(InizioSettimana=\"LUN\")+1)+8","v":"2018-09-02"},"2018-09-03","2018-09-04","2018-09-05","2018-09-06","2018-09-07","2018-09-08"]
[null,null,{"$f":"IF(WEEKDAY(GiornoCalendario)=ValoreInizioSettimana,CONCATENATE(\"Settimana \",WEEKNUM(GiornoCalendario),\"/Giorno \",GiornoCalendario-DATE(YEAR(GiornoCalendario),1,0)),CONCATENATE(\"Giorno \",GiornoCalendario-DATE(YEAR(GiornoCalendario),1,0)))","v":"Settimana 36/Giorno 245"},{"$f":"IF(WEEKDAY(GiornoCalendario)=ValoreInizioSettimana,CONCATENATE(\"Settimana \",WEEKNUM(GiornoCalendario),\"/Giorno \",GiornoCalendario-DATE(YEAR(GiornoCalendario),1,0)),CONCATENATE(\"Giorno \",GiornoCalendario-DATE(YEAR(GiornoCalendario),1,0)))","v":"Giorno 246"},{"$f":"IF(WEEKDAY(GiornoCalendario)=ValoreInizioSettimana,CONCATENATE(\"Settimana \",WEEKNUM(GiornoCalendario),\"/Giorno \",GiornoCalendario-DATE(YEAR(GiornoCalendario),1,0)),CONCATENATE(\"Giorno \",GiornoCalendario-DATE(YEAR(GiornoCalendario),1,0)))","v":"Giorno 247"},{"$f":"IF(WEEKDAY(GiornoCalendario)=ValoreInizioSettimana,CONCATENATE(\"Settimana \",WEEKNUM(GiornoCalendario),\"/Giorno \",GiornoCalendario-DATE(YEAR(GiornoCalendario),1,0)),CONCATENATE(\"Giorno \",GiornoCalendario-DATE(YEAR(GiornoCalendario),1,0)))","v":"Giorno 248"},{"$f":"IF(WEEKDAY(GiornoCalendario)=ValoreInizioSettimana,CONCATENATE(\"Settimana \",WEEKNUM(GiornoCalendario),\"/Giorno \",GiornoCalendario-DATE(YEAR(GiornoCalendario),1,0)),CONCATENATE(\"Giorno \",GiornoCalendario-DATE(YEAR(GiornoCalendario),1,0)))","v":"Giorno 249"},{"$f":"IF(WEEKDAY(GiornoCalendario)=ValoreInizioSettimana,CONCATENATE(\"Settimana \",WEEKNUM(GiornoCalendario),\"/Giorno \",GiornoCalendario-DATE(YEAR(GiornoCalendario),1,0)),CONCATENATE(\"Giorno \",GiornoCalendario-DATE(YEAR(GiornoCalendario),1,0)))","v":"Giorno 250"},{"$f":"IF(WEEKDAY(GiornoCalendario)=ValoreInizioSettimana,CONCATENATE(\"Settimana \",WEEKNUM(GiornoCalendario),\"/Giorno \",GiornoCalendario-DATE(YEAR(GiornoCalendario),1,0)),CONCATENATE(\"Giorno \",GiornoCalendario-DATE(YEAR(GiornoCalendario),1,0)))","v":"Giorno 251"}]
[]
[null,null,{"$f":"GiorniESettimane+DATE(AnnoCalendario,9,1)-WEEKDAY(DATE(AnnoCalendario,9,1),(InizioSettimana=\"LUN\")+1)+15","v":"2018-09-09"},"2018-09-10","2018-09-11","2018-09-12","2018-09-13","2018-09-14","2018-09-15"]
[null,null,{"$f":"IF(WEEKDAY(GiornoCalendario)=ValoreInizioSettimana,CONCATENATE(\"Settimana \",WEEKNUM(GiornoCalendario),\"/Giorno \",GiornoCalendario-DATE(YEAR(GiornoCalendario),1,0)),CONCATENATE(\"Giorno \",GiornoCalendario-DATE(YEAR(GiornoCalendario),1,0)))","v":"Settimana 37/Giorno 252"},{"$f":"IF(WEEKDAY(GiornoCalendario)=ValoreInizioSettimana,CONCATENATE(\"Settimana \",WEEKNUM(GiornoCalendario),\"/Giorno \",GiornoCalendario-DATE(YEAR(GiornoCalendario),1,0)),CONCATENATE(\"Giorno \",GiornoCalendario-DATE(YEAR(GiornoCalendario),1,0)))","v":"Giorno 253"},{"$f":"IF(WEEKDAY(GiornoCalendario)=ValoreInizioSettimana,CONCATENATE(\"Settimana \",WEEKNUM(GiornoCalendario),\"/Giorno \",GiornoCalendario-DATE(YEAR(GiornoCalendario),1,0)),CONCATENATE(\"Giorno \",GiornoCalendario-DATE(YEAR(GiornoCalendario),1,0)))","v":"Giorno 254"},{"$f":"IF(WEEKDAY(GiornoCalendario)=ValoreInizioSettimana,CONCATENATE(\"Settimana \",WEEKNUM(GiornoCalendario),\"/Giorno \",GiornoCalendario-DATE(YEAR(GiornoCalendario),1,0)),CONCATENATE(\"Giorno \",GiornoCalendario-DATE(YEAR(GiornoCalendario),1,0)))","v":"Giorno 255"},{"$f":"IF(WEEKDAY(GiornoCalendario)=ValoreInizioSettimana,CONCATENATE(\"Settimana \",WEEKNUM(GiornoCalendario),\"/Giorno \",GiornoCalendario-DATE(YEAR(GiornoCalendario),1,0)),CONCATENATE(\"Giorno \",GiornoCalendario-DATE(YEAR(GiornoCalendario),1,0)))","v":"Giorno 256"},{"$f":"IF(WEEKDAY(GiornoCalendario)=ValoreInizioSettimana,CONCATENATE(\"Settimana \",WEEKNUM(GiornoCalendario),\"/Giorno \",GiornoCalendario-DATE(YEAR(GiornoCalendario),1,0)),CONCATENATE(\"Giorno \",GiornoCalendario-DATE(YEAR(GiornoCalendario),1,0)))","v":"Giorno 257"},{"$f":"IF(WEEKDAY(GiornoCalendario)=ValoreInizioSettimana,CONCATENATE(\"Settimana \",WEEKNUM(GiornoCalendario),\"/Giorno \",GiornoCalendario-DATE(YEAR(GiornoCalendario),1,0)),CONCATENATE(\"Giorno \",GiornoCalendario-DATE(YEAR(GiornoCalendario),1,0)))","v":"Giorno 258"}]
[]
[null,null,{"$f":"GiorniESettimane+DATE(AnnoCalendario,9,1)-WEEKDAY(DATE(AnnoCalendario,9,1),(InizioSettimana=\"LUN\")+1)+22","v":"2018-09-16"},"2018-09-17","2018-09-18","2018-09-19","2018-09-20","2018-09-21","2018-09-22"]
[null,null,{"$f":"IF(WEEKDAY(GiornoCalendario)=ValoreInizioSettimana,CONCATENATE(\"Settimana \",WEEKNUM(GiornoCalendario),\"/Giorno \",GiornoCalendario-DATE(YEAR(GiornoCalendario),1,0)),CONCATENATE(\"Giorno \",GiornoCalendario-DATE(YEAR(GiornoCalendario),1,0)))","v":"Settimana 38/Giorno 259"},{"$f":"IF(WEEKDAY(GiornoCalendario)=ValoreInizioSettimana,CONCATENATE(\"Settimana \",WEEKNUM(GiornoCalendario),\"/Giorno \",GiornoCalendario-DATE(YEAR(GiornoCalendario),1,0)),CONCATENATE(\"Giorno \",GiornoCalendario-DATE(YEAR(GiornoCalendario),1,0)))","v":"Giorno 260"},{"$f":"IF(WEEKDAY(GiornoCalendario)=ValoreInizioSettimana,CONCATENATE(\"Settimana \",WEEKNUM(GiornoCalendario),\"/Giorno \",GiornoCalendario-DATE(YEAR(GiornoCalendario),1,0)),CONCATENATE(\"Giorno \",GiornoCalendario-DATE(YEAR(GiornoCalendario),1,0)))","v":"Giorno 261"},{"$f":"IF(WEEKDAY(GiornoCalendario)=ValoreInizioSettimana,CONCATENATE(\"Settimana \",WEEKNUM(GiornoCalendario),\"/Giorno \",GiornoCalendario-DATE(YEAR(GiornoCalendario),1,0)),CONCATENATE(\"Giorno \",GiornoCalendario-DATE(YEAR(GiornoCalendario),1,0)))","v":"Giorno 262"},{"$f":"IF(WEEKDAY(GiornoCalendario)=ValoreInizioSettimana,CONCATENATE(\"Settimana \",WEEKNUM(GiornoCalendario),\"/Giorno \",GiornoCalendario-DATE(YEAR(GiornoCalendario),1,0)),CONCATENATE(\"Giorno \",GiornoCalendario-DATE(YEAR(GiornoCalendario),1,0)))","v":"Giorno 263"},{"$f":"IF(WEEKDAY(GiornoCalendario)=ValoreInizioSettimana,CONCATENATE(\"Settimana \",WEEKNUM(GiornoCalendario),\"/Giorno \",GiornoCalendario-DATE(YEAR(GiornoCalendario),1,0)),CONCATENATE(\"Giorno \",GiornoCalendario-DATE(YEAR(GiornoCalendario),1,0)))","v":"Giorno 264"},{"$f":"IF(WEEKDAY(GiornoCalendario)=ValoreInizioSettimana,CONCATENATE(\"Settimana \",WEEKNUM(GiornoCalendario),\"/Giorno \",GiornoCalendario-DATE(YEAR(GiornoCalendario),1,0)),CONCATENATE(\"Giorno \",GiornoCalendario-DATE(YEAR(GiornoCalendario),1,0)))","v":"Giorno 265"}]
[]
[null,null,{"$f":"GiorniESettimane+DATE(AnnoCalendario,9,1)-WEEKDAY(DATE(AnnoCalendario,9,1),(InizioSettimana=\"LUN\")+1)+29","v":"2018-09-23"},"2018-09-24","2018-09-25","2018-09-26","2018-09-27","2018-09-28","2018-09-29"]
[null,null,{"$f":"IF(WEEKDAY(GiornoCalendario)=ValoreInizioSettimana,CONCATENATE(\"Settimana \",WEEKNUM(GiornoCalendario),\"/Giorno \",GiornoCalendario-DATE(YEAR(GiornoCalendario),1,0)),CONCATENATE(\"Giorno \",GiornoCalendario-DATE(YEAR(GiornoCalendario),1,0)))","v":"Settimana 39/Giorno 266"},{"$f":"IF(WEEKDAY(GiornoCalendario)=ValoreInizioSettimana,CONCATENATE(\"Settimana \",WEEKNUM(GiornoCalendario),\"/Giorno \",GiornoCalendario-DATE(YEAR(GiornoCalendario),1,0)),CONCATENATE(\"Giorno \",GiornoCalendario-DATE(YEAR(GiornoCalendario),1,0)))","v":"Giorno 267"},{"$f":"IF(WEEKDAY(GiornoCalendario)=ValoreInizioSettimana,CONCATENATE(\"Settimana \",WEEKNUM(GiornoCalendario),\"/Giorno \",GiornoCalendario-DATE(YEAR(GiornoCalendario),1,0)),CONCATENATE(\"Giorno \",GiornoCalendario-DATE(YEAR(GiornoCalendario),1,0)))","v":"Giorno 268"},{"$f":"IF(WEEKDAY(GiornoCalendario)=ValoreInizioSettimana,CONCATENATE(\"Settimana \",WEEKNUM(GiornoCalendario),\"/Giorno \",GiornoCalendario-DATE(YEAR(GiornoCalendario),1,0)),CONCATENATE(\"Giorno \",GiornoCalendario-DATE(YEAR(GiornoCalendario),1,0)))","v":"Giorno 269"},{"$f":"IF(WEEKDAY(GiornoCalendario)=ValoreInizioSettimana,CONCATENATE(\"Settimana \",WEEKNUM(GiornoCalendario),\"/Giorno \",GiornoCalendario-DATE(YEAR(GiornoCalendario),1,0)),CONCATENATE(\"Giorno \",GiornoCalendario-DATE(YEAR(GiornoCalendario),1,0)))","v":"Giorno 270"},{"$f":"IF(WEEKDAY(GiornoCalendario)=ValoreInizioSettimana,CONCATENATE(\"Settimana \",WEEKNUM(GiornoCalendario),\"/Giorno \",GiornoCalendario-DATE(YEAR(GiornoCalendario),1,0)),CONCATENATE(\"Giorno \",GiornoCalendario-DATE(YEAR(GiornoCalendario),1,0)))","v":"Giorno 271"},{"$f":"IF(WEEKDAY(GiornoCalendario)=ValoreInizioSettimana,CONCATENATE(\"Settimana \",WEEKNUM(GiornoCalendario),\"/Giorno \",GiornoCalendario-DATE(YEAR(GiornoCalendario),1,0)),CONCATENATE(\"Giorno \",GiornoCalendario-DATE(YEAR(GiornoCalendario),1,0)))","v":"Giorno 272"}]
[{"$nulls":4},"NOTE"]
[]
[null,null,{"$f":"GiorniESettimane+DATE(AnnoCalendario,9,1)-WEEKDAY(DATE(AnnoCalendario,9,1),(InizioSettimana=\"LUN\")+1)+36","v":"2018-09-30"},"2018-10-01"]
[null,null,{"$f":"IF(WEEKDAY(GiornoCalendario)=ValoreInizioSettimana,CONCATENATE(\"Settimana \",WEEKNUM(GiornoCalendario),\"/Giorno \",GiornoCalendario-DATE(YEAR(GiornoCalendario),1,0)),CONCATENATE(\"Giorno \",GiornoCalendario-DATE(YEAR(GiornoCalendario),1,0)))","v":"Settimana 40/Giorno 273"},{"$f":"IF(WEEKDAY(GiornoCalendario)=ValoreInizioSettimana,CONCATENATE(\"Settimana \",WEEKNUM(GiornoCalendario),\"/Giorno \",GiornoCalendario-DATE(YEAR(GiornoCalendario),1,0)),CONCATENATE(\"Giorno \",GiornoCalendario-DATE(YEAR(GiornoCalendario),1,0)))","v":"Giorno 274"}]

{"sheet":"OTT","index":9,"n_rows":20,"n_cols":9,"rows_kept":20,"merged":[[16,2,17,2],[17,4,19,8]]}
[null,"OTT",{"$f":"UPPER(TEXT(InizioSettimana,\"mmm\"))","v":"DOM"},{"$f":"UPPER(TEXT(D3,\"ggg\"))","v":"LUN"},"MAR","MER","GIO","VEN","SAB"]
[null,{"$f":"AnnoCalendario","v":2018}]
[null,null,{"$f":"GiorniESettimane+DATE(AnnoCalendario,10,1)-WEEKDAY(DATE(AnnoCalendario,10,1),(InizioSettimana=\"LUN\")+1)+1","v":"2018-09-30"},"2018-10-01","2018-10-02","2018-10-03","2018-10-04","2018-10-05","2018-10-06"]
[null,null,{"$f":"IF(DAY(GiornoCalendario)=1,CONCATENATE(\"Settimana \",WEEKNUM(GiornoCalendario),\"/Giorno \",GiornoCalendario-DATE(YEAR(GiornoCalendario),1,0)),CONCATENATE(\"Giorno \",GiornoCalendario-DATE(YEAR(GiornoCalendario),1,0)))","v":"Giorno 273"},{"$f":"IF(DAY(GiornoCalendario)=1,CONCATENATE(\"Settimana \",WEEKNUM(GiornoCalendario),\"/Giorno \",GiornoCalendario-DATE(YEAR(GiornoCalendario),1,0)),CONCATENATE(\"Giorno \",GiornoCalendario-DATE(YEAR(GiornoCalendario),1,0)))","v":"Settimana 40/Giorno 274"},{"$f":"IF(DAY(GiornoCalendario)=1,CONCATENATE(\"Settimana \",WEEKNUM(GiornoCalendario),\"/Giorno \",GiornoCalendario-DATE(YEAR(GiornoCalendario),1,0)),CONCATENATE(\"Giorno \",GiornoCalendario-DATE(YEAR(GiornoCalendario),1,0)))","v":"Giorno 275"},{"$f":"IF(DAY(GiornoCalendario)=1,CONCATENATE(\"Settimana \",WEEKNUM(GiornoCalendario),\"/Giorno \",GiornoCalendario-DATE(YEAR(GiornoCalendario),1,0)),CONCATENATE(\"Giorno \",GiornoCalendario-DATE(YEAR(GiornoCalendario),1,0)))","v":"Giorno 276"},{"$f":"IF(DAY(GiornoCalendario)=1,CONCATENATE(\"Settimana \",WEEKNUM(GiornoCalendario),\"/Giorno \",GiornoCalendario-DATE(YEAR(GiornoCalendario),1,0)),CONCATENATE(\"Giorno \",GiornoCalendario-DATE(YEAR(GiornoCalendario),1,0)))","v":"Giorno 277"},{"$f":"IF(DAY(GiornoCalendario)=1,CONCATENATE(\"Settimana \",WEEKNUM(GiornoCalendario),\"/Giorno \",GiornoCalendario-DATE(YEAR(GiornoCalendario),1,0)),CONCATENATE(\"Giorno \",GiornoCalendario-DATE(YEAR(GiornoCalendario),1,0)))","v":"Giorno 278"},{"$f":"IF(DAY(GiornoCalendario)=1,CONCATENATE(\"Settimana \",WEEKNUM(GiornoCalendario),\"/Giorno \",GiornoCalendario-DATE(YEAR(GiornoCalendario),1,0)),CONCATENATE(\"Giorno \",GiornoCalendario-DATE(YEAR(GiornoCalendario),1,0)))","v":"Giorno 279"}]
[]
[null,null,{"$f":"GiorniESettimane+DATE(AnnoCalendario,10,1)-WEEKDAY(DATE(AnnoCalendario,10,1),(InizioSettimana=\"LUN\")+1)+8","v":"2018-10-07"},"2018-10-08","2018-10-09","2018-10-10","2018-10-11","2018-10-12","2018-10-13"]
[null,null,{"$f":"IF(WEEKDAY(GiornoCalendario)=ValoreInizioSettimana,CONCATENATE(\"Settimana \",WEEKNUM(GiornoCalendario),\"/Giorno \",GiornoCalendario-DATE(YEAR(GiornoCalendario),1,0)),CONCATENATE(\"Giorno \",GiornoCalendario-DATE(YEAR(GiornoCalendario),1,0)))","v":"Settimana 41/Giorno 280"},{"$f":"IF(WEEKDAY(GiornoCalendario)=ValoreInizioSettimana,CONCATENATE(\"Settimana \",WEEKNUM(GiornoCalendario),\"/Giorno \",GiornoCalendario-DATE(YEAR(GiornoCalendario),1,0)),CONCATENATE(\"Giorno \",GiornoCalendario-DATE(YEAR(GiornoCalendario),1,0)))","v":"Giorno 281"},{"$f":"IF(WEEKDAY(GiornoCalendario)=ValoreInizioSettimana,CONCATENATE(\"Settimana \",WEEKNUM(GiornoCalendario),\"/Giorno \",GiornoCalendario-DATE(YEAR(GiornoCalendario),1,0)),CONCATENATE(\"Giorno \",GiornoCalendario-DATE(YEAR(GiornoCalendario),1,0)))","v":"Giorno 282"},{"$f":"IF(WEEKDAY(GiornoCalendario)=ValoreInizioSettimana,CONCATENATE(\"Settimana \",WEEKNUM(GiornoCalendario),\"/Giorno \",GiornoCalendario-DATE(YEAR(GiornoCalendario),1,0)),CONCATENATE(\"Giorno \",GiornoCalendario-DATE(YEAR(GiornoCalendario),1,0)))","v":"Giorno 283"},{"$f":"IF(WEEKDAY(GiornoCalendario)=ValoreInizioSettimana,CONCATENATE(\"Settimana \",WEEKNUM(GiornoCalendario),\"/Giorno \",GiornoCalendario-DATE(YEAR(GiornoCalendario),1,0)),CONCATENATE(\"Giorno \",GiornoCalendario-DATE(YEAR(GiornoCalendario),1,0)))","v":"Giorno 284"},{"$f":"IF(WEEKDAY(GiornoCalendario)=ValoreInizioSettimana,CONCATENATE(\"Settimana \",WEEKNUM(GiornoCalendario),\"/Giorno \",GiornoCalendario-DATE(YEAR(GiornoCalendario),1,0)),CONCATENATE(\"Giorno \",GiornoCalendario-DATE(YEAR(GiornoCalendario),1,0)))","v":"Giorno 285"},{"$f":"IF(WEEKDAY(GiornoCalendario)=ValoreInizioSettimana,CONCATENATE(\"Settimana \",WEEKNUM(GiornoCalendario),\"/Giorno \",GiornoCalendario-DATE(YEAR(GiornoCalendario),1,0)),CONCATENATE(\"Giorno \",GiornoCalendario-DATE(YEAR(GiornoCalendario),1,0)))","v":"Giorno 286"}]
[]
[null,null,{"$f":"GiorniESettimane+DATE(AnnoCalendario,10,1)-WEEKDAY(DATE(AnnoCalendario,10,1),(InizioSettimana=\"LUN\")+1)+15","v":"2018-10-14"},"2018-10-15","2018-10-16","2018-10-17","2018-10-18","2018-10-19","2018-10-20"]
[null,null,{"$f":"IF(WEEKDAY(GiornoCalendario)=ValoreInizioSettimana,CONCATENATE(\"Settimana \",WEEKNUM(GiornoCalendario),\"/Giorno \",GiornoCalendario-DATE(YEAR(GiornoCalendario),1,0)),CONCATENATE(\"Giorno \",GiornoCalendario-DATE(YEAR(GiornoCalendario),1,0)))","v":"Settimana 42/Giorno 287"},{"$f":"IF(WEEKDAY(GiornoCalendario)=ValoreInizioSettimana,CONCATENATE(\"Settimana \",WEEKNUM(GiornoCalendario),\"/Giorno \",GiornoCalendario-DATE(YEAR(GiornoCalendario),1,0)),CONCATENATE(\"Giorno \",GiornoCalendario-DATE(YEAR(GiornoCalendario),1,0)))","v":"Giorno 288"},{"$f":"IF(WEEKDAY(GiornoCalendario)=ValoreInizioSettimana,CONCATENATE(\"Settimana \",WEEKNUM(GiornoCalendario),\"/Giorno \",GiornoCalendario-DATE(YEAR(GiornoCalendario),1,0)),CONCATENATE(\"Giorno \",GiornoCalendario-DATE(YEAR(GiornoCalendario),1,0)))","v":"Giorno 289"},{"$f":"IF(WEEKDAY(GiornoCalendario)=ValoreInizioSettimana,CONCATENATE(\"Settimana \",WEEKNUM(GiornoCalendario),\"/Giorno \",GiornoCalendario-DATE(YEAR(GiornoCalendario),1,0)),CONCATENATE(\"Giorno \",GiornoCalendario-DATE(YEAR(GiornoCalendario),1,0)))","v":"Giorno 290"},{"$f":"IF(WEEKDAY(GiornoCalendario)=ValoreInizioSettimana,CONCATENATE(\"Settimana \",WEEKNUM(GiornoCalendario),\"/Giorno \",GiornoCalendario-DATE(YEAR(GiornoCalendario),1,0)),CONCATENATE(\"Giorno \",GiornoCalendario-DATE(YEAR(GiornoCalendario),1,0)))","v":"Giorno 291"},{"$f":"IF(WEEKDAY(GiornoCalendario)=ValoreInizioSettimana,CONCATENATE(\"Settimana \",WEEKNUM(GiornoCalendario),\"/Giorno \",GiornoCalendario-DATE(YEAR(GiornoCalendario),1,0)),CONCATENATE(\"Giorno \",GiornoCalendario-DATE(YEAR(GiornoCalendario),1,0)))","v":"Giorno 292"},{"$f":"IF(WEEKDAY(GiornoCalendario)=ValoreInizioSettimana,CONCATENATE(\"Settimana \",WEEKNUM(GiornoCalendario),\"/Giorno \",GiornoCalendario-DATE(YEAR(GiornoCalendario),1,0)),CONCATENATE(\"Giorno \",GiornoCalendario-DATE(YEAR(GiornoCalendario),1,0)))","v":"Giorno 293"}]
[]
[null,null,{"$f":"GiorniESettimane+DATE(AnnoCalendario,10,1)-WEEKDAY(DATE(AnnoCalendario,10,1),(InizioSettimana=\"LUN\")+1)+22","v":"2018-10-21"},"2018-10-22","2018-10-23","2018-10-24","2018-10-25","2018-10-26","2018-10-27"]
[null,null,{"$f":"IF(WEEKDAY(GiornoCalendario)=ValoreInizioSettimana,CONCATENATE(\"Settimana \",WEEKNUM(GiornoCalendario),\"/Giorno \",GiornoCalendario-DATE(YEAR(GiornoCalendario),1,0)),CONCATENATE(\"Giorno \",GiornoCalendario-DATE(YEAR(GiornoCalendario),1,0)))","v":"Settimana 43/Giorno 294"},{"$f":"IF(WEEKDAY(GiornoCalendario)=ValoreInizioSettimana,CONCATENATE(\"Settimana \",WEEKNUM(GiornoCalendario),\"/Giorno \",GiornoCalendario-DATE(YEAR(GiornoCalendario),1,0)),CONCATENATE(\"Giorno \",GiornoCalendario-DATE(YEAR(GiornoCalendario),1,0)))","v":"Giorno 295"},{"$f":"IF(WEEKDAY(GiornoCalendario)=ValoreInizioSettimana,CONCATENATE(\"Settimana \",WEEKNUM(GiornoCalendario),\"/Giorno \",GiornoCalendario-DATE(YEAR(GiornoCalendario),1,0)),CONCATENATE(\"Giorno \",GiornoCalendario-DATE(YEAR(GiornoCalendario),1,0)))","v":"Giorno 296"},{"$f":"IF(WEEKDAY(GiornoCalendario)=ValoreInizioSettimana,CONCATENATE(\"Settimana \",WEEKNUM(GiornoCalendario),\"/Giorno \",GiornoCalendario-DATE(YEAR(GiornoCalendario),1,0)),CONCATENATE(\"Giorno \",GiornoCalendario-DATE(YEAR(GiornoCalendario),1,0)))","v":"Giorno 297"},{"$f":"IF(WEEKDAY(GiornoCalendario)=ValoreInizioSettimana,CONCATENATE(\"Settimana \",WEEKNUM(GiornoCalendario),\"/Giorno \",GiornoCalendario-DATE(YEAR(GiornoCalendario),1,0)),CONCATENATE(\"Giorno \",GiornoCalendario-DATE(YEAR(GiornoCalendario),1,0)))","v":"Giorno 298"},{"$f":"IF(WEEKDAY(GiornoCalendario)=ValoreInizioSettimana,CONCATENATE(\"Settimana \",WEEKNUM(GiornoCalendario),\"/Giorno \",GiornoCalendario-DATE(YEAR(GiornoCalendario),1,0)),CONCATENATE(\"Giorno \",GiornoCalendario-DATE(YEAR(GiornoCalendario),1,0)))","v":"Giorno 299"},{"$f":"IF(WEEKDAY(GiornoCalendario)=ValoreInizioSettimana,CONCATENATE(\"Settimana \",WEEKNUM(GiornoCalendario),\"/Giorno \",GiornoCalendario-DATE(YEAR(GiornoCalendario),1,0)),CONCATENATE(\"Giorno \",GiornoCalendario-DATE(YEAR(GiornoCalendario),1,0)))","v":"Giorno 300"}]
[]
[null,null,{"$f":"GiorniESettimane+DATE(AnnoCalendario,10,1)-WEEKDAY(DATE(AnnoCalendario,10,1),(InizioSettimana=\"LUN\")+1)+29","v":"2018-10-28"},"2018-10-29","2018-10-30","2018-10-31","2018-11-01","2018-11-02","2018-11-03"]
[null,null,{"$f":"IF(WEEKDAY(GiornoCalendario)=ValoreInizioSettimana,CONCATENATE(\"Settimana \",WEEKNUM(GiornoCalendario),\"/Giorno \",GiornoCalendario-DATE(YEAR(GiornoCalendario),1,0)),CONCATENATE(\"Giorno \",GiornoCalendario-DATE(YEAR(GiornoCalendario),1,0)))","v":"Settimana 44/Giorno 301"},{"$f":"IF(WEEKDAY(GiornoCalendario)=ValoreInizioSettimana,CONCATENATE(\"Settimana \",WEEKNUM(GiornoCalendario),\"/Giorno \",GiornoCalendario-DATE(YEAR(GiornoCalendario),1,0)),CONCATENATE(\"Giorno \",GiornoCalendario-DATE(YEAR(GiornoCalendario),1,0)))","v":"Giorno 302"},{"$f":"IF(WEEKDAY(GiornoCalendario)=ValoreInizioSettimana,CONCATENATE(\"Settimana \",WEEKNUM(GiornoCalendario),\"/Giorno \",GiornoCalendario-DATE(YEAR(GiornoCalendario),1,0)),CONCATENATE(\"Giorno \",GiornoCalendario-DATE(YEAR(GiornoCalendario),1,0)))","v":"Giorno 303"},{"$f":"IF(WEEKDAY(GiornoCalendario)=ValoreInizioSettimana,CONCATENATE(\"Settimana \",WEEKNUM(GiornoCalendario),\"/Giorno \",GiornoCalendario-DATE(YEAR(GiornoCalendario),1,0)),CONCATENATE(\"Giorno \",GiornoCalendario-DATE(YEAR(GiornoCalendario),1,0)))","v":"Giorno 304"},{"$f":"IF(WEEKDAY(GiornoCalendario)=ValoreInizioSettimana,CONCATENATE(\"Settimana \",WEEKNUM(GiornoCalendario),\"/Giorno \",GiornoCalendario-DATE(YEAR(GiornoCalendario),1,0)),CONCATENATE(\"Giorno \",GiornoCalendario-DATE(YEAR(GiornoCalendario),1,0)))","v":"Giorno 305"},{"$f":"IF(WEEKDAY(GiornoCalendario)=ValoreInizioSettimana,CONCATENATE(\"Settimana \",WEEKNUM(GiornoCalendario),\"/Giorno \",GiornoCalendario-DATE(YEAR(GiornoCalendario),1,0)),CONCATENATE(\"Giorno \",GiornoCalendario-DATE(YEAR(GiornoCalendario),1,0)))","v":"Giorno 306"},{"$f":"IF(WEEKDAY(GiornoCalendario)=ValoreInizioSettimana,CONCATENATE(\"Settimana \",WEEKNUM(GiornoCalendario),\"/Giorno \",GiornoCalendario-DATE(YEAR(GiornoCalendario),1,0)),CONCATENATE(\"Giorno \",GiornoCalendario-DATE(YEAR(GiornoCalendario),1,0)))","v":"Giorno 307"}]
[{"$nulls":4},"NOTE"]
[]
[null,null,{"$f":"GiorniESettimane+DATE(AnnoCalendario,10,1)-WEEKDAY(DATE(AnnoCalendario,10,1),(InizioSettimana=\"LUN\")+1)+36","v":"2018-11-04"},"2018-11-05"]
[null,null,{"$f":"IF(WEEKDAY(GiornoCalendario)=ValoreInizioSettimana,CONCATENATE(\"Settimana \",WEEKNUM(GiornoCalendario),\"/Giorno \",GiornoCalendario-DATE(YEAR(GiornoCalendario),1,0)),CONCATENATE(\"Giorno \",GiornoCalendario-DATE(YEAR(GiornoCalendario),1,0)))","v":"Settimana 45/Giorno 308"},{"$f":"IF(WEEKDAY(GiornoCalendario)=ValoreInizioSettimana,CONCATENATE(\"Settimana \",WEEKNUM(GiornoCalendario),\"/Giorno \",GiornoCalendario-DATE(YEAR(GiornoCalendario),1,0)),CONCATENATE(\"Giorno \",GiornoCalendario-DATE(YEAR(GiornoCalendario),1,0)))","v":"Giorno 309"}]

{"sheet":"NOV","index":10,"n_rows":20,"n_cols":9,"rows_kept":20,"merged":[[16,2,17,2],[17,4,19,8]]}
[null,"NOV",{"$f":"UPPER(TEXT(InizioSettimana,\"mmm\"))","v":"DOM"},{"$f":"UPPER(TEXT(D3,\"ggg\"))","v":"LUN"},"MAR","MER","GIO","VEN","SAB"]
[null,{"$f":"AnnoCalendario","v":2018}]
[null,null,{"$f":"GiorniESettimane+DATE(AnnoCalendario,11,1)-WEEKDAY(DATE(AnnoCalendario,11,1),(InizioSettimana=\"LUN\")+1)+1","v":"2018-10-28"},"2018-10-29","2018-10-30","2018-10-31","2018-11-01","2018-11-02","2018-11-03"]
[null,null,{"$f":"IF(DAY(GiornoCalendario)=1,CONCATENATE(\"Settimana \",WEEKNUM(GiornoCalendario),\"/Giorno \",GiornoCalendario-DATE(YEAR(GiornoCalendario),1,0)),CONCATENATE(\"Giorno \",GiornoCalendario-DATE(YEAR(GiornoCalendario),1,0)))","v":"Giorno 301"},{"$f":"IF(DAY(GiornoCalendario)=1,CONCATENATE(\"Settimana \",WEEKNUM(GiornoCalendario),\"/Giorno \",GiornoCalendario-DATE(YEAR(GiornoCalendario),1,0)),CONCATENATE(\"Giorno \",GiornoCalendario-DATE(YEAR(GiornoCalendario),1,0)))","v":"Giorno 302"},{"$f":"IF(DAY(GiornoCalendario)=1,CONCATENATE(\"Settimana \",WEEKNUM(GiornoCalendario),\"/Giorno \",GiornoCalendario-DATE(YEAR(GiornoCalendario),1,0)),CONCATENATE(\"Giorno \",GiornoCalendario-DATE(YEAR(GiornoCalendario),1,0)))","v":"Giorno 303"},{"$f":"IF(DAY(GiornoCalendario)=1,CONCATENATE(\"Settimana \",WEEKNUM(GiornoCalendario),\"/Giorno \",GiornoCalendario-DATE(YEAR(GiornoCalendario),1,0)),CONCATENATE(\"Giorno \",GiornoCalendario-DATE(YEAR(GiornoCalendario),1,0)))","v":"Giorno 304"},{"$f":"IF(DAY(GiornoCalendario)=1,CONCATENATE(\"Settimana \",WEEKNUM(GiornoCalendario),\"/Giorno \",GiornoCalendario-DATE(YEAR(GiornoCalendario),1,0)),CONCATENATE(\"Giorno \",GiornoCalendario-DATE(YEAR(GiornoCalendario),1,0)))","v":"Settimana 44/Giorno 305"},{"$f":"IF(DAY(GiornoCalendario)=1,CONCATENATE(\"Settimana \",WEEKNUM(GiornoCalendario),\"/Giorno \",GiornoCalendario-DATE(YEAR(GiornoCalendario),1,0)),CONCATENATE(\"Giorno \",GiornoCalendario-DATE(YEAR(GiornoCalendario),1,0)))","v":"Giorno 306"},{"$f":"IF(DAY(GiornoCalendario)=1,CONCATENATE(\"Settimana \",WEEKNUM(GiornoCalendario),\"/Giorno \",GiornoCalendario-DATE(YEAR(GiornoCalendario),1,0)),CONCATENATE(\"Giorno \",GiornoCalendario-DATE(YEAR(GiornoCalendario),1,0)))","v":"Giorno 307"}]
[]
[null,null,{"$f":"GiorniESettimane+DATE(AnnoCalendario,11,1)-WEEKDAY(DATE(AnnoCalendario,11,1),(InizioSettimana=\"LUN\")+1)+8","v":"2018-11-04"},"2018-11-05","2018-11-06","2018-11-07","2018-11-08","2018-11-09","2018-11-10"]
[null,null,{"$f":"IF(WEEKDAY(GiornoCalendario)=ValoreInizioSettimana,CONCATENATE(\"Settimana \",WEEKNUM(GiornoCalendario),\"/Giorno \",GiornoCalendario-DATE(YEAR(GiornoCalendario),1,0)),CONCATENATE(\"Giorno \",GiornoCalendario-DATE(YEAR(GiornoCalendario),1,0)))","v":"Settimana 45/Giorno 308"},{"$f":"IF(WEEKDAY(GiornoCalendario)=ValoreInizioSettimana,CONCATENATE(\"Settimana \",WEEKNUM(GiornoCalendario),\"/Giorno \",GiornoCalendario-DATE(YEAR(GiornoCalendario),1,0)),CONCATENATE(\"Giorno \",GiornoCalendario-DATE(YEAR(GiornoCalendario),1,0)))","v":"Giorno 309"},{"$f":"IF(WEEKDAY(GiornoCalendario)=ValoreInizioSettimana,CONCATENATE(\"Settimana \",WEEKNUM(GiornoCalendario),\"/Giorno \",GiornoCalendario-DATE(YEAR(GiornoCalendario),1,0)),CONCATENATE(\"Giorno \",GiornoCalendario-DATE(YEAR(GiornoCalendario),1,0)))","v":"Giorno 310"},{"$f":"IF(WEEKDAY(GiornoCalendario)=ValoreInizioSettimana,CONCATENATE(\"Settimana \",WEEKNUM(GiornoCalendario),\"/Giorno \",GiornoCalendario-DATE(YEAR(GiornoCalendario),1,0)),CONCATENATE(\"Giorno \",GiornoCalendario-DATE(YEAR(GiornoCalendario),1,0)))","v":"Giorno 311"},{"$f":"IF(WEEKDAY(GiornoCalendario)=ValoreInizioSettimana,CONCATENATE(\"Settimana \",WEEKNUM(GiornoCalendario),\"/Giorno \",GiornoCalendario-DATE(YEAR(GiornoCalendario),1,0)),CONCATENATE(\"Giorno \",GiornoCalendario-DATE(YEAR(GiornoCalendario),1,0)))","v":"Giorno 312"},{"$f":"IF(WEEKDAY(GiornoCalendario)=ValoreInizioSettimana,CONCATENATE(\"Settimana \",WEEKNUM(GiornoCalendario),\"/Giorno \",GiornoCalendario-DATE(YEAR(GiornoCalendario),1,0)),CONCATENATE(\"Giorno \",GiornoCalendario-DATE(YEAR(GiornoCalendario),1,0)))","v":"Giorno 313"},{"$f":"IF(WEEKDAY(GiornoCalendario)=ValoreInizioSettimana,CONCATENATE(\"Settimana \",WEEKNUM(GiornoCalendario),\"/Giorno \",GiornoCalendario-DATE(YEAR(GiornoCalendario),1,0)),CONCATENATE(\"Giorno \",GiornoCalendario-DATE(YEAR(GiornoCalendario),1,0)))","v":"Giorno 314"}]
[]
[null,null,{"$f":"GiorniESettimane+DATE(AnnoCalendario,11,1)-WEEKDAY(DATE(AnnoCalendario,11,1),(InizioSettimana=\"LUN\")+1)+15","v":"2018-11-11"},"2018-11-12","2018-11-13","2018-11-14","2018-11-15","2018-11-16","2018-11-17"]
[null,null,{"$f":"IF(WEEKDAY(GiornoCalendario)=ValoreInizioSettimana,CONCATENATE(\"Settimana \",WEEKNUM(GiornoCalendario),\"/Giorno \",GiornoCalendario-DATE(YEAR(GiornoCalendario),1,0)),CONCATENATE(\"Giorno \",GiornoCalendario-DATE(YEAR(GiornoCalendario),1,0)))","v":"Settimana 46/Giorno 315"},{"$f":"IF(WEEKDAY(GiornoCalendario)=ValoreInizioSettimana,CONCATENATE(\"Settimana \",WEEKNUM(GiornoCalendario),\"/Giorno \",GiornoCalendario-DATE(YEAR(GiornoCalendario),1,0)),CONCATENATE(\"Giorno \",GiornoCalendario-DATE(YEAR(GiornoCalendario),1,0)))","v":"Giorno 316"},{"$f":"IF(WEEKDAY(GiornoCalendario)=ValoreInizioSettimana,CONCATENATE(\"Settimana \",WEEKNUM(GiornoCalendario),\"/Giorno \",GiornoCalendario-DATE(YEAR(GiornoCalendario),1,0)),CONCATENATE(\"Giorno \",GiornoCalendario-DATE(YEAR(GiornoCalendario),1,0)))","v":"Giorno 317"},{"$f":"IF(WEEKDAY(GiornoCalendario)=ValoreInizioSettimana,CONCATENATE(\"Settimana \",WEEKNUM(GiornoCalendario),\"/Giorno \",GiornoCalendario-DATE(YEAR(GiornoCalendario),1,0)),CONCATENATE(\"Giorno \",GiornoCalendario-DATE(YEAR(GiornoCalendario),1,0)))","v":"Giorno 318"},{"$f":"IF(WEEKDAY(GiornoCalendario)=ValoreInizioSettimana,CONCATENATE(\"Settimana \",WEEKNUM(GiornoCalendario),\"/Giorno \",GiornoCalendario-DATE(YEAR(GiornoCalendario),1,0)),CONCATENATE(\"Giorno \",GiornoCalendario-DATE(YEAR(GiornoCalendario),1,0)))","v":"Giorno 319"},{"$f":"IF(WEEKDAY(GiornoCalendario)=ValoreInizioSettimana,CONCATENATE(\"Settimana \",WEEKNUM(GiornoCalendario),\"/Giorno \",GiornoCalendario-DATE(YEAR(GiornoCalendario),1,0)),CONCATENATE(\"Giorno \",GiornoCalendario-DATE(YEAR(GiornoCalendario),1,0)))","v":"Giorno 320"},{"$f":"IF(WEEKDAY(GiornoCalendario)=ValoreInizioSettimana,CONCATENATE(\"Settimana \",WEEKNUM(GiornoCalendario),\"/Giorno \",GiornoCalendario-DATE(YEAR(GiornoCalendario),1,0)),CONCATENATE(\"Giorno \",GiornoCalendario-DATE(YEAR(GiornoCalendario),1,0)))","v":"Giorno 321"}]
[]
[null,null,{"$f":"GiorniESettimane+DATE(AnnoCalendario,11,1)-WEEKDAY(DATE(AnnoCalendario,11,1),(InizioSettimana=\"LUN\")+1)+22","v":"2018-11-18"},"2018-11-19","2018-11-20","2018-11-21","2018-11-22","2018-11-23","2018-11-24"]
[null,null,{"$f":"IF(WEEKDAY(GiornoCalendario)=ValoreInizioSettimana,CONCATENATE(\"Settimana \",WEEKNUM(GiornoCalendario),\"/Giorno \",GiornoCalendario-DATE(YEAR(GiornoCalendario),1,0)),CONCATENATE(\"Giorno \",GiornoCalendario-DATE(YEAR(GiornoCalendario),1,0)))","v":"Settimana 47/Giorno 322"},{"$f":"IF(WEEKDAY(GiornoCalendario)=ValoreInizioSettimana,CONCATENATE(\"Settimana \",WEEKNUM(GiornoCalendario),\"/Giorno \",GiornoCalendario-DATE(YEAR(GiornoCalendario),1,0)),CONCATENATE(\"Giorno \",GiornoCalendario-DATE(YEAR(GiornoCalendario),1,0)))","v":"Giorno 323"},{"$f":"IF(WEEKDAY(GiornoCalendario)=ValoreInizioSettimana,CONCATENATE(\"Settimana \",WEEKNUM(GiornoCalendario),\"/Giorno \",GiornoCalendario-DATE(YEAR(GiornoCalendario),1,0)),CONCATENATE(\"Giorno \",GiornoCalendario-DATE(YEAR(GiornoCalendario),1,0)))","v":"Giorno 324"},{"$f":"IF(WEEKDAY(GiornoCalendario)=ValoreInizioSettimana,CONCATENATE(\"Settimana \",WEEKNUM(GiornoCalendario),\"/Giorno \",GiornoCalendario-DATE(YEAR(GiornoCalendario),1,0)),CONCATENATE(\"Giorno \",GiornoCalendario-DATE(YEAR(GiornoCalendario),1,0)))","v":"Giorno 325"},{"$f":"IF(WEEKDAY(GiornoCalendario)=ValoreInizioSettimana,CONCATENATE(\"Settimana \",WEEKNUM(GiornoCalendario),\"/Giorno \",GiornoCalendario-DATE(YEAR(GiornoCalendario),1,0)),CONCATENATE(\"Giorno \",GiornoCalendario-DATE(YEAR(GiornoCalendario),1,0)))","v":"Giorno 326"},{"$f":"IF(WEEKDAY(GiornoCalendario)=ValoreInizioSettimana,CONCATENATE(\"Settimana \",WEEKNUM(GiornoCalendario),\"/Giorno \",GiornoCalendario-DATE(YEAR(GiornoCalendario),1,0)),CONCATENATE(\"Giorno \",GiornoCalendario-DATE(YEAR(GiornoCalendario),1,0)))","v":"Giorno 327"},{"$f":"IF(WEEKDAY(GiornoCalendario)=ValoreInizioSettimana,CONCATENATE(\"Settimana \",WEEKNUM(GiornoCalendario),\"/Giorno \",GiornoCalendario-DATE(YEAR(GiornoCalendario),1,0)),CONCATENATE(\"Giorno \",GiornoCalendario-DATE(YEAR(GiornoCalendario),1,0)))","v":"Giorno 328"}]
[]
[null,null,{"$f":"GiorniESettimane+DATE(AnnoCalendario,11,1)-WEEKDAY(DATE(AnnoCalendario,11,1),(InizioSettimana=\"LUN\")+1)+29","v":"2018-11-25"},"2018-11-26","2018-11-27","2018-11-28","2018-11-29","2018-11-30","2018-12-01"]
[null,null,{"$f":"IF(WEEKDAY(GiornoCalendario)=ValoreInizioSettimana,CONCATENATE(\"Settimana \",WEEKNUM(GiornoCalendario),\"/Giorno \",GiornoCalendario-DATE(YEAR(GiornoCalendario),1,0)),CONCATENATE(\"Giorno \",GiornoCalendario-DATE(YEAR(GiornoCalendario),1,0)))","v":"Settimana 48/Giorno 329"},{"$f":"IF(WEEKDAY(GiornoCalendario)=ValoreInizioSettimana,CONCATENATE(\"Settimana \",WEEKNUM(GiornoCalendario),\"/Giorno \",GiornoCalendario-DATE(YEAR(GiornoCalendario),1,0)),CONCATENATE(\"Giorno \",GiornoCalendario-DATE(YEAR(GiornoCalendario),1,0)))","v":"Giorno 330"},{"$f":"IF(WEEKDAY(GiornoCalendario)=ValoreInizioSettimana,CONCATENATE(\"Settimana \",WEEKNUM(GiornoCalendario),\"/Giorno \",GiornoCalendario-DATE(YEAR(GiornoCalendario),1,0)),CONCATENATE(\"Giorno \",GiornoCalendario-DATE(YEAR(GiornoCalendario),1,0)))","v":"Giorno 331"},{"$f":"IF(WEEKDAY(GiornoCalendario)=ValoreInizioSettimana,CONCATENATE(\"Settimana \",WEEKNUM(GiornoCalendario),\"/Giorno \",GiornoCalendario-DATE(YEAR(GiornoCalendario),1,0)),CONCATENATE(\"Giorno \",GiornoCalendario-DATE(YEAR(GiornoCalendario),1,0)))","v":"Giorno 332"},{"$f":"IF(WEEKDAY(GiornoCalendario)=ValoreInizioSettimana,CONCATENATE(\"Settimana \",WEEKNUM(GiornoCalendario),\"/Giorno \",GiornoCalendario-DATE(YEAR(GiornoCalendario),1,0)),CONCATENATE(\"Giorno \",GiornoCalendario-DATE(YEAR(GiornoCalendario),1,0)))","v":"Giorno 333"},{"$f":"IF(WEEKDAY(GiornoCalendario)=ValoreInizioSettimana,CONCATENATE(\"Settimana \",WEEKNUM(GiornoCalendario),\"/Giorno \",GiornoCalendario-DATE(YEAR(GiornoCalendario),1,0)),CONCATENATE(\"Giorno \",GiornoCalendario-DATE(YEAR(GiornoCalendario),1,0)))","v":"Giorno 334"},{"$f":"IF(WEEKDAY(GiornoCalendario)=ValoreInizioSettimana,CONCATENATE(\"Settimana \",WEEKNUM(GiornoCalendario),\"/Giorno \",GiornoCalendario-DATE(YEAR(GiornoCalendario),1,0)),CONCATENATE(\"Giorno \",GiornoCalendario-DATE(YEAR(GiornoCalendario),1,0)))","v":"Giorno 335"}]
[{"$nulls":4},"NOTE"]
[]
[null,null,{"$f":"GiorniESettimane+DATE(AnnoCalendario,11,1)-WEEKDAY(DATE(AnnoCalendario,11,1),(InizioSettimana=\"LUN\")+1)+36","v":"2018-12-02"},"2018-12-03"]
[null,null,{"$f":"IF(WEEKDAY(GiornoCalendario)=ValoreInizioSettimana,CONCATENATE(\"Settimana \",WEEKNUM(GiornoCalendario),\"/Giorno \",GiornoCalendario-DATE(YEAR(GiornoCalendario),1,0)),CONCATENATE(\"Giorno \",GiornoCalendario-DATE(YEAR(GiornoCalendario),1,0)))","v":"Settimana 49/Giorno 336"},{"$f":"IF(WEEKDAY(GiornoCalendario)=ValoreInizioSettimana,CONCATENATE(\"Settimana \",WEEKNUM(GiornoCalendario),\"/Giorno \",GiornoCalendario-DATE(YEAR(GiornoCalendario),1,0)),CONCATENATE(\"Giorno \",GiornoCalendario-DATE(YEAR(GiornoCalendario),1,0)))","v":"Giorno 337"}]

{"sheet":"DIC","index":11,"n_rows":20,"n_cols":9,"rows_kept":20,"merged":[[16,2,17,2],[17,4,19,8]]}
[null,"DIC",{"$f":"UPPER(TEXT(InizioSettimana,\"mmm\"))","v":"DOM"},{"$f":"UPPER(TEXT(D3,\"ggg\"))","v":"LUN"},"MAR","MER","GIO","VEN","SAB"]
[null,{"$f":"AnnoCalendario","v":2018}]
[null,null,{"$f":"GiorniESettimane+DATE(AnnoCalendario,12,1)-WEEKDAY(DATE(AnnoCalendario,12,1),(InizioSettimana=\"LUN\")+1)+1","v":"2018-11-25"},"2018-11-26","2018-11-27","2018-11-28","2018-11-29","2018-11-30","2018-12-01"]
[null,null,{"$f":"IF(DAY(GiornoCalendario)=1,CONCATENATE(\"Settimana \",WEEKNUM(GiornoCalendario),\"/Giorno \",GiornoCalendario-DATE(YEAR(GiornoCalendario),1,0)),CONCATENATE(\"Giorno \",GiornoCalendario-DATE(YEAR(GiornoCalendario),1,0)))","v":"Giorno 329"},{"$f":"IF(DAY(GiornoCalendario)=1,CONCATENATE(\"Settimana \",WEEKNUM(GiornoCalendario),\"/Giorno \",GiornoCalendario-DATE(YEAR(GiornoCalendario),1,0)),CONCATENATE(\"Giorno \",GiornoCalendario-DATE(YEAR(GiornoCalendario),1,0)))","v":"Giorno 330"},{"$f":"IF(DAY(GiornoCalendario)=1,CONCATENATE(\"Settimana \",WEEKNUM(GiornoCalendario),\"/Giorno \",GiornoCalendario-DATE(YEAR(GiornoCalendario),1,0)),CONCATENATE(\"Giorno \",GiornoCalendario-DATE(YEAR(GiornoCalendario),1,0)))","v":"Giorno 331"},{"$f":"IF(DAY(GiornoCalendario)=1,CONCATENATE(\"Settimana \",WEEKNUM(GiornoCalendario),\"/Giorno \",GiornoCalendario-DATE(YEAR(GiornoCalendario),1,0)),CONCATENATE(\"Giorno \",GiornoCalendario-DATE(YEAR(GiornoCalendario),1,0)))","v":"Giorno 332"},{"$f":"IF(DAY(GiornoCalendario)=1,CONCATENATE(\"Settimana \",WEEKNUM(GiornoCalendario),\"/Giorno \",GiornoCalendario-DATE(YEAR(GiornoCalendario),1,0)),CONCATENATE(\"Giorno \",GiornoCalendario-DATE(YEAR(GiornoCalendario),1,0)))","v":"Giorno 333"},{"$f":"IF(DAY(GiornoCalendario)=1,CONCATENATE(\"Settimana \",WEEKNUM(GiornoCalendario),\"/Giorno \",GiornoCalendario-DATE(YEAR(GiornoCalendario),1,0)),CONCATENATE(\"Giorno \",GiornoCalendario-DATE(YEAR(GiornoCalendario),1,0)))","v":"Giorno 334"},{"$f":"IF(DAY(GiornoCalendario)=1,CONCATENATE(\"Settimana \",WEEKNUM(GiornoCalendario),\"/Giorno \",GiornoCalendario-DATE(YEAR(GiornoCalendario),1,0)),CONCATENATE(\"Giorno \",GiornoCalendario-DATE(YEAR(GiornoCalendario),1,0)))","v":"Settimana 48/Giorno 335"}]
[]
[null,null,{"$f":"GiorniESettimane+DATE(AnnoCalendario,12,1)-WEEKDAY(DATE(AnnoCalendario,12,1),(InizioSettimana=\"LUN\")+1)+8","v":"2018-12-02"},"2018-12-03","2018-12-04","2018-12-05","2018-12-06","2018-12-07","2018-12-08"]
[null,null,{"$f":"IF(WEEKDAY(GiornoCalendario)=ValoreInizioSettimana,CONCATENATE(\"Settimana \",WEEKNUM(GiornoCalendario),\"/Giorno \",GiornoCalendario-DATE(YEAR(GiornoCalendario),1,0)),CONCATENATE(\"Giorno \",GiornoCalendario-DATE(YEAR(GiornoCalendario),1,0)))","v":"Settimana 49/Giorno 336"},{"$f":"IF(WEEKDAY(GiornoCalendario)=ValoreInizioSettimana,CONCATENATE(\"Settimana \",WEEKNUM(GiornoCalendario),\"/Giorno \",GiornoCalendario-DATE(YEAR(GiornoCalendario),1,0)),CONCATENATE(\"Giorno \",GiornoCalendario-DATE(YEAR(GiornoCalendario),1,0)))","v":"Giorno 337"},{"$f":"IF(WEEKDAY(GiornoCalendario)=ValoreInizioSettimana,CONCATENATE(\"Settimana \",WEEKNUM(GiornoCalendario),\"/Giorno \",GiornoCalendario-DATE(YEAR(GiornoCalendario),1,0)),CONCATENATE(\"Giorno \",GiornoCalendario-DATE(YEAR(GiornoCalendario),1,0)))","v":"Giorno 338"},{"$f":"IF(WEEKDAY(GiornoCalendario)=ValoreInizioSettimana,CONCATENATE(\"Settimana \",WEEKNUM(GiornoCalendario),\"/Giorno \",GiornoCalendario-DATE(YEAR(GiornoCalendario),1,0)),CONCATENATE(\"Giorno \",GiornoCalendario-DATE(YEAR(GiornoCalendario),1,0)))","v":"Giorno 339"},{"$f":"IF(WEEKDAY(GiornoCalendario)=ValoreInizioSettimana,CONCATENATE(\"Settimana \",WEEKNUM(GiornoCalendario),\"/Giorno \",GiornoCalendario-DATE(YEAR(GiornoCalendario),1,0)),CONCATENATE(\"Giorno \",GiornoCalendario-DATE(YEAR(GiornoCalendario),1,0)))","v":"Giorno 340"},{"$f":"IF(WEEKDAY(GiornoCalendario)=ValoreInizioSettimana,CONCATENATE(\"Settimana \",WEEKNUM(GiornoCalendario),\"/Giorno \",GiornoCalendario-DATE(YEAR(GiornoCalendario),1,0)),CONCATENATE(\"Giorno \",GiornoCalendario-DATE(YEAR(GiornoCalendario),1,0)))","v":"Giorno 341"},{"$f":"IF(WEEKDAY(GiornoCalendario)=ValoreInizioSettimana,CONCATENATE(\"Settimana \",WEEKNUM(GiornoCalendario),\"/Giorno \",GiornoCalendario-DATE(YEAR(GiornoCalendario),1,0)),CONCATENATE(\"Giorno \",GiornoCalendario-DATE(YEAR(GiornoCalendario),1,0)))","v":"Giorno 342"}]
[]
[null,null,{"$f":"GiorniESettimane+DATE(AnnoCalendario,12,1)-WEEKDAY(DATE(AnnoCalendario,12,1),(InizioSettimana=\"LUN\")+1)+15","v":"2018-12-09"},"2018-12-10","2018-12-11","2018-12-12","2018-12-13","2018-12-14","2018-12-15"]
[null,null,{"$f":"IF(WEEKDAY(GiornoCalendario)=ValoreInizioSettimana,CONCATENATE(\"Settimana \",WEEKNUM(GiornoCalendario),\"/Giorno \",GiornoCalendario-DATE(YEAR(GiornoCalendario),1,0)),CONCATENATE(\"Giorno \",GiornoCalendario-DATE(YEAR(GiornoCalendario),1,0)))","v":"Settimana 50/Giorno 343"},{"$f":"IF(WEEKDAY(GiornoCalendario)=ValoreInizioSettimana,CONCATENATE(\"Settimana \",WEEKNUM(GiornoCalendario),\"/Giorno \",GiornoCalendario-DATE(YEAR(GiornoCalendario),1,0)),CONCATENATE(\"Giorno \",GiornoCalendario-DATE(YEAR(GiornoCalendario),1,0)))","v":"Giorno 344"},{"$f":"IF(WEEKDAY(GiornoCalendario)=ValoreInizioSettimana,CONCATENATE(\"Settimana \",WEEKNUM(GiornoCalendario),\"/Giorno \",GiornoCalendario-DATE(YEAR(GiornoCalendario),1,0)),CONCATENATE(\"Giorno \",GiornoCalendario-DATE(YEAR(GiornoCalendario),1,0)))","v":"Giorno 345"},{"$f":"IF(WEEKDAY(GiornoCalendario)=ValoreInizioSettimana,CONCATENATE(\"Settimana \",WEEKNUM(GiornoCalendario),\"/Giorno \",GiornoCalendario-DATE(YEAR(GiornoCalendario),1,0)),CONCATENATE(\"Giorno \",GiornoCalendario-DATE(YEAR(GiornoCalendario),1,0)))","v":"Giorno 346"},{"$f":"IF(WEEKDAY(GiornoCalendario)=ValoreInizioSettimana,CONCATENATE(\"Settimana \",WEEKNUM(GiornoCalendario),\"/Giorno \",GiornoCalendario-DATE(YEAR(GiornoCalendario),1,0)),CONCATENATE(\"Giorno \",GiornoCalendario-DATE(YEAR(GiornoCalendario),1,0)))","v":"Giorno 347"},{"$f":"IF(WEEKDAY(GiornoCalendario)=ValoreInizioSettimana,CONCATENATE(\"Settimana \",WEEKNUM(GiornoCalendario),\"/Giorno \",GiornoCalendario-DATE(YEAR(GiornoCalendario),1,0)),CONCATENATE(\"Giorno \",GiornoCalendario-DATE(YEAR(GiornoCalendario),1,0)))","v":"Giorno 348"},{"$f":"IF(WEEKDAY(GiornoCalendario)=ValoreInizioSettimana,CONCATENATE(\"Settimana \",WEEKNUM(GiornoCalendario),\"/Giorno \",GiornoCalendario-DATE(YEAR(GiornoCalendario),1,0)),CONCATENATE(\"Giorno \",GiornoCalendario-DATE(YEAR(GiornoCalendario),1,0)))","v":"Giorno 349"}]
[]
[null,null,{"$f":"GiorniESettimane+DATE(AnnoCalendario,12,1)-WEEKDAY(DATE(AnnoCalendario,12,1),(InizioSettimana=\"LUN\")+1)+22","v":"2018-12-16"},"2018-12-17","2018-12-18","2018-12-19","2018-12-20","2018-12-21","2018-12-22"]
[null,null,{"$f":"IF(WEEKDAY(GiornoCalendario)=ValoreInizioSettimana,CONCATENATE(\"Settimana \",WEEKNUM(GiornoCalendario),\"/Giorno \",GiornoCalendario-DATE(YEAR(GiornoCalendario),1,0)),CONCATENATE(\"Giorno \",GiornoCalendario-DATE(YEAR(GiornoCalendario),1,0)))","v":"Settimana 51/Giorno 350"},{"$f":"IF(WEEKDAY(GiornoCalendario)=ValoreInizioSettimana,CONCATENATE(\"Settimana \",WEEKNUM(GiornoCalendario),\"/Giorno \",GiornoCalendario-DATE(YEAR(GiornoCalendario),1,0)),CONCATENATE(\"Giorno \",GiornoCalendario-DATE(YEAR(GiornoCalendario),1,0)))","v":"Giorno 351"},{"$f":"IF(WEEKDAY(GiornoCalendario)=ValoreInizioSettimana,CONCATENATE(\"Settimana \",WEEKNUM(GiornoCalendario),\"/Giorno \",GiornoCalendario-DATE(YEAR(GiornoCalendario),1,0)),CONCATENATE(\"Giorno \",GiornoCalendario-DATE(YEAR(GiornoCalendario),1,0)))","v":"Giorno 352"},{"$f":"IF(WEEKDAY(GiornoCalendario)=ValoreInizioSettimana,CONCATENATE(\"Settimana \",WEEKNUM(GiornoCalendario),\"/Giorno \",GiornoCalendario-DATE(YEAR(GiornoCalendario),1,0)),CONCATENATE(\"Giorno \",GiornoCalendario-DATE(YEAR(GiornoCalendario),1,0)))","v":"Giorno 353"},{"$f":"IF(WEEKDAY(GiornoCalendario)=ValoreInizioSettimana,CONCATENATE(\"Settimana \",WEEKNUM(GiornoCalendario),\"/Giorno \",GiornoCalendario-DATE(YEAR(GiornoCalendario),1,0)),CONCATENATE(\"Giorno \",GiornoCalendario-DATE(YEAR(GiornoCalendario),1,0)))","v":"Giorno 354"},{"$f":"IF(WEEKDAY(GiornoCalendario)=ValoreInizioSettimana,CONCATENATE(\"Settimana \",WEEKNUM(GiornoCalendario),\"/Giorno \",GiornoCalendario-DATE(YEAR(GiornoCalendario),1,0)),CONCATENATE(\"Giorno \",GiornoCalendario-DATE(YEAR(GiornoCalendario),1,0)))","v":"Giorno 355"},{"$f":"IF(WEEKDAY(GiornoCalendario)=ValoreInizioSettimana,CONCATENATE(\"Settimana \",WEEKNUM(GiornoCalendario),\"/Giorno \",GiornoCalendario-DATE(YEAR(GiornoCalendario),1,0)),CONCATENATE(\"Giorno \",GiornoCalendario-DATE(YEAR(GiornoCalendario),1,0)))","v":"Giorno 356"}]
[]
[null,null,{"$f":"GiorniESettimane+DATE(AnnoCalendario,12,1)-WEEKDAY(DATE(AnnoCalendario,12,1),(InizioSettimana=\"LUN\")+1)+29","v":"2018-12-23"},"2018-12-24","2018-12-25","2018-12-26","2018-12-27","2018-12-28","2018-12-29"]
[null,null,{"$f":"IF(WEEKDAY(GiornoCalendario)=ValoreInizioSettimana,CONCATENATE(\"Settimana \",WEEKNUM(GiornoCalendario),\"/Giorno \",GiornoCalendario-DATE(YEAR(GiornoCalendario),1,0)),CONCATENATE(\"Giorno \",GiornoCalendario-DATE(YEAR(GiornoCalendario),1,0)))","v":"Settimana 52/Giorno 357"},{"$f":"IF(WEEKDAY(GiornoCalendario)=ValoreInizioSettimana,CONCATENATE(\"Settimana \",WEEKNUM(GiornoCalendario),\"/Giorno \",GiornoCalendario-DATE(YEAR(GiornoCalendario),1,0)),CONCATENATE(\"Giorno \",GiornoCalendario-DATE(YEAR(GiornoCalendario),1,0)))","v":"Giorno 358"},{"$f":"IF(WEEKDAY(GiornoCalendario)=ValoreInizioSettimana,CONCATENATE(\"Settimana \",WEEKNUM(GiornoCalendario),\"/Giorno \",GiornoCalendario-DATE(YEAR(GiornoCalendario),1,0)),CONCATENATE(\"Giorno \",GiornoCalendario-DATE(YEAR(GiornoCalendario),1,0)))","v":"Giorno 359"},{"$f":"IF(WEEKDAY(GiornoCalendario)=ValoreInizioSettimana,CONCATENATE(\"Settimana \",WEEKNUM(GiornoCalendario),\"/Giorno \",GiornoCalendario-DATE(YEAR(GiornoCalendario),1,0)),CONCATENATE(\"Giorno \",GiornoCalendario-DATE(YEAR(GiornoCalendario),1,0)))","v":"Giorno 360"},{"$f":"IF(WEEKDAY(GiornoCalendario)=ValoreInizioSettimana,CONCATENATE(\"Settimana \",WEEKNUM(GiornoCalendario),\"/Giorno \",GiornoCalendario-DATE(YEAR(GiornoCalendario),1,0)),CONCATENATE(\"Giorno \",GiornoCalendario-DATE(YEAR(GiornoCalendario),1,0)))","v":"Giorno 361"},{"$f":"IF(WEEKDAY(GiornoCalendario)=ValoreInizioSettimana,CONCATENATE(\"Settimana \",WEEKNUM(GiornoCalendario),\"/Giorno \",GiornoCalendario-DATE(YEAR(GiornoCalendario),1,0)),CONCATENATE(\"Giorno \",GiornoCalendario-DATE(YEAR(GiornoCalendario),1,0)))","v":"Giorno 362"},{"$f":"IF(WEEKDAY(GiornoCalendario)=ValoreInizioSettimana,CONCATENATE(\"Settimana \",WEEKNUM(GiornoCalendario),\"/Giorno \",GiornoCalendario-DATE(YEAR(GiornoCalendario),1,0)),CONCATENATE(\"Giorno \",GiornoCalendario-DATE(YEAR(GiornoCalendario),1,0)))","v":"Giorno 363"}]
[{"$nulls":4},"NOTE"]
[]
[null,null,{"$f":"GiorniESettimane+DATE(AnnoCalendario,12,1)-WEEKDAY(DATE(AnnoCalendario,12,1),(InizioSettimana=\"LUN\")+1)+36","v":"2018-12-30"},"2018-12-31"]
[null,null,{"$f":"IF(WEEKDAY(GiornoCalendario)=ValoreInizioSettimana,CONCATENATE(\"Settimana \",WEEKNUM(GiornoCalendario),\"/Giorno \",GiornoCalendario-DATE(YEAR(GiornoCalendario),1,0)),CONCATENATE(\"Giorno \",GiornoCalendario-DATE(YEAR(GiornoCalendario),1,0)))","v":"Settimana 53/Giorno 364"},{"$f":"IF(WEEKDAY(GiornoCalendario)=ValoreInizioSettimana,CONCATENATE(\"Settimana \",WEEKNUM(GiornoCalendario),\"/Giorno \",GiornoCalendario-DATE(YEAR(GiornoCalendario),1,0)),CONCATENATE(\"Giorno \",GiornoCalendario-DATE(YEAR(GiornoCalendario),1,0)))","v":"Giorno 365"}]